Workbook

Sheet Notes
A1: EhlersUltimateChannelsAndBands.xlsm; Traders Tip spreadsheet created for the May 2024 Issue
A2: Coded beginning 2024-March-11 by Ronald McAllister (rpmac_xltt@sprynet.com)
A4: This Workbook demonstrates an EXCEL version of the ideas presented
A5: by John F. Ehlers in an article titled "Ultimate Channels And Ultimate Bands",
A6: which originally appeared in the May 2024 issue of
A7: "Technical Analysis of Stocks and Commodities" magazine.
A13: 2024Feb04 - Added "TallChart" Check Box and supporting functionality that allows the user to expand the charting area to use all of the vertical area that is "visible" on the worksheet.
A14: I found this to be a usefull toggle when the numer of user selected indicator subcharts scrunches them so tightly into the normal vertical space that much of the visual detail is lost.
A15: Note: "Visible" vertical space is sensitive to the level of "zoom" you choose for the worksheet (Slider at the bottom right of the sheet display)
A17: Just a note:
A18: November 2023 was the first T-Tip built using EXCEL 365. Specifically:
A19: Microsoft® Excel® for Microsoft 365 MSO (Version 2308 Build 16.0.16731.20052) 64-bit
A20: All previous T-Tip spreadsheets were built using EXCEL 2010.

Sheet InputPriceData
A1: SPDR S&P 500 ETF Trust (SPY) -NYSEArca (Daily)
M2: To retrieve data for symbols traded on non US Exchanges, | IJ2: 241.79
A3: Request Online Yahoo History for: | F3: Market State == > | G3: At close: | H3: 16:00:00 | I3: EDT | M3: you will need to append the dot-suffix for the exchange to the symbol.
A4: Symbol | B4: SPY | D4: Valid | I4: =OFFSET(I4,-2,0,1,1) -> 0 | M4: The following links provide a description of how to use the exchange suffix
A5: From | B5: =EDATE(HistReqEndDate,-360) -> 1994-03-17 | D5: Data | M5: along with a list of suffixes for the major world exchanges. | AD5: Trailing 12 Div return (Cur Close)
A6: To | B6: =NOW() -> 2024-03-17T16:15:12.150 | D6: Types | E6: =VLOOKUP(B7,D7:E10,2,FALSE) -> d | M6: https://help.yahoo.com/kb/finance/SLN2310.html
A7: Data Type | B7: Daily | D7: Daily | E7: d | M7: And
A8: Crumb | D8: Weekly | E8: w | M8: https://www.stockmarketeye.com/users-guide/ticker-symbols-and-data-providers/data-providers.html
A9: Available Data | D9: Monthly | E9: m
A10: Bar Count: | B10: 7554 | M10: You may search on “exchange suffixes” for additional discussions | AD10: =OFFSET(AC15,1,0,1,1)/OFFSET(N15,1,0,1,1) -> 0.01301021909
A11: From: | B11: =IF(B10<=0,"",OFFSET(B15,B10,IF(HistReqDataType="v",1,0),1,1)) -> 1994-03-15 | W11: Trailing 12 Month Dividend Returns
A12: To: | B12: =IF(B10<=0,"",IF(HistReqDataType="v",OFFSET(B15,2,1,1,1),OFFSET(B15,1,0,1,1))) -> 2024-03-15 | W12: Raw Close price on Dividend date | X12: Div Year and Month | Y12: Looking for year ago Div Year and Month | Z12: Year ago Div Date we found | AA12: row offset to year ago div Date | AB12: Same month flag | AC12: Trailing 12 Div Total | AD12: Trailing 12 Div return
Q13: Split History | S13: 0 | T13: Running | U13: Dividend History
B14: Raw Data Values | H14: Adjusted | I14: Price Adjust | J14: Vol Adjust | K14: Adjusted Values | P14: Last | Q14: Effective | R14: Shares | T14: Vol Adjust | V14: 121
A15: RelRow | B15: Date | C15: Open | D15: High | E15: Low | F15: Close | G15: Volume | H15: Close | I15: Factor | J15: Factor | K15: Open | L15: High | M15: Low | N15: Close | O15: Volume | P15: Trade | Q15: 45367 | R15: New | S15: Old | T15: 1 | U15: Date | V15: $ / Share
A16: 1 | B16: 2024-03-15 | C16: 510.209991 | D16: 511.690002 | E16: 508.122009 | F16: 509.829987 | G16: 107019507 | H16: 509.829987 | I16: =IF(F16=0,1,H16/F16) -> 1 | J16: =INDEX(OFFSET($T$15,0,0,$S$13+1,1),MATCH(B16,OFFSET($Q$15,0,0,$S$13+1,1),-1)) -> 1 | K16: =ROUND($I16*C16,2) -> 510.21 | L16: =ROUND($I16*D16,2) -> 511.69 | M16: 508.12 | N16: 509.83 | O16: =G16*J16 -> 107019507 | U16: 2023-12-15 | V16: 1.906 | W16: =(INDEX(OFFSET($F$15,1,0,$B$10,1),MATCH(U16,OFFSET($B$15,1,0,$B$10,1),-1))) -> 469.329987 | X16: =YEAR(U16)&RIGHT("0"&MONTH(U16),2) -> 202312 | Y16: =YEAR(U16)-1&RIGHT("0"&MONTH(U16),2) -> 202212 | Z16: =OFFSET(U15,AA16,0,1,1) -> 2022-12-16 | AA16: =MATCH(Y16,OFFSET($X$15,A16,0,$V$14+1-A16,1),-1) -> 5 | AB16: =IF(OR(AND(YEAR(U16)=YEAR(Z16),MONTH(U16)=MONTH(Z16)),MONTH(U16)=MONTH(Z16)),1,0) -> 1 | AC16: =(V16+IF(AA16-AB16=0,0,IFERROR(SUM(OFFSET(V16,1,0,AA16-AB16-1,1)),0))) -> 6.633 | AD16: =AC16/(INDEX(OFFSET($F$15,1,0,$B$10,1),MATCH(U16,OFFSET($B$15,1,0,$B$10,1),-1))) -> 0.01413291327
A17: 2 | B17: 2024-03-14 | C17: 516.969971 | D17: 517.130005 | E17: 511.820007 | F17: 514.950012 | G17: 110171800 | H17: 514.950012 | I17: =IF(F17=0,1,H17/F17) -> 1 | J17: =INDEX(OFFSET($T$15,0,0,$S$13+1,1),MATCH(B17,OFFSET($Q$15,0,0,$S$13+1,1),-1)) -> 1 | K17: =ROUND($I17*C17,2) -> 516.97 | L17: =ROUND($I17*D17,2) -> 517.13 | M17: =ROUND($I17*E17,2) -> 511.82 | N17: =ROUND($I17*F17,2) -> 514.95 | O17: =G17*J17 -> 110171800 | U17: 2023-09-15 | V17: 1.583 | W17: =(INDEX(OFFSET($F$15,1,0,$B$10,1),MATCH(U17,OFFSET($B$15,1,0,$B$10,1),-1))) -> 443.369995 | X17: =YEAR(U17)&RIGHT("0"&MONTH(U17),2) -> 202309 | Y17: =YEAR(U17)-1&RIGHT("0"&MONTH(U17),2) -> 202209 | Z17: =OFFSET(U16,AA17,0,1,1) -> 2022-09-16 | AA17: =MATCH(Y17,OFFSET($X$15,A17,0,$V$14+1-A17,1),-1) -> 5 | AB17: =IF(OR(AND(YEAR(U17)=YEAR(Z17),MONTH(U17)=MONTH(Z17)),MONTH(U17)=MONTH(Z17)),1,0) -> 1 | AC17: =(V17+IF(AA17-AB17=0,0,IFERROR(SUM(OFFSET(V17,1,0,AA17-AB17-1,1)),0))) -> 6.508 | AD17: =AC17/(INDEX(OFFSET($F$15,1,0,$B$10,1),MATCH(U17,OFFSET($B$15,1,0,$B$10,1),-1))) -> 0.0146784854
A18: 3 | B18: 2024-03-13 | C18: 517.109985 | D18: 517.289978 | E18: 514.48999 | F18: 515.969971 | G18: 55104100 | H18: 515.969971 | I18: 1 | J18: 1 | K18: 517.11 | L18: 517.29 | M18: 514.49 | N18: 515.97 | O18: 55104100 | U18: 2023-06-16 | V18: 1.638 | W18: 439.459991 | X18: 202306 | Y18: 202206 | Z18: 2022-06-17 | AA18: 5 | AB18: 1 | AC18: 6.521 | AD18: 0.01483866594
A19: 4 | B19: 2024-03-12 | C19: 513.450012 | D19: 517.380005 | E19: 510.859985 | F19: 516.780029 | G19: 73114400 | H19: 516.780029 | I19: 1 | J19: 1 | K19: 513.45 | L19: 517.38 | M19: 510.86 | N19: 516.78 | O19: 73114400 | U19: 2023-03-17 | V19: 1.506 | W19: 389.98999 | X19: 202303 | Y19: 202203 | Z19: 2022-03-18 | AA19: 5 | AB19: 1 | AC19: 6.46 | AD19: 0.01656452772
A20: 5 | B20: 2024-03-11 | C20: 510.480011 | D20: 511.880005 | E20: 508.5 | F20: 511.279999 | G20: 62557200 | H20: 511.279999 | I20: 1 | J20: 1 | K20: 510.48 | L20: 511.88 | M20: 508.5 | N20: 511.28 | O20: 62557200 | U20: 2022-12-16 | V20: 1.781 | W20: 383.269989 | X20: 202212 | Y20: 202112 | Z20: 2021-12-17 | AA20: 5 | AB20: 1 | AC20: 6.32 | AD20: 0.01648968138
A21: 6 | B21: 2024-03-08 | C21: 515.460022 | D21: 518.219971 | E21: 511.130005 | F21: 511.720001 | G21: 86425500 | H21: 511.720001 | I21: 1 | J21: 1 | K21: 515.46 | L21: 518.22 | M21: 511.13 | N21: 511.72 | O21: 86425500 | U21: 2022-09-16 | V21: 1.596 | W21: 385.559998 | X21: 202209 | Y21: 202109 | Z21: 2021-09-17 | AA21: 5 | AB21: 1 | AC21: 6.172 | AD21: 0.01600788472
A22: 7 | B22: 2024-03-07 | C22: 513.140015 | D22: 515.890015 | E22: 509.809998 | F22: 514.809998 | G22: 58652100 | H22: 514.809998 | I22: 1 | J22: 1 | K22: 513.14 | L22: 515.89 | M22: 509.81 | N22: 514.81 | O22: 58652100 | U22: 2022-06-17 | V22: 1.577 | W22: 365.859985 | X22: 202206 | Y22: 202106 | Z22: 2021-06-18 | AA22: 5 | AB22: 1 | AC22: 6.004 | AD22: 0.01641064955
A23: 8 | B23: 2024-03-06 | C23: 510.549988 | D23: 512.070007 | E23: 508.420013 | F23: 509.75 | G23: 68382400 | H23: 509.75 | I23: 1 | J23: 1 | K23: 510.55 | L23: 512.07 | M23: 508.42 | N23: 509.75 | O23: 68382400 | U23: 2022-03-18 | V23: 1.366 | W23: 444.519989 | X23: 202203 | Y23: 202103 | Z23: 2021-03-19 | AA23: 5 | AB23: 1 | AC23: 5.803 | AD23: 0.01305453105
A24: 9 | B24: 2024-03-05 | C24: 510.23999 | D24: 510.700012 | E24: 504.910004 | F24: 507.179993 | G24: 72855600 | H24: 507.179993 | I24: 1 | J24: 1 | K24: 510.24 | L24: 510.7 | M24: 504.91 | N24: 507.18 | O24: 72855600 | U24: 2021-12-17 | V24: 1.633 | W24: 459.869995 | X24: 202112 | Y24: 202012 | Z24: 2020-12-18 | AA24: 5 | AB24: 1 | AC24: 5.715 | AD24: 0.01242742528
A25: 10 | B25: 2024-03-04 | C25: 512.030029 | D25: 514.200012 | E25: 512 | F25: 512.299988 | G25: 49799300 | H25: 512.299988 | I25: 1 | J25: 1 | K25: 512.03 | L25: 514.2 | M25: 512 | N25: 512.3 | O25: 49799300 | U25: 2021-09-17 | V25: 1.428 | W25: 441.399994 | X25: 202109 | Y25: 202009 | Z25: 2020-09-18 | AA25: 5 | AB25: 1 | AC25: 5.662 | AD25: 0.01282736764
A26: 11 | B26: 2024-03-01 | C26: 508.980011 | D26: 513.289978 | E26: 508.559998 | F26: 512.849976 | G26: 76805900 | H26: 512.849976 | I26: 1 | J26: 1 | K26: 508.98 | L26: 513.29 | M26: 508.56 | N26: 512.85 | O26: 76805900 | U26: 2021-06-18 | V26: 1.376 | W26: 414.920013 | X26: 202106 | Y26: 202006 | Z26: 2020-06-19 | AA26: 5 | AB26: 1 | AC26: 5.573 | AD26: 0.01343150445
A27: 12 | B27: 2024-02-29 | C27: 508.070007 | D27: 509.73999 | E27: 505.350006 | F27: 508.079987 | G27: 83924800 | H27: 508.079987 | I27: 1 | J27: 1 | K27: 508.07 | L27: 509.74 | M27: 505.35 | N27: 508.08 | O27: 83924800 | U27: 2021-03-19 | V27: 1.278 | W27: 389.480011 | X27: 202103 | Y27: 202003 | Z27: 2020-03-20 | AA27: 5 | AB27: 1 | AC27: 5.563 | AD27: 0.01428314636
A28: 13 | B28: 2024-02-28 | C28: 505.329987 | D28: 506.859985 | E28: 504.959991 | F28: 506.26001 | G28: 56506600 | H28: 506.26001 | I28: 1 | J28: 1 | K28: 505.33 | L28: 506.86 | M28: 504.96 | N28: 506.26 | O28: 56506600 | U28: 2020-12-18 | V28: 1.58 | W28: 369.179993 | X28: 202012 | Y28: 201912 | Z28: 2019-12-20 | AA28: 5 | AB28: 1 | AC28: 5.691 | AD28: 0.01541524489
A29: 14 | B29: 2024-02-27 | C29: 506.700012 | D29: 507.160004 | E29: 504.75 | F29: 506.929993 | G29: 48854500 | H29: 506.929993 | I29: 1 | J29: 1 | K29: 506.7 | L29: 507.16 | M29: 504.75 | N29: 506.93 | O29: 48854500 | U29: 2020-09-18 | V29: 1.339 | W29: 330.649994 | X29: 202009 | Y29: 201909 | Z29: 2019-09-20 | AA29: 5 | AB29: 1 | AC29: 5.681 | AD29: 0.01718130985
A30: 15 | B30: 2024-02-26 | C30: 508.299988 | D30: 508.75 | E30: 505.859985 | F30: 505.98999 | G30: 50386700 | H30: 505.98999 | I30: 1 | J30: 1 | K30: 508.3 | L30: 508.75 | M30: 505.86 | N30: 505.99 | O30: 50386700 | U30: 2020-06-19 | V30: 1.366 | W30: 308.640015 | X30: 202006 | Y30: 201906 | Z30: 2019-06-21 | AA30: 5 | AB30: 1 | AC30: 5.726 | AD30: 0.01855235783
A31: 16 | B31: 2024-02-23 | C31: 509.269989 | D31: 510.130005 | E31: 507.100006 | F31: 507.850006 | G31: 61321800 | H31: 507.850006 | I31: 1 | J31: 1 | K31: 509.27 | L31: 510.13 | M31: 507.1 | N31: 507.85 | O31: 61321800 | U31: 2020-03-20 | V31: 1.406 | W31: 228.800003 | X31: 202003 | Y31: 201903 | Z31: 2019-03-15 | AA31: 5 | AB31: 1 | AC31: 5.792 | AD31: 0.02531468498
A32: 17 | B32: 2024-02-22 | C32: 504.01001 | D32: 508.48999 | E32: 503.019989 | F32: 507.5 | G32: 76402500 | H32: 507.5 | I32: 1 | J32: 1 | K32: 504.01 | L32: 508.49 | M32: 503.02 | N32: 507.5 | O32: 76402500 | U32: 2019-12-20 | V32: 1.57 | W32: 320.730011 | X32: 201912 | Y32: 201812 | Z32: 2018-12-21 | AA32: 5 | AB32: 1 | AC32: 5.619 | AD32: 0.01751940825
A33: 18 | B33: 2024-02-21 | C33: 495.420013 | D33: 497.369995 | E33: 493.559998 | F33: 497.209991 | G33: 59603800 | H33: 497.209991 | I33: 1 | J33: 1 | K33: 495.42 | L33: 497.37 | M33: 493.56 | N33: 497.21 | O33: 59603800 | U33: 2019-09-20 | V33: 1.384 | W33: 298.279999 | X33: 201909 | Y33: 201809 | Z33: 2018-09-21 | AA33: 5 | AB33: 1 | AC33: 5.484 | AD33: 0.01838540974
A34: 19 | B34: 2024-02-20 | C34: 497.720001 | D34: 498.410004 | E34: 494.450012 | F34: 496.76001 | G34: 71736700 | H34: 496.76001 | I34: 1 | J34: 1 | K34: 497.72 | L34: 498.41 | M34: 494.45 | N34: 496.76 | O34: 71736700 | U34: 2019-06-21 | V34: 1.432 | W34: 294 | X34: 201906 | Y34: 201806 | Z34: 2018-06-15 | AA34: 5 | AB34: 1 | AC34: 5.423 | AD34: 0.01844557823
A35: 20 | B35: 2024-02-16 | C35: 501.700012 | D35: 502.869995 | E35: 498.75 | F35: 499.51001 | G35: 75461200 | H35: 499.51001 | I35: 1 | J35: 1 | K35: 501.7 | L35: 502.87 | M35: 498.75 | N35: 499.51 | O35: 75461200 | U35: 2019-03-15 | V35: 1.233 | W35: 281.309998 | X35: 201903 | Y35: 201803 | Z35: 2018-03-16 | AA35: 5 | AB35: 1 | AC35: 5.237 | AD35: 0.01861647306
A36: 21 | B36: 2024-02-15 | C36: 499.290009 | D36: 502.200012 | E36: 498.799988 | F36: 502.01001 | G36: 61683000 | H36: 502.01001 | I36: 1 | J36: 1 | K36: 499.29 | L36: 502.2 | M36: 498.8 | N36: 502.01 | O36: 61683000 | U36: 2018-12-21 | V36: 1.435 | W36: 240.699997 | X36: 201812 | Y36: 201712 | Z36: 2017-12-15 | AA36: 5 | AB36: 1 | AC36: 5.101 | AD36: 0.02119235589
A37: 22 | B37: 2024-02-14 | C37: 496.790009 | D37: 499.070007 | E37: 494.399994 | F37: 498.570007 | G37: 68387800 | H37: 498.570007 | I37: 1 | J37: 1 | K37: 496.79 | L37: 499.07 | M37: 494.4 | N37: 498.57 | O37: 68387800 | U37: 2018-09-21 | V37: 1.323 | W37: 291.98999 | X37: 201809 | Y37: 201709 | Z37: 2017-09-15 | AA37: 5 | AB37: 1 | AC37: 5.017 | AD37: 0.01718209587
A38: 23 | B38: 2024-02-13 | C38: 494.529999 | D38: 497.089996 | E38: 490.720001 | F38: 494.079987 | G38: 113099200 | H38: 494.079987 | I38: 1 | J38: 1 | K38: 494.53 | L38: 497.09 | M38: 490.72 | N38: 494.08 | O38: 113099200 | U38: 2018-06-15 | V38: 1.246 | W38: 277.130005 | X38: 201806 | Y38: 201706 | Z38: 2017-06-16 | AA38: 5 | AB38: 1 | AC38: 4.929 | AD38: 0.01778587634
A39: 24 | B39: 2024-02-12 | C39: 501.170013 | D39: 503.5 | E39: 500.23999 | F39: 500.980011 | G39: 56502300 | H39: 500.980011 | I39: 1 | J39: 1 | K39: 501.17 | L39: 503.5 | M39: 500.24 | N39: 500.98 | O39: 56502300 | U39: 2018-03-16 | V39: 1.097 | W39: 274.200012 | X39: 201803 | Y39: 201703 | Z39: 2017-03-17 | AA39: 5 | AB39: 1 | AC39: 4.866 | AD39: 0.0177461699
A40: 25 | B40: 2024-02-09 | C40: 498.839996 | D40: 501.649994 | E40: 498.48999 | F40: 501.200012 | G40: 63979400 | H40: 501.200012 | I40: 1 | J40: 1 | K40: 498.84 | L40: 501.65 | M40: 498.49 | N40: 501.2 | O40: 63979400 | U40: 2017-12-15 | V40: 1.351 | W40: 266.51001 | X40: 201712 | Y40: 201612 | Z40: 2016-12-16 | AA40: 5 | AB40: 1 | AC40: 4.802 | AD40: 0.01801808495
A41: 26 | B41: 2024-02-08 | C41: 498.100006 | D41: 498.709991 | E41: 497.26001 | F41: 498.320007 | G41: 52343600 | H41: 498.320007 | I41: 1 | J41: 1 | K41: 498.1 | L41: 498.71 | M41: 497.26 | N41: 498.32 | O41: 52343600 | U41: 2017-09-15 | V41: 1.235 | W41: 249.190002 | X41: 201709 | Y41: 201609 | Z41: 2016-09-16 | AA41: 5 | AB41: 1 | AC41: 4.78 | AD41: 0.01918215001
A42: 27 | B42: 2024-02-07 | C42: 496.290009 | D42: 498.529999 | E42: 495.359985 | F42: 498.100006 | G42: 70556500 | H42: 498.100006 | I42: 1 | J42: 1 | K42: 496.29 | L42: 498.53 | M42: 495.36 | N42: 498.1 | O42: 70556500 | U42: 2017-06-16 | V42: 1.183 | W42: 242.639999 | X42: 201706 | Y42: 201606 | Z42: 2016-06-17 | AA42: 5 | AB42: 1 | AC42: 4.627 | AD42: 0.01906940331
A43: 28 | B43: 2024-02-06 | C43: 493.519989 | D43: 494.320007 | E43: 492.049988 | F43: 493.980011 | G43: 55918600 | H43: 493.980011 | I43: 1 | J43: 1 | K43: 493.52 | L43: 494.32 | M43: 492.05 | N43: 493.98 | O43: 55918600 | U43: 2017-03-17 | V43: 1.033 | W43: 237.029999 | X43: 201703 | Y43: 201603 | Z43: 2016-03-18 | AA43: 5 | AB43: 1 | AC43: 4.522 | AD43: 0.01907775395
A44: 29 | B44: 2024-02-05 | C44: 493.700012 | D44: 494.380005 | E44: 490.230011 | F44: 492.549988 | G44: 75757100 | H44: 492.549988 | I44: 1 | J44: 1 | K44: 493.7 | L44: 494.38 | M44: 490.23 | N44: 492.55 | O44: 75757100 | U44: 2016-12-16 | V44: 1.329 | W44: 225.039993 | X44: 201612 | Y44: 201512 | Z44: 2015-12-18 | AA44: 5 | AB44: 1 | AC44: 4.539 | AD44: 0.02016974823
A45: 30 | B45: 2024-02-02 | C45: 489.649994 | D45: 496.049988 | E45: 489.299988 | F45: 494.350006 | G45: 99147700 | H45: 494.350006 | I45: 1 | J45: 1 | K45: 489.65 | L45: 496.05 | M45: 489.3 | N45: 494.35 | O45: 99147700 | U45: 2016-09-16 | V45: 1.082 | W45: 213.369995 | X45: 201609 | Y45: 201509 | Z45: 2015-09-18 | AA45: 5 | AB45: 1 | AC45: 4.422 | AD45: 0.02072456345
A46: 31 | B46: 2024-02-01 | C46: 484.630005 | D46: 489.230011 | E46: 483.799988 | F46: 489.200012 | G46: 91891600 | H46: 489.200012 | I46: 1 | J46: 1 | K46: 484.63 | L46: 489.23 | M46: 483.8 | N46: 489.2 | O46: 91891600 | U46: 2016-06-17 | V46: 1.078 | W46: 206.520004 | X46: 201606 | Y46: 201506 | Z46: 2015-06-19 | AA46: 5 | AB46: 1 | AC46: 4.373 | AD46: 0.02117470422
A47: 32 | B47: 2024-01-31 | C47: 488.619995 | D47: 489.079987 | E47: 482.859985 | F47: 482.880005 | G47: 126011100 | H47: 482.880005 | I47: 1 | J47: 1 | K47: 488.62 | L47: 489.08 | M47: 482.86 | N47: 482.88 | O47: 126011100 | U47: 2016-03-18 | V47: 1.05 | W47: 204.380005 | X47: 201603 | Y47: 201503 | Z47: 2015-03-20 | AA47: 5 | AB47: 1 | AC47: 4.325 | AD47: 0.02116156128
A48: 33 | B48: 2024-01-30 | C48: 490.559998 | D48: 491.619995 | E48: 490.109985 | F48: 490.890015 | G48: 58618400 | H48: 490.890015 | I48: 1 | J48: 1 | K48: 490.56 | L48: 491.62 | M48: 490.11 | N48: 490.89 | O48: 58618400 | U48: 2015-12-18 | V48: 1.212 | W48: 200.020004 | X48: 201512 | Y48: 201412 | Z48: 2014-12-19 | AA48: 5 | AB48: 1 | AC48: 4.206 | AD48: 0.02102789679
A49: 34 | B49: 2024-01-29 | C49: 487.730011 | D49: 491.420013 | E49: 487.170013 | F49: 491.269989 | G49: 61322800 | H49: 491.269989 | I49: 1 | J49: 1 | K49: 487.73 | L49: 491.42 | M49: 487.17 | N49: 491.27 | O49: 61322800 | U49: 2015-09-18 | V49: 1.033 | W49: 195.449997 | X49: 201509 | Y49: 201409 | Z49: 2014-09-19 | AA49: 5 | AB49: 1 | AC49: 4.129 | AD49: 0.0211256079
A50: 35 | B50: 2024-01-26 | C50: 487.589996 | D50: 489.119995 | E50: 486.540009 | F50: 487.410004 | G50: 76641600 | H50: 487.410004 | I50: 1 | J50: 1 | K50: 487.59 | L50: 489.12 | M50: 486.54 | N50: 487.41 | O50: 76641600 | U50: 2015-06-19 | V50: 1.03 | W50: 210.809998 | X50: 201506 | Y50: 201406 | Z50: 2014-06-20 | AA50: 5 | AB50: 1 | AC50: 4.035 | AD50: 0.01914045841
A51: 36 | B51: 2024-01-25 | C51: 487.579987 | D51: 488.309998 | E51: 485.390015 | F51: 488.029999 | G51: 72525000 | H51: 488.029999 | I51: 1 | J51: 1 | K51: 487.58 | L51: 488.31 | M51: 485.39 | N51: 488.03 | O51: 72525000 | U51: 2015-03-20 | V51: 0.931 | W51: 210.410004 | X51: 201503 | Y51: 201403 | Z51: 2014-03-21 | AA51: 5 | AB51: 1 | AC51: 3.942 | AD51: 0.01873485065
A52: 37 | B52: 2024-01-24 | C52: 487.809998 | D52: 488.769989 | E52: 484.880005 | F52: 485.390015 | G52: 81765000 | H52: 485.390015 | I52: 1 | J52: 1 | K52: 487.81 | L52: 488.77 | M52: 484.88 | N52: 485.39 | O52: 81765000 | U52: 2014-12-19 | V52: 1.135 | W52: 206.520004 | X52: 201412 | Y52: 201312 | Z52: 2013-12-20 | AA52: 5 | AB52: 1 | AC52: 3.836 | AD52: 0.01857447185
A53: 38 | B53: 2024-01-23 | C53: 484.01001 | D53: 485.109985 | E53: 482.890015 | F53: 484.859985 | G53: 49945300 | H53: 484.859985 | I53: 1 | J53: 1 | K53: 484.01 | L53: 485.11 | M53: 482.89 | N53: 484.86 | O53: 49945300 | U53: 2014-09-19 | V53: 0.939 | W53: 200.699997 | X53: 201409 | Y53: 201309 | Z53: 2013-09-20 | AA53: 5 | AB53: 1 | AC53: 3.681 | AD53: 0.01834080745
A54: 39 | B54: 2024-01-22 | C54: 484.01001 | D54: 485.220001 | E54: 482.779999 | F54: 483.450012 | G54: 75844900 | H54: 483.450012 | I54: 1 | J54: 1 | K54: 484.01 | L54: 485.22 | M54: 482.78 | N54: 483.45 | O54: 75844900 | U54: 2014-06-20 | V54: 0.937 | W54: 195.940002 | X54: 201406 | Y54: 201306 | Z54: 2013-06-21 | AA54: 5 | AB54: 1 | AC54: 3.58 | AD54: 0.01827089907
A55: 40 | B55: 2024-01-19 | C55: 477.649994 | D55: 482.720001 | E55: 476.540009 | F55: 482.429993 | G55: 110733300 | H55: 482.429993 | I55: 1 | J55: 1 | K55: 477.65 | L55: 482.72 | M55: 476.54 | N55: 482.43 | O55: 110733300 | U55: 2014-03-21 | V55: 0.825 | W55: 186.199997 | X55: 201403 | Y55: 201303 | Z55: 2013-03-15 | AA55: 5 | AB55: 1 | AC55: 3.482 | AD55: 0.01870032254
A56: 41 | B56: 2024-01-18 | C56: 474.01001 | D56: 477.059998 | E56: 472.420013 | F56: 476.48999 | G56: 91856200 | H56: 476.48999 | I56: 1 | J56: 1 | K56: 474.01 | L56: 477.06 | M56: 472.42 | N56: 476.49 | O56: 91856200 | U56: 2013-12-20 | V56: 0.98 | W56: 181.559998 | X56: 201312 | Y56: 201212 | Z56: 2012-12-21 | AA56: 5 | AB56: 1 | AC56: 3.351 | AD56: 0.01845670873
A57: 42 | B57: 2024-01-17 | C57: 471.820007 | D57: 472.790009 | E57: 469.869995 | F57: 472.290009 | G57: 68843900 | H57: 472.290009 | I57: 1 | J57: 1 | K57: 471.82 | L57: 472.79 | M57: 469.87 | N57: 472.29 | O57: 68843900 | U57: 2013-09-20 | V57: 0.838 | W57: 170.720001 | X57: 201309 | Y57: 201209 | Z57: 2012-09-21 | AA57: 5 | AB57: 1 | AC57: 3.393 | AD57: 0.01987464843
A58: 43 | B58: 2024-01-16 | C58: 475.26001 | D58: 476.609985 | E58: 473.059998 | F58: 474.929993 | G58: 85014900 | H58: 474.929993 | I58: 1 | J58: 1 | K58: 475.26 | L58: 476.61 | M58: 473.06 | N58: 474.93 | O58: 85014900 | U58: 2013-06-21 | V58: 0.839 | W58: 159.070007 | X58: 201306 | Y58: 201206 | Z58: 2012-06-15 | AA58: 5 | AB58: 1 | AC58: 3.334 | AD58: 0.02095932516
A59: 44 | B59: 2024-01-12 | C59: 477.839996 | D59: 478.600006 | E59: 475.230011 | F59: 476.679993 | G59: 57944000 | H59: 476.679993 | I59: 1 | J59: 1 | K59: 477.84 | L59: 478.6 | M59: 475.23 | N59: 476.68 | O59: 57944000 | U59: 2013-03-15 | V59: 0.694 | W59: 155.830002 | X59: 201303 | Y59: 201203 | Z59: 2012-03-16 | AA59: 5 | AB59: 1 | AC59: 3.183 | AD59: 0.02042610511
A60: 45 | B60: 2024-01-11 | C60: 477.589996 | D60: 478.119995 | E60: 472.26001 | F60: 476.350006 | G60: 77940700 | H60: 476.350006 | I60: 1 | J60: 1 | K60: 477.59 | L60: 478.12 | M60: 472.26 | N60: 476.35 | O60: 77940700 | U60: 2012-12-21 | V60: 1.022 | W60: 142.789993 | X60: 201212 | Y60: 201112 | Z60: 2011-12-16 | AA60: 5 | AB60: 1 | AC60: 3.103 | AD60: 0.02173121474
A61: 46 | B61: 2024-01-10 | C61: 474.160004 | D61: 477.450012 | E61: 473.869995 | F61: 476.559998 | G61: 67310600 | H61: 476.559998 | I61: 1 | J61: 1 | K61: 474.16 | L61: 477.45 | M61: 473.87 | N61: 476.56 | O61: 67310600 | U61: 2012-09-21 | V61: 0.779 | W61: 145.869995 | X61: 201209 | Y61: 201109 | Z61: 2011-09-16 | AA61: 5 | AB61: 1 | AC61: 2.851 | AD61: 0.01954480083
A62: 47 | B62: 2024-01-09 | C62: 471.869995 | D62: 474.929993 | E62: 471.350006 | F62: 473.880005 | G62: 65931400 | H62: 473.880005 | I62: 1 | J62: 1 | K62: 471.87 | L62: 474.93 | M62: 471.35 | N62: 473.88 | O62: 65931400 | U62: 2012-06-15 | V62: 0.688 | W62: 134.139999 | X62: 201206 | Y62: 201106 | Z62: 2011-06-17 | AA62: 5 | AB62: 1 | AC62: 2.697 | AD62: 0.0201058597
A63: 48 | B63: 2024-01-08 | C63: 468.429993 | D63: 474.75 | E63: 468.299988 | F63: 474.600006 | G63: 74879100 | H63: 474.600006 | I63: 1 | J63: 1 | K63: 468.43 | L63: 474.75 | M63: 468.3 | N63: 474.6 | O63: 74879100 | U63: 2012-03-16 | V63: 0.614 | W63: 140.300003 | X63: 201203 | Y63: 201103 | Z63: 2011-03-18 | AA63: 5 | AB63: 1 | AC63: 2.637 | AD63: 0.01879543794
A64: 49 | B64: 2024-01-05 | C64: 467.48999 | D64: 470.440002 | E64: 466.429993 | F64: 467.920013 | G64: 86060800 | H64: 467.920013 | I64: 1 | J64: 1 | K64: 467.49 | L64: 470.44 | M64: 466.43 | N64: 467.92 | O64: 86060800 | U64: 2011-12-16 | V64: 0.77 | W64: 121.589996 | X64: 201112 | Y64: 201012 | Z64: 2010-12-17 | AA64: 5 | AB64: 1 | AC64: 2.576 | AD64: 0.02118595349
A65: 50 | B65: 2024-01-04 | C65: 468.299988 | D65: 470.959991 | E65: 467.049988 | F65: 467.279999 | G65: 84232200 | H65: 467.279999 | I65: 1 | J65: 1 | K65: 468.3 | L65: 470.96 | M65: 467.05 | N65: 467.28 | O65: 84232200 | U65: 2011-09-16 | V65: 0.625 | W65: 121.519997 | X65: 201109 | Y65: 201009 | Z65: 2010-09-17 | AA65: 5 | AB65: 1 | AC65: 2.459 | AD65: 0.0202353527
A66: 51 | B66: 2024-01-03 | C66: 470.429993 | D66: 471.190002 | E66: 468.170013 | F66: 468.790009 | G66: 103585900 | H66: 468.790009 | I66: 1 | J66: 1 | K66: 470.43 | L66: 471.19 | M66: 468.17 | N66: 468.79 | O66: 103585900 | U66: 2011-06-17 | V66: 0.628 | W66: 127.050003 | X66: 201106 | Y66: 201006 | Z66: 2010-06-18 | AA66: 5 | AB66: 1 | AC66: 2.436 | AD66: 0.01917355327
A67: 52 | B67: 2024-01-02 | C67: 472.160004 | D67: 473.670013 | E67: 470.48999 | F67: 472.649994 | G67: 123623700 | H67: 472.649994 | I67: 1 | J67: 1 | K67: 472.16 | L67: 473.67 | M67: 470.49 | N67: 472.65 | O67: 123623700 | U67: 2011-03-18 | V67: 0.553 | W67: 127.760002 | X67: 201103 | Y67: 201003 | Z67: 2010-03-19 | AA67: 5 | AB67: 1 | AC67: 2.339 | AD67: 0.01830776427
A68: 53 | B68: 2023-12-29 | C68: 476.48999 | D68: 477.029999 | E68: 473.299988 | F68: 475.309998 | G68: 122234100 | H68: 475.309998 | I68: 1 | J68: 1 | K68: 476.49 | L68: 477.03 | M68: 473.3 | N68: 475.31 | O68: 122234100 | U68: 2010-12-17 | V68: 0.653 | W68: 124.300003 | X68: 201012 | Y68: 200912 | Z68: 2009-12-18 | AA68: 5 | AB68: 1 | AC68: 2.266 | AD68: 0.01823008806
A69: 54 | B69: 2023-12-28 | C69: 476.880005 | D69: 477.549988 | E69: 476.26001 | F69: 476.690002 | G69: 77158100 | H69: 476.690002 | I69: 1 | J69: 1 | K69: 476.88 | L69: 477.55 | M69: 476.26 | N69: 476.69 | O69: 77158100 | U69: 2010-09-17 | V69: 0.602 | W69: 112.489998 | X69: 201009 | Y69: 200909 | Z69: 2009-09-18 | AA69: 5 | AB69: 1 | AC69: 2.203 | AD69: 0.01958396337
A70: 55 | B70: 2023-12-27 | C70: 475.440002 | D70: 476.660004 | E70: 474.890015 | F70: 476.51001 | G70: 68000300 | H70: 476.51001 | I70: 1 | J70: 1 | K70: 475.44 | L70: 476.66 | M70: 474.89 | N70: 476.51 | O70: 68000300 | U70: 2010-06-18 | V70: 0.531 | W70: 111.730003 | X70: 201006 | Y70: 200906 | Z70: 2009-06-19 | AA70: 5 | AB70: 1 | AC70: 2.109 | AD70: 0.01887586094
A71: 56 | B71: 2023-12-26 | C71: 474.070007 | D71: 476.579987 | E71: 473.98999 | F71: 475.649994 | G71: 55387000 | H71: 475.649994 | I71: 1 | J71: 1 | K71: 474.07 | L71: 476.58 | M71: 473.99 | N71: 475.65 | O71: 55387000 | U71: 2010-03-19 | V71: 0.48 | W71: 115.970001 | X71: 201003 | Y71: 200903 | Z71: 2009-03-20 | AA71: 5 | AB71: 1 | AC71: 2.096 | AD71: 0.01807363958
A72: 57 | B72: 2023-12-22 | C72: 473.859985 | D72: 475.380005 | E72: 471.700012 | F72: 473.649994 | G72: 67126600 | H72: 473.649994 | I72: 1 | J72: 1 | K72: 473.86 | L72: 475.38 | M72: 471.7 | N72: 473.65 | O72: 67126600 | U72: 2009-12-18 | V72: 0.59 | W72: 110.209999 | X72: 200912 | Y72: 200812 | Z72: 2008-12-19 | AA72: 5 | AB72: 1 | AC72: 2.177 | AD72: 0.01975319862
A73: 58 | B73: 2023-12-21 | C73: 471.329987 | D73: 472.980011 | E73: 468.839996 | F73: 472.700012 | G73: 86667500 | H73: 472.700012 | I73: 1 | J73: 1 | K73: 471.33 | L73: 472.98 | M73: 468.84 | N73: 472.7 | O73: 86667500 | U73: 2009-09-18 | V73: 0.508 | W73: 106.720001 | X73: 200909 | Y73: 200809 | Z73: 2008-09-19 | AA73: 5 | AB73: 1 | AC73: 2.306 | AD73: 0.02160794582
A74: 59 | B74: 2023-12-20 | C74: 473.959991 | D74: 475.899994 | E74: 467.820007 | F74: 468.26001 | G74: 102921000 | H74: 468.26001 | I74: 1 | J74: 1 | K74: 473.96 | L74: 475.9 | M74: 467.82 | N74: 468.26 | O74: 102921000 | U74: 2009-06-19 | V74: 0.518 | W74: 92.040001 | X74: 200906 | Y74: 200806 | Z74: 2008-06-20 | AA74: 5 | AB74: 1 | AC74: 2.489 | AD74: 0.02704258988
A75: 60 | B75: 2023-12-19 | C75: 472.529999 | D75: 474.920013 | E75: 472.450012 | F75: 474.839996 | G75: 55761800 | H75: 474.839996 | I75: 1 | J75: 1 | K75: 472.53 | L75: 474.92 | M75: 472.45 | N75: 474.84 | O75: 55761800 | U75: 2009-03-20 | V75: 0.561 | W75: 76.709999 | X75: 200903 | Y75: 200803 | Z75: 2008-03-20 | AA75: 5 | AB75: 1 | AC75: 2.64 | AD75: 0.03441533091
A76: 61 | B76: 2023-12-18 | C76: 470.980011 | D76: 472.980011 | E76: 469.890015 | F76: 471.970001 | G76: 70375300 | H76: 471.970001 | I76: 1 | J76: 1 | K76: 470.98 | L76: 472.98 | M76: 469.89 | N76: 471.97 | O76: 70375300 | U76: 2008-12-19 | V76: 0.719 | W76: 88.190002 | X76: 200812 | Y76: 200712 | Z76: 2007-12-21 | AA76: 5 | AB76: 1 | AC76: 2.721 | AD76: 0.0308538376
A77: 62 | B77: 2023-12-15 | C77: 469.48999 | D77: 470.700012 | E77: 467.429993 | F77: 469.329987 | G77: 141319300 | H77: 469.329987 | I77: 1 | J77: 1 | K77: 469.49 | L77: 470.7 | M77: 467.43 | N77: 469.33 | O77: 141319300 | U77: 2008-09-19 | V77: 0.691 | W77: 124.120003 | X77: 200809 | Y77: 200709 | Z77: 2007-09-21 | AA77: 5 | AB77: 1 | AC77: 2.777 | AD77: 0.02237350897
A78: 63 | B78: 2023-12-14 | C78: 472.5 | D78: 473.730011 | E78: 469.25 | F78: 472.01001 | G78: 119026000 | H78: 470.104004 | I78: 0.9959619373 | J78: 1 | K78: 470.59 | L78: 471.82 | M78: 467.36 | N78: 470.1 | O78: 119026000 | U78: 2008-06-20 | V78: 0.669 | W78: 131.580002 | X78: 200806 | Y78: 200706 | Z78: 2007-06-15 | AA78: 5 | AB78: 1 | AC78: 2.805 | AD78: 0.02131782913
A79: 64 | B79: 2023-12-13 | C79: 464.48999 | D79: 470.76001 | E79: 464.119995 | F79: 470.5 | G79: 93278000 | H79: 468.600098 | I79: 0.9959619511 | J79: 1 | K79: 462.61 | L79: 468.86 | M79: 462.25 | N79: 468.6 | O79: 93278000 | U79: 2008-03-20 | V79: 0.642 | W79: 132.080002 | X79: 200803 | Y79: 200703 | Z79: 2007-03-16 | AA79: 5 | AB79: 1 | AC79: 2.792 | AD79: 0.0211387035
A80: 65 | B80: 2023-12-12 | C80: 461.630005 | D80: 464.200012 | E80: 460.600006 | F80: 464.100006 | G80: 68327600 | H80: 462.225952 | I80: 0.9959619608 | J80: 1 | K80: 459.77 | L80: 462.33 | M80: 458.74 | N80: 462.23 | O80: 68327600 | U80: 2007-12-21 | V80: 0.775 | W80: 148.130005 | X80: 200712 | Y80: 200612 | Z80: 2006-12-15 | AA80: 5 | AB80: 1 | AC80: 2.701 | AD80: 0.01823398305
A81: 66 | B81: 2023-12-11 | C81: 459.690002 | D81: 462.170013 | E81: 459.470001 | F81: 461.98999 | G81: 65002200 | H81: 460.124451 | I81: =IF(F81=0,1,H81/F81) -> 0.9959619493 | J81: =INDEX(OFFSET($T$15,0,0,$S$13+1,1),MATCH(B81,OFFSET($Q$15,0,0,$S$13+1,1),-1)) -> 1 | K81: =ROUND($I81*C81,2) -> 457.83 | L81: =ROUND($I81*D81,2) -> 460.3 | M81: =ROUND($I81*E81,2) -> 457.61 | N81: =ROUND($I81*F81,2) -> 460.12 | O81: =G81*J81 -> 65002200 | U81: 2007-09-21 | V81: 0.719 | W81: =(INDEX(OFFSET($F$15,1,0,$B$10,1),MATCH(U81,OFFSET($B$15,1,0,$B$10,1),-1))) -> 151.970001 | X81: =YEAR(U81)&RIGHT("0"&MONTH(U81),2) -> 200709 | Y81: =YEAR(U81)-1&RIGHT("0"&MONTH(U81),2) -> 200609 | Z81: =OFFSET(U80,AA81,0,1,1) -> 2006-09-15 | AA81: =MATCH(Y81,OFFSET($X$15,A81,0,$V$14+1-A81,1),-1) -> 5 | AB81: =IF(OR(AND(YEAR(U81)=YEAR(Z81),MONTH(U81)=MONTH(Z81)),MONTH(U81)=MONTH(Z81)),1,0) -> 1 | AC81: =(V81+IF(AA81-AB81=0,0,IFERROR(SUM(OFFSET(V81,1,0,AA81-AB81-1,1)),0))) -> 2.719 | AD81: =AC81/(INDEX(OFFSET($F$15,1,0,$B$10,1),MATCH(U81,OFFSET($B$15,1,0,$B$10,1),-1))) -> 0.01789168903
A82: 67 | B82: 2023-12-08 | C82: 457.459991 | D82: 460.75 | E82: 457.209991 | F82: 460.200012 | G82: 83080900 | H82: 458.341705 | I82: 0.9959619579 | J82: 1 | K82: 455.61 | L82: 458.89 | M82: 455.36 | N82: 458.34 | O82: 83080900 | U82: 2007-06-15 | V82: 0.656 | W82: 153.070007 | X82: 200706 | Y82: 200606 | Z82: 2006-06-16 | AA82: 5 | AB82: 1 | AC82: 2.579 | AD82: 0.01684849992
A83: 68 | B83: 2023-12-07 | C83: 456.910004 | D83: 458.899994 | E83: 456.290009 | F83: 458.230011 | G83: 66995400 | H83: 456.379669 | I83: 0.9959619799 | J83: 1 | K83: 455.06 | L83: 457.05 | M83: 454.45 | N83: 456.38 | O83: 66995400 | U83: 2007-03-16 | V83: 0.551 | W83: 138.529999 | X83: 200703 | Y83: 200603 | Z83: 2006-03-17 | AA83: 5 | AB83: 1 | AC83: 2.478 | AD83: 0.01788782226
A84: 69 | B84: 2023-12-06 | C84: 458.809998 | D84: 458.839996 | E84: 454.309998 | F84: 454.76001 | G84: 69124700 | H84: 452.923676 | I84: 0.9959619712 | J84: 1 | K84: 456.96 | L84: 456.99 | M84: 452.48 | N84: 452.92 | O84: 69124700 | U84: 2006-12-15 | V84: 0.793 | W84: 142.339996 | X84: 200612 | Y84: 200512 | Z84: 2005-12-16 | AA84: 5 | AB84: 1 | AC84: 2.446 | AD84: 0.01718420731
A85: 70 | B85: 2023-12-05 | C85: 455.26001 | D85: 457.589996 | E85: 454.869995 | F85: 456.600006 | G85: 69793500 | H85: 454.756226 | I85: 0.9959619361 | J85: 1 | K85: 453.42 | L85: 455.74 | M85: 453.03 | N85: 454.76 | O85: 69793500 | U85: 2006-09-15 | V85: 0.579 | W85: 131.960007 | X85: 200609 | Y85: 200509 | Z85: 2005-09-16 | AA85: 5 | AB85: 1 | AC85: 2.325 | AD85: 0.01761897451
A86: 71 | B86: 2023-12-04 | C86: 455.600006 | D86: 459.119995 | E86: 454.339996 | F86: 456.690002 | G86: 72430900 | H86: 454.845886 | I86: 0.9959619961 | J86: 1 | K86: 453.76 | L86: 457.27 | M86: 452.51 | N86: 454.85 | O86: 72430900 | U86: 2006-06-16 | V86: 0.555 | W86: 124.650002 | X86: 200606 | Y86: 200506 | Z86: 2005-06-17 | AA86: 5 | AB86: 1 | AC86: 2.268 | AD86: 0.01819494556
A87: 72 | B87: 2023-12-01 | C87: 455.769989 | D87: 459.649994 | E87: 455.160004 | F87: 459.100006 | G87: 89097900 | H87: 457.246155 | I87: 0.9959619887 | J87: 1 | K87: 453.93 | L87: 457.79 | M87: 453.32 | N87: 457.25 | O87: 89097900 | U87: 2006-03-17 | V87: 0.519 | W87: 130.619995 | X87: 200603 | Y87: 200503 | Z87: 2005-03-18 | AA87: 5 | AB87: 1 | AC87: 2.201 | AD87: 0.0168504064
A88: 73 | B88: 2023-11-30 | C88: 455.480011 | D88: 456.76001 | E88: 453.339996 | F88: 456.399994 | G88: 79752700 | H88: 454.557037 | I88: 0.9959619697 | J88: 1 | K88: 453.64 | L88: 454.92 | M88: 451.51 | N88: 454.56 | O88: 79752700 | U88: 2005-12-16 | V88: 0.672 | W88: 126.360001 | X88: 200512 | Y88: 200412 | Z88: 2004-12-17 | AA88: 5 | AB88: 1 | AC88: 2.149 | AD88: 0.01700696409
A89: 74 | B89: 2023-11-29 | C89: 457.149994 | D89: 458.320007 | E89: 454.200012 | F89: 454.609985 | G89: 63146000 | H89: 452.774261 | I89: 0.9959619805 | J89: 1 | K89: 455.3 | L89: 456.47 | M89: 452.37 | N89: 452.77 | O89: 63146000 | U89: 2005-09-16 | V89: 0.522 | W89: 123.5 | X89: 200509 | Y89: 200409 | Z89: 2004-09-17 | AA89: 6 | AB89: 1 | AC89: 2.396 | AD89: 0.01940080972
A90: 75 | B90: 2023-11-28 | C90: 454.079987 | D90: 456.269989 | E90: 453.5 | F90: 454.929993 | G90: 62115000 | H90: 453.092957 | I90: 0.9959619369 | J90: 1 | K90: 452.25 | L90: 454.43 | M90: 451.67 | N90: 453.09 | O90: 62115000 | U90: 2005-06-17 | V90: 0.488 | W90: 121.360001 | X90: 200506 | Y90: 200406 | Z90: 2004-06-18 | AA90: 6 | AB90: 1 | AC90: 2.343 | AD90: 0.01930619628
A91: 76 | B91: 2023-11-27 | C91: 454.649994 | D91: 455.48999 | E91: 454.079987 | F91: 454.480011 | G91: 50506000 | H91: 452.644806 | I91: 0.9959619676 | J91: 1 | K91: 452.81 | L91: 453.65 | M91: 452.25 | N91: 452.64 | O91: 50506000 | U91: 2005-03-18 | V91: 0.467 | W91: 118.540001 | X91: 200503 | Y91: 200403 | Z91: 2004-03-19 | AA91: 6 | AB91: 1 | AC91: 2.269 | AD91: 0.01914121799
A92: 77 | B92: 2023-11-24 | C92: 455.070007 | D92: 455.5 | E92: 454.730011 | F92: 455.299988 | G92: 29737400 | H92: 453.461456 | I92: 0.9959619327 | J92: 1 | K92: 453.23 | L92: 453.66 | M92: 452.89 | N92: 453.46 | O92: 29737400 | U92: 2004-12-17 | V92: 0.568 | W92: 119.440002 | X92: 200412 | Y92: 200312 | Z92: 2003-12-19 | AA92: 6 | AB92: 1 | AC92: 2.197 | AD92: 0.0183941725
A93: 78 | B93: 2023-11-22 | C93: 454.980011 | D93: 456.380005 | E93: 453.890015 | F93: 455.019989 | G93: 59394900 | H93: 453.182617 | I93: 0.9959619972 | J93: 1 | K93: 453.14 | L93: 454.54 | M93: 452.06 | N93: 453.18 | O93: 59394900 | U93: 2004-11-15 | V93: 0.351 | W93: 118.730003 | X93: 200411 | Y93: 200311 | Z93: 2003-12-19 | AA93: 5 | AB93: 0 | AC93: 2.145 | AD93: 0.01806620017
A94: 79 | B94: 2023-11-21 | C94: 453.179993 | D94: 454.130005 | E94: 451.959991 | F94: 453.269989 | G94: 49244600 | H94: 451.439667 | I94: 0.9959619608 | J94: 1 | K94: 451.35 | L94: 452.3 | M94: 450.13 | N94: 451.44 | O94: 49244600 | U94: 2004-09-17 | V94: 0.469 | W94: 113.150002 | X94: 200409 | Y94: 200309 | Z94: 2003-09-19 | AA94: 5 | AB94: 1 | AC94: 1.794 | AD94: 0.01585505938
A95: 80 | B95: 2023-11-20 | C95: 450.529999 | D95: 455.130005 | E95: 450.519989 | F95: 454.26001 | G95: 69936200 | H95: 452.42569 | I95: 0.9959619602 | J95: 1 | K95: 448.71 | L95: 453.29 | M95: 448.7 | N95: 452.43 | O95: 69936200 | U95: 2004-06-18 | V95: 0.414 | W95: 113.629997 | X95: 200406 | Y95: 200306 | Z95: 2003-06-20 | AA95: 5 | AB95: 1 | AC95: 1.725 | AD95: 0.01518085053
A96: 81 | B96: 2023-11-17 | C96: 450.23999 | D96: 451.420013 | E96: 449.290009 | F96: 450.790009 | G96: 83133200 | H96: 448.969696 | I96: 0.9959619491 | J96: 1 | K96: 448.42 | L96: 449.6 | M96: 447.48 | N96: 448.97 | O96: 83133200 | U96: 2004-03-19 | V96: 0.395 | W96: 111.059998 | X96: 200403 | Y96: 200303 | Z96: 2003-03-21 | AA96: 5 | AB96: 1 | AC96: 1.671 | AD96: 0.01504592139
A97: 82 | B97: 2023-11-16 | C97: 449.220001 | D97: 450.559998 | E97: 448.119995 | F97: 450.230011 | G97: 66665800 | H97: 448.411957 | I97: 0.995961944 | J97: 1 | K97: 447.41 | L97: 448.74 | M97: 446.31 | N97: 448.41 | O97: 66665800 | U97: 2003-12-19 | V97: 0.516 | W97: 108.900002 | X97: 200312 | Y97: 200212 | Z97: 2002-12-20 | AA97: 5 | AB97: 1 | AC97: 1.63 | AD97: 0.01496786015
A98: 83 | B98: 2023-11-15 | C98: 450.109985 | D98: 451.380005 | E98: 448.799988 | F98: 449.679993 | G98: 77327600 | H98: 447.864166 | I98: 0.9959619573 | J98: 1 | K98: 448.29 | L98: 449.56 | M98: 446.99 | N98: 447.86 | O98: 77327600 | U98: 2003-09-19 | V98: 0.4 | W98: 103.669998 | X98: 200309 | Y98: 200209 | Z98: 2002-09-20 | AA98: 5 | AB98: 1 | AC98: 1.55 | AD98: 0.01495128803
A99: 84 | B99: 2023-11-14 | C99: 446.320007 | D99: 450.059998 | E99: 446.089996 | F99: 448.730011 | G99: 97176900 | H99: 446.91803 | I99: 0.9959619795 | J99: 1 | K99: 444.52 | L99: 448.24 | M99: 444.29 | N99: 446.92 | O99: 97176900 | U99: 2003-06-20 | V99: 0.36 | W99: 99.440002 | X99: 200306 | Y99: 200206 | Z99: 2002-06-21 | AA99: 5 | AB99: 1 | AC99: 1.528 | AD99: 0.01536604957
A100: 85 | B100: 2023-11-13 | C100: 439.230011 | D100: 441.329987 | E100: 438.420013 | F100: 440.190002 | G100: 52236100 | H100: 438.412506 | I100: 0.9959619801 | J100: 1 | K100: 437.46 | L100: 439.55 | M100: 436.65 | N100: 438.41 | O100: 52236100 | U100: 2003-03-21 | V100: 0.354 | W100: 89.669998 | X100: 200303 | Y100: 200203 | Z100: 2002-03-15 | AA100: 5 | AB100: 1 | AC100: 1.521 | AD100: 0.01696219509
A101: 86 | B101: 2023-11-10 | C101: 435.980011 | D101: 440.929993 | E101: 433.829987 | F101: 440.609985 | G101: 89462200 | H101: 438.83078 | I101: 0.9959619503 | J101: 1 | K101: 434.22 | L101: 439.15 | M101: 432.08 | N101: 438.83 | O101: 89462200 | U101: 2002-12-20 | V101: 0.436 | W101: 89.989998 | X101: 200212 | Y101: 200112 | Z101: 2001-12-21 | AA101: 5 | AB101: 1 | AC101: 1.498 | AD101: 0.0166462944
A102: 87 | B102: 2023-11-09 | C102: 438.429993 | D102: 438.470001 | E102: 433.399994 | F102: 433.839996 | G102: 83174400 | H102: 432.088135 | I102: 0.9959619652 | J102: 1 | K102: 436.66 | L102: 436.7 | M102: 431.65 | N102: 432.09 | O102: 83174400 | U102: 2002-09-20 | V102: 0.378 | W102: 84.349998 | X102: 200209 | Y102: 200109 | Z102: 2001-09-21 | AA102: 5 | AB102: 1 | AC102: 1.455 | AD102: 0.01724955583
A103: 88 | B103: 2023-11-08 | C103: 437.549988 | D103: 438.089996 | E103: 434.869995 | F103: 437.25 | G103: 61746000 | H103: 435.484375 | I103: 0.9959619783 | J103: 1 | K103: 435.78 | L103: 436.32 | M103: 433.11 | N103: 435.48 | O103: 61746000 | U103: 2002-06-21 | V103: 0.353 | W103: 99.279999 | X103: 200206 | Y103: 200106 | Z103: 2001-06-15 | AA103: 5 | AB103: 1 | AC103: 1.446 | AD103: 0.01456486719
A104: 89 | B104: 2023-11-07 | C104: 435.690002 | D104: 437.589996 | E104: 434.51001 | F104: 436.929993 | G104: 64256100 | H104: 435.165649 | I104: 0.9959619527 | J104: 1 | K104: 433.93 | L104: 435.82 | M104: 432.76 | N104: 435.17 | O104: 64256100 | U104: 2002-03-15 | V104: 0.331 | W104: 116.650002 | X104: 200203 | Y104: 200103 | Z104: 2001-03-16 | AA104: 5 | AB104: 1 | AC104: 1.439 | AD104: 0.0123360478
A105: 90 | B105: 2023-11-06 | C105: 435.470001 | D105: 436.149994 | E105: 433.679993 | F105: 435.690002 | G105: 67831700 | H105: 433.930664 | I105: 0.99596195 | J105: 1 | K105: 433.71 | L105: 434.39 | M105: 431.93 | N105: 433.93 | O105: 67831700 | U105: 2001-12-21 | V105: 0.393 | W105: 114.949997 | X105: 200112 | Y105: 200012 | Z105: 2000-12-15 | AA105: 5 | AB105: 1 | AC105: 1.424 | AD105: 0.0123879951
A106: 91 | B106: 2023-11-03 | C106: 433.140015 | D106: 436.290009 | E106: 433.01001 | F106: 434.690002 | G106: 100110800 | H106: 432.934723 | I106: 0.9959619982 | J106: 1 | K106: 431.39 | L106: 434.53 | M106: 431.26 | N106: 432.93 | O106: 100110800 | U106: 2001-09-21 | V106: 0.369 | W106: 97.279999 | X106: 200109 | Y106: 200009 | Z106: 2000-09-15 | AA106: 5 | AB106: 1 | AC106: 1.442 | AD106: 0.01482319094
A107: 92 | B107: 2023-11-02 | C107: 426.579987 | D107: 430.920013 | E107: 426.559998 | F107: 430.76001 | G107: 94938900 | H107: 429.020599 | I107: 0.9959619952 | J107: 1 | K107: 424.86 | L107: 429.18 | M107: 424.84 | N107: 429.02 | O107: 94938900 | U107: 2001-06-15 | V107: 0.346 | W107: 121.849998 | X107: 200106 | Y107: 200006 | Z107: 2000-06-16 | AA107: 5 | AB107: 1 | AC107: 1.448 | AD107: 0.01188346347
A108: 93 | B108: 2023-11-01 | C108: 419.200012 | D108: 423.5 | E108: 418.649994 | F108: 422.660004 | G108: 98068100 | H108: 420.953278 | I108: 0.9959619411 | J108: 1 | K108: 417.51 | L108: 421.79 | M108: 416.96 | N108: 420.95 | O108: 98068100 | U108: 2001-03-16 | V108: 0.316 | W108: 115.010002 | X108: 200103 | Y108: 200003 | Z108: 2000-03-17 | AA108: 5 | AB108: 1 | AC108: 1.45 | AD108: 0.01260759912
A109: 94 | B109: 2023-10-31 | C109: 416.179993 | D109: 418.529999 | E109: 414.209991 | F109: 418.200012 | G109: 79665200 | H109: 416.511292 | I109: 0.9959619322 | J109: 1 | K109: 414.5 | L109: 416.84 | M109: 412.54 | N109: 416.51 | O109: 79665200 | U109: 2000-12-15 | V109: 0.411 | W109: 130.96875 | X109: 200012 | Y109: 199912 | Z109: 1999-12-17 | AA109: 5 | AB109: 1 | AC109: 1.505 | AD109: 0.01149129086
A110: 95 | B110: 2023-10-30 | C110: 413.559998 | D110: 416.679993 | E110: 412.220001 | F110: 415.589996 | G110: 86562700 | H110: 413.911835 | I110: 0.9959619793 | J110: 1 | K110: 411.89 | L110: 415 | M110: 410.56 | N110: 413.91 | O110: 86562700 | U110: 2000-09-15 | V110: 0.375 | W110: 146 | X110: 200009 | Y110: 199909 | Z110: 1999-09-17 | AA110: 5 | AB110: 1 | AC110: 1.442 | AD110: 0.009876712329
A111: 96 | B111: 2023-10-27 | C111: 414.190002 | D111: 414.600006 | E111: 409.209991 | F111: 410.679993 | G111: 107367700 | H111: 409.021637 | I111: 0.9959619265 | J111: 1 | K111: 412.52 | L111: 412.93 | M111: 407.56 | N111: 409.02 | O111: 107367700 | U111: 2000-06-16 | V111: 0.348 | W111: 146.59375 | X111: 200006 | Y111: 199906 | Z111: 1999-06-18 | AA111: 5 | AB111: 1 | AC111: 1.439 | AD111: 0.009816243871
A112: 97 | B112: 2023-10-26 | C112: 416.450012 | D112: 417.329987 | E112: 411.600006 | F112: 412.549988 | G112: 115156800 | H112: 410.884094 | I112: 0.9959619584 | J112: 1 | K112: 414.77 | L112: 415.64 | M112: 409.94 | N112: 410.88 | O112: 115156800 | U112: 2000-03-17 | V112: 0.371 | W112: 146.9375 | X112: 200003 | Y112: 199903 | Z112: 1999-03-19 | AA112: 5 | AB112: 1 | AC112: 1.496 | AD112: 0.01018119949
A113: 98 | B113: 2023-10-25 | C113: 421.890015 | D113: 421.920013 | E113: 417.019989 | F113: 417.549988 | G113: 94223200 | H113: 415.863892 | I113: 0.9959619302 | J113: 1 | K113: 420.19 | L113: 420.22 | M113: 415.34 | N113: 415.86 | O113: 94223200 | U113: 1999-12-17 | V113: 0.348 | W113: 142.6875 | X113: 199912 | Y113: 199812 | Z113: 1998-12-18 | AA113: 5 | AB113: 1 | AC113: 1.445 | AD113: 0.01012702584
A114: 99 | B114: 2023-10-24 | C114: 422.649994 | D114: 424.820007 | E114: 420.73999 | F114: 423.630005 | G114: 78564200 | H114: 421.919373 | I114: 0.9959619669 | J114: 1 | K114: 420.94 | L114: 423.1 | M114: 419.04 | N114: 421.92 | O114: 78564200 | U114: 1999-09-17 | V114: 0.372 | W114: 133.75 | X114: 199909 | Y114: 199809 | Z114: 1998-09-18 | AA114: 5 | AB114: 1 | AC114: 1.489 | AD114: 0.01113271028
A115: 100 | B115: 2023-10-23 | C115: 419.609985 | D115: 424.450012 | E115: 417.799988 | F115: 420.459991 | G115: 92035100 | H115: 418.762146 | I115: 0.9959619345 | J115: 1 | K115: 417.92 | L115: 422.74 | M115: 416.11 | N115: 418.76 | O115: 92035100 | U115: 1999-06-18 | V115: 0.405 | W115: 134.3125 | X115: 199906 | Y115: 199806 | Z115: 1998-06-19 | AA115: 5 | AB115: 1 | AC115: 1.476 | AD115: 0.01098929735
A116: 101 | B116: 2023-10-20 | C116: 425.980011 | D116: 426.540009 | E116: 421.079987 | F116: 421.190002 | G116: 123845800 | H116: 419.489227 | I116: 0.9959619768 | J116: 1 | K116: 424.26 | L116: 424.82 | M116: 419.38 | N116: 419.49 | O116: 123845800 | U116: 1999-03-19 | V116: 0.32 | W116: 129.6875 | X116: 199903 | Y116: 199803 | Z116: 1998-03-20 | AA116: 5 | AB116: 1 | AC116: 1.423 | AD116: 0.01097253012
A117: 102 | B117: 2023-10-19 | C117: 430.950012 | D117: 432.820007 | E117: 425.730011 | F117: 426.429993 | G117: 121323000 | H117: 424.708038 | I117: 0.995961928 | J117: 1 | K117: 429.21 | L117: 431.07 | M117: 424.01 | N117: 424.71 | O117: 121323000 | U117: 1998-12-18 | V117: 0.392 | W117: 118.5 | X117: 199812 | Y117: 199712 | Z117: 1997-12-19 | AA117: 5 | AB117: 1 | AC117: 1.416 | AD117: 0.01194936709
A118: 103 | B118: 2023-10-18 | C118: 434.190002 | D118: 435.179993 | E118: 429.089996 | F118: 430.209991 | G118: 93559800 | H118: 428.472778 | I118: 0.9959619418 | J118: 1 | K118: 432.44 | L118: 433.42 | M118: 427.36 | N118: 428.47 | O118: 93559800 | U118: 1998-09-18 | V118: 0.359 | W118: 102.09375 | X118: 199809 | Y118: 199709 | Z118: 1997-09-19 | AA118: 5 | AB118: 1 | AC118: 1.404 | AD118: 0.01375206612
A119: 104 | B119: 2023-10-17 | C119: 432.809998 | D119: 438.140015 | E119: 432.450012 | F119: 436.019989 | G119: 75324700 | H119: 434.259338 | I119: 0.9959619948 | J119: 1 | K119: 431.06 | L119: 436.37 | M119: 430.7 | N119: 434.26 | O119: 75324700 | U119: 1998-06-19 | V119: 0.352 | W119: 110.0625 | X119: 199806 | Y119: 199706 | Z119: 1997-06-20 | AA119: 5 | AB119: 1 | AC119: 1.393 | AD119: 0.0126564452
A120: 105 | B120: 2023-10-16 | C120: 433.820007 | D120: 437.140015 | E120: 433.570007 | F120: 436.040009 | G120: 75433200 | H120: 434.279266 | I120: 0.9959619692 | J120: 1 | K120: 432.07 | L120: 435.37 | M120: 431.82 | N120: 434.28 | O120: 75433200 | U120: 1998-03-20 | V120: 0.313 | W120: 109.875 | X120: 199803 | Y120: 199703 | Z120: 1997-03-21 | AA120: 5 | AB120: 1 | AC120: 1.391 | AD120: 0.01265984073
A121: 106 | B121: 2023-10-13 | C121: 435.209991 | D121: 436.450012 | E121: 429.880005 | F121: 431.5 | G121: 95143100 | H121: 429.757599 | I121: 0.9959619907 | J121: 1 | K121: 433.45 | L121: 434.69 | M121: 428.14 | N121: 429.76 | O121: 95143100 | U121: 1997-12-19 | V121: 0.38 | W121: 94.78125 | X121: 199712 | Y121: 199612 | Z121: 1996-12-20 | AA121: 5 | AB121: 1 | AC121: 1.377 | AD121: 0.01452818991
A122: 107 | B122: 2023-10-12 | C122: 436.950012 | D122: 437.339996 | E122: 431.230011 | F122: 433.660004 | G122: 81154200 | H122: 431.908875 | I122: 0.9959619772 | J122: 1 | K122: 435.19 | L122: 435.57 | M122: 429.49 | N122: 431.91 | O122: 81154200 | U122: 1997-09-19 | V122: 0.348 | W122: 95.03125 | X122: 199709 | Y122: 199609 | Z122: 1996-09-20 | AA122: 5 | AB122: 1 | AC122: 1.364 | AD122: 0.0143531733
A123: 108 | B123: 2023-10-11 | C123: 435.640015 | D123: 436.579987 | E123: 433.179993 | F123: 436.320007 | G123: 62451700 | H123: 434.558136 | I123: 0.9959619752 | J123: 1 | K123: 433.88 | L123: 434.82 | M123: 431.43 | N123: 434.56 | O123: 62451700 | U123: 1997-06-20 | V123: 0.35 | W123: 89.578125 | X123: 199706 | Y123: 199606 | Z123: 1996-06-21 | AA123: 5 | AB123: 1 | AC123: 1.368 | AD123: 0.01527158556
A124: 109 | B124: 2023-10-10 | C124: 432.940002 | D124: 437.220001 | E124: 432.529999 | F124: 434.540009 | G124: 78607300 | H124: 432.785309 | I124: 0.9959619368 | J124: 1 | K124: 431.19 | L124: 435.45 | M124: 430.78 | N124: 432.79 | O124: 78607300 | U124: 1997-03-21 | V124: 0.299 | W124: 78.4375 | X124: 199703 | Y124: 199603 | Z124: 1996-03-15 | AA124: 5 | AB124: 1 | AC124: 1.369 | AD124: 0.01745338645
A125: 110 | B125: 2023-10-09 | C125: 427.579987 | D125: 432.880005 | E125: 427.01001 | F125: 432.290009 | G125: 80374400 | H125: 430.544403 | I125: 0.9959619562 | J125: 1 | K125: 425.85 | L125: 431.13 | M125: 425.29 | N125: 430.54 | O125: 80374400 | U125: 1996-12-20 | V125: 0.367 | W125: 74.84375 | X125: 199612 | Y125: 199512 | Z125: 1995-12-15 | AA125: 5 | AB125: 1 | AC125: 1.355 | AD125: 0.01810438413
A126: 111 | B126: 2023-10-06 | C126: 421.970001 | D126: 431.130005 | E126: 420.600006 | F126: 429.540009 | G126: 113202700 | H126: 427.805511 | I126: 0.995961964 | J126: 1 | K126: 420.27 | L126: 429.39 | M126: 418.9 | N126: 427.81 | O126: 113202700 | U126: 1996-09-20 | V126: 0.352 | W126: 68.640625 | X126: 199609 | Y126: 199509 | Z126: 1995-09-15 | AA126: 5 | AB126: 1 | AC126: 1.37 | AD126: 0.01995902572
A127: 112 | B127: 2023-10-05 | C127: 424.359985 | D127: 425.369995 | E127: 421.170013 | F127: 424.5 | G127: 70142700 | H127: 422.785858 | I127: 0.9959619741 | J127: 1 | K127: 422.65 | L127: 423.65 | M127: 419.47 | N127: 422.79 | O127: 70142700 | U127: 1996-06-21 | V127: 0.351 | W127: 66.8125 | X127: 199606 | Y127: 199506 | Z127: 1995-06-16 | AA127: 5 | AB127: 1 | AC127: 1.33 | AD127: 0.01990645463
A128: 113 | B128: 2023-10-04 | C128: 422.070007 | D128: 425.429993 | E128: 420.559998 | F128: 424.660004 | G128: 87453000 | H128: 422.945221 | I128: 0.9959619861 | J128: 1 | K128: 420.37 | L128: 423.71 | M128: 418.86 | N128: 422.95 | O128: 87453000 | U128: 1996-03-15 | V128: 0.285 | W128: 64.125 | X128: 199603 | Y128: 199503 | Z128: 1995-03-17 | AA128: 5 | AB128: 1 | AC128: 1.295 | AD128: 0.02019493177
A129: 114 | B129: 2023-10-03 | C129: 425.059998 | D129: 427.369995 | E129: 420.179993 | F129: 421.589996 | G129: 103760600 | H129: 419.887604 | I129: 0.9959619725 | J129: 1 | K129: 423.34 | L129: 425.64 | M129: 418.48 | N129: 419.89 | O129: 103760600 | U129: 1995-12-15 | V129: 0.382 | W129: 61.8125 | X129: 199512 | Y129: 199412 | Z129: 1994-12-16 | AA129: 5 | AB129: 1 | AC129: 1.278 | AD129: 0.02067542973
A130: 115 | B130: 2023-10-02 | C130: 426.619995 | D130: 428.600006 | E130: 424.459991 | F130: 427.309998 | G130: 83798600 | H130: 425.584503 | I130: 0.9959619597 | J130: 1 | K130: 424.9 | L130: 426.87 | M130: 422.75 | N130: 425.58 | O130: 83798600 | U130: 1995-09-15 | V130: 0.312 | W130: 58.4375 | X130: 199509 | Y130: 199409 | Z130: 1994-09-16 | AA130: 5 | AB130: 1 | AC130: 1.259 | AD130: 0.02154438503
A131: 116 | B131: 2023-09-29 | C131: 431.670013 | D131: 431.850006 | E131: 425.910004 | F131: 427.480011 | G131: 115078500 | H131: 425.753845 | I131: 0.995961996 | J131: 1 | K131: 429.93 | L131: 430.11 | M131: 424.19 | N131: 425.75 | O131: 115078500 | U131: 1995-06-16 | V131: 0.316 | W131: 53.96875 | X131: 199506 | Y131: 199406 | Z131: 1994-06-17 | AA131: 5 | AB131: 1 | AC131: 1.235 | AD131: 0.0228836132
A132: 117 | B132: 2023-09-28 | C132: 425.480011 | D132: 430.25 | E132: 424.869995 | F132: 428.519989 | G132: 92258300 | H132: 426.789612 | I132: 0.995961969 | J132: 1 | K132: 423.76 | L132: 428.51 | M132: 423.15 | N132: 426.79 | O132: 92258300 | U132: 1995-03-17 | V132: 0.268 | W132: 49.5625 | X132: 199503 | Y132: 199403 | Z132: 1994-03-18 | AA132: 5 | AB132: 1 | AC132: 1.224 | AD132: 0.02469609079
A133: 118 | B133: 2023-09-27 | C133: 427.089996 | D133: 427.670013 | E133: 422.290009 | F133: 426.049988 | G133: 104705800 | H133: 424.32959 | I133: 0.9959619809 | J133: 1 | K133: 425.37 | L133: 425.94 | M133: 420.58 | N133: 424.33 | O133: 104705800 | U133: 1994-12-16 | V133: 0.363 | W133: 45.75 | X133: 199412 | Y133: 199312 | Z133: 1994-03-18 | AA133: 4 | AB133: 0 | AC133: 1.227 | AD133: 0.02681967213
A134: 119 | B134: 2023-09-26 | C134: 429.089996 | D134: 429.820007 | E134: 425.019989 | F134: 425.880005 | G134: 96168400 | H134: 424.160278 | I134: 0.9959619447 | J134: 1 | K134: 427.36 | L134: 428.08 | M134: 423.3 | N134: 424.16 | O134: 96168400 | U134: 1994-09-16 | V134: 0.288 | W134: 47.015625 | X134: 199409 | Y134: 199309 | Z134: 1994-03-18 | AA134: 3 | AB134: 0 | AC134: 0.864 | AD134: 0.01837686939
A135: 120 | B135: 2023-09-25 | C135: 429.170013 | D135: 432.269989 | E135: 428.720001 | F135: 432.230011 | G135: 70874500 | H135: 430.48465 | I135: 0.9959619625 | J135: 1 | K135: 427.44 | L135: 430.52 | M135: 426.99 | N135: 430.48 | O135: 70874500 | U135: 1994-06-17 | V135: 0.305 | W135: 45.875 | X135: 199406 | Y135: 199306 | Z135: 1994-03-18 | AA135: 2 | AB135: 0 | AC135: 0.576 | AD135: 0.01255585831
A136: 121 | B136: 2023-09-22 | C136: 432.450012 | D136: 434.100006 | E136: 429.98999 | F136: 430.420013 | G136: 100829700 | H136: 428.681976 | I136: 0.9959619977 | J136: 1 | K136: 430.7 | L136: 432.35 | M136: 428.25 | N136: 428.68 | O136: 100829700 | U136: 1994-03-18 | V136: 0.271 | W136: 46.96875 | X136: 199403 | Y136: 199303 | Z136: 1994-03-18 | AA136: 1 | AB136: 1 | AC136: 0.271 | AD136: 0.005769793746
A137: 122 | B137: 2023-09-21 | C137: 435.700012 | D137: 435.970001 | E137: 431.230011 | F137: 431.390015 | G137: 103976100 | H137: 429.648041 | I137: 0.995961951 | J137: 1 | K137: 433.94 | L137: 434.21 | M137: 429.49 | N137: 429.65 | O137: 103976100
A138: 123 | B138: 2023-09-20 | C138: 444.01001 | D138: 444.440002 | E138: 438.429993 | F138: 438.640015 | G138: 82562600 | H138: 436.868774 | I138: 0.9959619712 | J138: 1 | K138: 442.22 | L138: 442.65 | M138: 436.66 | N138: 436.87 | O138: 82562600
A139: 124 | B139: 2023-09-19 | C139: 442.679993 | D139: 443.290009 | E139: 439.940002 | F139: 442.709991 | G139: 66514600 | H139: 440.922302 | I139: 0.9959619411 | J139: 1 | K139: 440.89 | L139: 441.5 | M139: 438.16 | N139: 440.92 | O139: 66514600
A140: 125 | B140: 2023-09-18 | C140: 443.049988 | D140: 444.970001 | E140: 442.559998 | F140: 443.630005 | G140: 55752200 | H140: 441.838623 | I140: 0.9959619909 | J140: 1 | K140: 441.26 | L140: 443.17 | M140: 440.77 | N140: 441.84 | O140: 55752200
A141: 126 | B141: 2023-09-15 | C141: 447.140015 | D141: 447.480011 | E141: 442.920013 | F141: 443.369995 | G141: 111761400 | H141: 441.579651 | I141: 0.995961964 | J141: 1 | K141: 445.33 | L141: 445.67 | M141: 441.13 | N141: 441.58 | O141: 111761400
A142: 127 | B142: 2023-09-14 | C142: 449.070007 | D142: 451.079987 | E142: 447.720001 | F142: 450.359985 | G142: 83430800 | H142: 446.964844 | I142: 0.992461273 | J142: 1 | K142: 445.68 | L142: 447.68 | M142: 444.34 | N142: 446.96 | O142: 83430800
A143: 128 | B143: 2023-09-13 | C143: 446.220001 | D143: 447.709991 | E143: 445.079987 | F143: 446.51001 | G143: 60199300 | H143: 443.14386 | I143: 0.9924611992 | J143: 1 | K143: 442.86 | L143: 444.33 | M143: 441.72 | N143: 443.14 | O143: 60199300
A144: 129 | B144: 2023-09-12 | C144: 446.950012 | D144: 448.529999 | E144: 445.390015 | F144: 445.98999 | G144: 67565400 | H144: 442.627777 | I144: 0.9924612366 | J144: 1 | K144: 443.58 | L144: 445.15 | M144: 442.03 | N144: 442.63 | O144: 67565400
A145: 130 | B145: 2023-09-11 | C145: 448.23999 | D145: 448.769989 | E145: 446.470001 | F145: 448.450012 | G145: 60180100 | H145: 445.069244 | I145: =IF(F145=0,1,H145/F145) -> 0.9924612155 | J145: =INDEX(OFFSET($T$15,0,0,$S$13+1,1),MATCH(B145,OFFSET($Q$15,0,0,$S$13+1,1),-1)) -> 1 | K145: =ROUND($I145*C145,2) -> 444.86 | L145: =ROUND($I145*D145,2) -> 445.39 | M145: =ROUND($I145*E145,2) -> 443.1 | N145: =ROUND($I145*F145,2) -> 445.07 | O145: =G145*J145 -> 60180100
A146: 131 | B146: 2023-09-08 | C146: 444.899994 | D146: 447.109985 | E146: 444.529999 | F146: 445.519989 | G146: 61659700 | H146: 442.161316 | I146: 0.9924612294 | J146: 1 | K146: 441.55 | L146: 443.74 | M146: 441.18 | N146: 442.16 | O146: 61659700
A147: 132 | B147: 2023-09-07 | C147: 443.109985 | D147: 445.549988 | E147: 442.75 | F147: 444.850006 | G147: 70355400 | H147: 441.496368 | I147: 0.9924611938 | J147: 1 | K147: 439.77 | L147: 442.19 | M147: 439.41 | N147: 441.5 | O147: 70355400
A148: 133 | B148: 2023-09-06 | C148: 448.399994 | D148: 448.51001 | E148: 443.809998 | F148: 446.220001 | G148: 70758500 | H148: 442.856018 | I148: 0.9924611559 | J148: 1 | K148: 445.02 | L148: 445.13 | M148: 440.46 | N148: 442.86 | O148: 70758500
A149: 134 | B149: 2023-09-05 | C149: 450.730011 | D149: 451.059998 | E149: 449.170013 | F149: 449.23999 | G149: 55166200 | H149: 445.853271 | I149: 0.9924612255 | J149: 1 | K149: 447.33 | L149: 447.66 | M149: 445.78 | N149: 445.85 | O149: 55166200
A150: 135 | B150: 2023-09-01 | C150: 453.170013 | D150: 453.670013 | E150: 449.679993 | F150: 451.190002 | G150: 58875700 | H150: 447.788574 | I150: 0.9924612071 | J150: 1 | K150: 449.75 | L150: 450.25 | M150: 446.29 | N150: 447.79 | O150: 58875700
A151: 136 | B151: 2023-08-31 | C151: 451.649994 | D151: 452.829987 | E151: 450.160004 | F151: 450.350006 | G151: 66084600 | H151: 446.954926 | I151: 0.9924612414 | J151: 1 | K151: 448.25 | L151: 449.42 | M151: 446.77 | N151: 446.95 | O151: 66084600
A152: 137 | B152: 2023-08-30 | C152: 449.51001 | D152: 451.670013 | E152: 448.779999 | F152: 451.01001 | G152: 69053900 | H152: 447.609955 | I152: 0.9924612427 | J152: 1 | K152: 446.12 | L152: 448.26 | M152: 445.4 | N152: 447.61 | O152: 69053900
A153: 138 | B153: 2023-08-29 | C153: 442.649994 | D153: 449.450012 | E153: 442.459991 | F153: 449.160004 | G153: 83081900 | H153: 445.773895 | I153: 0.9924612411 | J153: 1 | K153: 439.31 | L153: 446.06 | M153: 439.12 | N153: 445.77 | O153: 83081900
A154: 139 | B154: 2023-08-28 | C154: 442.23999 | D154: 443.399994 | E154: 439.970001 | F154: 442.76001 | G154: 61595400 | H154: 439.42215 | I154: 0.9924612433 | J154: 1 | K154: 438.91 | L154: 440.06 | M154: 436.65 | N154: 439.42 | O154: 61595400
A155: 140 | B155: 2023-08-25 | C155: 438.679993 | D155: 441.299988 | E155: 435 | F155: 439.970001 | G155: 102325100 | H155: 436.653168 | I155: 0.9924612292 | J155: 1 | K155: 435.37 | L155: 437.97 | M155: 431.72 | N155: 436.65 | O155: 102325100
A156: 141 | B156: 2023-08-24 | C156: 444.690002 | D156: 445.220001 | E156: 436.859985 | F156: 436.890015 | G156: 88517300 | H156: 433.596405 | I156: 0.9924612376 | J156: 1 | K156: 441.34 | L156: 441.86 | M156: 433.57 | N156: 433.6 | O156: 88517300
A157: 142 | B157: 2023-08-23 | C157: 439.25 | D157: 443.670013 | E157: 439.100006 | F157: 443.029999 | G157: 68441000 | H157: 439.690094 | I157: 0.9924612216 | J157: 1 | K157: 435.94 | L157: 440.33 | M157: 435.79 | N157: 439.69 | O157: 68441000
A158: 143 | B158: 2023-08-22 | C158: 441.179993 | D158: 441.179993 | E158: 437.570007 | F158: 438.149994 | G158: 65062900 | H158: 434.846863 | I158: 0.9924611867 | J158: 1 | K158: 437.85 | L158: 437.85 | M158: 434.27 | N158: 434.85 | O158: 65062900
A159: 144 | B159: 2023-08-21 | C159: 437.549988 | D159: 440.109985 | E159: 435.320007 | F159: 439.339996 | G159: 68719000 | H159: 436.027924 | I159: 0.9924612555 | J159: 1 | K159: 434.25 | L159: 436.79 | M159: 432.04 | N159: 436.03 | O159: 68719000
A160: 145 | B160: 2023-08-18 | C160: 433.369995 | D160: 437.570007 | E160: 433.01001 | F160: 436.5 | G160: 98758400 | H160: 433.20932 | I160: 0.9924612142 | J160: 1 | K160: 430.1 | L160: 434.27 | M160: 429.75 | N160: 433.21 | O160: 98758400
A161: 146 | B161: 2023-08-17 | C161: 441.160004 | D161: 441.429993 | E161: 435.75 | F161: 436.290009 | G161: 95711300 | H161: 433.000916 | I161: 0.9924612232 | J161: 1 | K161: 437.83 | L161: 438.1 | M161: 432.46 | N161: 433 | O161: 95711300
A162: 147 | B162: 2023-08-16 | C162: 442.459991 | D162: 444.179993 | E162: 439.529999 | F162: 439.640015 | G162: 80107200 | H162: 436.325653 | I162: 0.9924611912 | J162: 1 | K162: 439.12 | L162: 440.83 | M162: 436.22 | N162: 436.33 | O162: 80107200
A163: 148 | B163: 2023-08-15 | C163: 446.269989 | D163: 446.640015 | E163: 442.299988 | F163: 442.890015 | G163: 75707500 | H163: 439.551178 | I163: 0.9924612502 | J163: 1 | K163: 442.91 | L163: 443.27 | M163: 438.97 | N163: 439.55 | O163: 75707500
A164: 149 | B164: 2023-08-14 | C164: 444.700012 | D164: 448.109985 | E164: 444.380005 | F164: 448.109985 | G164: 47867400 | H164: 444.731781 | I164: 0.9924612169 | J164: 1 | K164: 441.35 | L164: 444.73 | M164: 441.03 | N164: 444.73 | O164: 47867400
A165: 150 | B165: 2023-08-11 | C165: 443.970001 | D165: 446.700012 | E165: 443.350006 | F165: 445.649994 | G165: 68664600 | H165: 442.290344 | I165: 0.9924612363 | J165: 1 | K165: 440.62 | L165: 443.33 | M165: 440.01 | N165: 442.29 | O165: 68664600
A166: 151 | B166: 2023-08-10 | C166: 448.190002 | D166: 451.700012 | E166: 444.700012 | F166: 445.910004 | G166: 93005500 | H166: 442.54837 | I166: 0.9924611828 | J166: 1 | K166: 444.81 | L166: 448.29 | M166: 441.35 | N166: 442.55 | O166: 93005500
A167: 152 | B167: 2023-08-09 | C167: 449.029999 | D167: 449.200012 | E167: 444.959991 | F167: 445.75 | G167: 78789600 | H167: 442.389587 | I167: 0.9924612159 | J167: 1 | K167: 445.64 | L167: 445.81 | M167: 441.61 | N167: 442.39 | O167: 78789600
A168: 153 | B168: 2023-08-08 | C168: 448.079987 | D168: 450.700012 | E168: 445.269989 | F168: 448.75 | G168: 71361300 | H168: 445.366974 | I168: 0.9924612234 | J168: 1 | K168: 444.7 | L168: 447.3 | M168: 441.91 | N168: 445.37 | O168: 71361300
A169: 154 | B169: 2023-08-07 | C169: 448.709991 | D169: 450.869995 | E169: 447.98999 | F169: 450.709991 | G169: 58357500 | H169: 447.312164 | I169: 0.9924611678 | J169: 1 | K169: 445.33 | L169: 447.47 | M169: 444.61 | N169: 447.31 | O169: 58357500
A170: 155 | B170: 2023-08-04 | C170: 450.720001 | D170: 452.899994 | E170: 446.269989 | F170: 446.809998 | G170: 100052300 | H170: 443.441589 | I170: 0.992461205 | J170: 1 | K170: 447.32 | L170: 449.49 | M170: 442.91 | N170: 443.44 | O170: 100052300
A171: 156 | B171: 2023-08-03 | C171: 448.040009 | D171: 450.790009 | E171: 447.369995 | F171: 448.839996 | G171: 64276100 | H171: 445.456299 | I171: 0.99246124 | J171: 1 | K171: 444.66 | L171: 447.39 | M171: 444 | N171: 445.46 | O171: 64276100
A172: 157 | B172: 2023-08-02 | C172: 453.25 | D172: 453.519989 | E172: 449.350006 | F172: 450.130005 | G172: 93933400 | H172: 446.736572 | I172: 0.9924612157 | J172: 1 | K172: 449.83 | L172: 450.1 | M172: 445.96 | N172: 446.74 | O172: 93933400
A173: 158 | B173: 2023-08-01 | C173: 456.269989 | D173: 457.25 | E173: 455.48999 | F173: 456.480011 | G173: 55291500 | H173: 453.038727 | I173: 0.9924612603 | J173: 1 | K173: 452.83 | L173: 453.8 | M173: 452.06 | N173: 453.04 | O173: 55291500
A174: 159 | B174: 2023-07-31 | C174: 457.410004 | D174: 458.160004 | E174: 456.049988 | F174: 457.790009 | G174: 62040400 | H174: 454.338837 | I174: 0.9924612335 | J174: 1 | K174: 453.96 | L174: 454.71 | M174: 452.61 | N174: 454.34 | O174: 62040400
A175: 160 | B175: 2023-07-28 | C175: 455.880005 | D175: 457.779999 | E175: 452.48999 | F175: 456.920013 | G175: 80011800 | H175: 453.475403 | I175: 0.9924612407 | J175: 1 | K175: 452.44 | L175: 454.33 | M175: 449.08 | N175: 453.48 | O175: 80011800
A176: 161 | B176: 2023-07-27 | C176: 459.019989 | D176: 459.440002 | E176: 451.549988 | F176: 452.48999 | G176: 92194400 | H176: 449.078766 | I176: 0.9924612167 | J176: 1 | K176: 455.56 | L176: 455.98 | M176: 448.15 | N176: 449.08 | O176: 92194400
A177: 162 | B177: 2023-07-26 | C177: 454.470001 | D177: 456.98999 | E177: 453.380005 | F177: 455.51001 | G177: 71052900 | H177: 452.076019 | I177: 0.9924612173 | J177: 1 | K177: 451.04 | L177: 453.54 | M177: 449.96 | N177: 452.08 | O177: 71052900
A178: 163 | B178: 2023-07-25 | C178: 453.920013 | D178: 456.73999 | E178: 453.869995 | F178: 455.440002 | G178: 55191200 | H178: 452.006531 | I178: 0.9924612002 | J178: 1 | K178: 450.5 | L178: 453.3 | M178: 450.45 | N178: 452.01 | O178: 55191200
A179: 164 | B179: 2023-07-24 | C179: 453.369995 | D179: 455.040009 | E179: 452.299988 | F179: 454.200012 | G179: 54023400 | H179: 450.775879 | I179: 0.9924611781 | J179: 1 | K179: 449.95 | L179: 451.61 | M179: 448.89 | N179: 450.78 | O179: 54023400
A180: 165 | B180: 2023-07-21 | C180: 453.959991 | D180: 454.170013 | E180: 452.170013 | F180: 452.179993 | G180: 71245400 | H180: 448.771118 | I180: 0.9924612432 | J180: 1 | K180: 450.54 | L180: 450.75 | M180: 448.76 | N180: 448.77 | O180: 71245400
A181: 166 | B181: 2023-07-20 | C181: 454.170013 | D181: 455.100006 | E181: 451.440002 | F181: 452.179993 | G181: 70591600 | H181: 448.771118 | I181: 0.9924612432 | J181: 1 | K181: 450.75 | L181: 451.67 | M181: 448.04 | N181: 448.77 | O181: 70591600
A182: 167 | B182: 2023-07-19 | C182: 455.01001 | D182: 456.429993 | E182: 454.109985 | F182: 455.200012 | G182: 65891700 | H182: 451.768341 | I182: 0.9924611799 | J182: 1 | K182: 451.58 | L182: 452.99 | M182: 450.69 | N182: 451.77 | O182: 65891700
A183: 168 | B183: 2023-07-18 | C183: 450.5 | D183: 454.859985 | E183: 450.049988 | F183: 454.190002 | G183: 80744400 | H183: 450.765961 | I183: 0.9924612145 | J183: 1 | K183: 447.1 | L183: 451.43 | M183: 446.66 | N183: 450.77 | O183: 80744400
A184: 169 | B184: 2023-07-17 | C184: 449.130005 | D184: 451.929993 | E184: 449.079987 | F184: 450.839996 | G184: 52680200 | H184: 447.441193 | I184: 0.9924611768 | J184: 1 | K184: 445.74 | L184: 448.52 | M184: 445.69 | N184: 447.44 | O184: 52680200
A185: 170 | B185: 2023-07-14 | C185: 450.480011 | D185: 451.359985 | E185: 448.48999 | F185: 449.279999 | G185: 69761800 | H185: 445.892975 | I185: 0.9924612179 | J185: 1 | K185: 447.08 | L185: 447.96 | M185: 445.11 | N185: 445.89 | O185: 69761800
A186: 171 | B186: 2023-07-13 | C186: 447.899994 | D186: 450.380005 | E186: 447.450012 | F186: 449.559998 | G186: 72425200 | H186: 446.170868 | I186: 0.9924612287 | J186: 1 | K186: 444.52 | L186: 446.98 | M186: 444.08 | N186: 446.17 | O186: 72425200
A187: 172 | B187: 2023-07-12 | C187: 446.390015 | D187: 447.480011 | E187: 444.910004 | F187: 446.019989 | G187: 91924500 | H187: 442.657532 | I187: 0.9924611966 | J187: 1 | K187: 443.02 | L187: 444.11 | M187: 441.56 | N187: 442.66 | O187: 91924500
A188: 173 | B188: 2023-07-11 | C188: 440.450012 | D188: 442.970001 | E188: 439.440002 | F188: 442.459991 | G188: 64463800 | H188: 439.124359 | I188: 0.992461167 | J188: 1 | K188: 437.13 | L188: 439.63 | M188: 436.13 | N188: 439.12 | O188: 64463800
A189: 174 | B189: 2023-07-10 | C189: 438.179993 | D189: 439.839996 | E189: 437.589996 | F189: 439.660004 | G189: 62443500 | H189: 436.34549 | I189: 0.9924611883 | J189: 1 | K189: 434.88 | L189: 436.52 | M189: 434.29 | N189: 436.35 | O189: 62443500
A190: 175 | B190: 2023-07-07 | C190: 438.630005 | D190: 442.640015 | E190: 438.299988 | F190: 438.549988 | G190: 86076100 | H190: 435.243866 | I190: 0.9924612425 | J190: 1 | K190: 435.32 | L190: 439.3 | M190: 435 | N190: 435.24 | O190: 86076100
A191: 176 | B191: 2023-07-06 | C191: 439.420013 | D191: 440.100006 | E191: 437.059998 | F191: 439.660004 | G191: 80658300 | H191: 436.34549 | I191: 0.9924611883 | J191: 1 | K191: 436.11 | L191: 436.78 | M191: 433.77 | N191: 436.35 | O191: 80658300
A192: 177 | B192: 2023-07-05 | C192: 441.910004 | D192: 443.890015 | E192: 441.899994 | F192: 443.130005 | G192: 58418400 | H192: 439.789337 | I192: 0.9924612011 | J192: 1 | K192: 438.58 | L192: 440.54 | M192: 438.57 | N192: 439.79 | O192: 58418400
A193: 178 | B193: 2023-07-03 | C193: 442.920013 | D193: 444.079987 | E193: 442.630005 | F193: 443.790009 | G193: 32793400 | H193: 440.444366 | I193: 0.9924612025 | J193: 1 | K193: 439.58 | L193: 440.73 | M193: 439.29 | N193: 440.44 | O193: 32793400
A194: 179 | B194: 2023-06-30 | C194: 441.440002 | D194: 444.299988 | E194: 441.109985 | F194: 443.279999 | G194: 104921500 | H194: 439.938202 | I194: 0.9924612051 | J194: 1 | K194: 438.11 | L194: 440.95 | M194: 437.78 | N194: 439.94 | O194: 104921500
A195: 180 | B195: 2023-06-29 | C195: 435.959991 | D195: 438.279999 | E195: 435.540009 | F195: 438.109985 | G195: 67882300 | H195: 434.807159 | I195: 0.9924611944 | J195: 1 | K195: 432.67 | L195: 434.98 | M195: 432.26 | N195: 434.81 | O195: 67882300
A196: 181 | B196: 2023-06-28 | C196: 435.049988 | D196: 437.440002 | E196: 434.410004 | F196: 436.390015 | G196: 75636000 | H196: 433.100189 | I196: 0.9924612711 | J196: 1 | K196: 431.77 | L196: 434.14 | M196: 431.14 | N196: 433.1 | O196: 75636000
A197: 182 | B197: 2023-06-27 | C197: 432.350006 | D197: 436.809998 | E197: 431.880005 | F197: 436.170013 | G197: 72813700 | H197: 432.881836 | I197: 0.9924612493 | J197: 1 | K197: 429.09 | L197: 433.52 | M197: 428.62 | N197: 432.88 | O197: 72813700
A198: 183 | B198: 2023-06-26 | C198: 432.619995 | D198: 434.609985 | E198: 431.190002 | F198: 431.440002 | G198: 72823600 | H198: 428.187469 | I198: 0.992461216 | J198: 1 | K198: 429.36 | L198: 431.33 | M198: 427.94 | N198: 428.19 | O198: 72823600
A199: 184 | B199: 2023-06-23 | C199: 432.929993 | D199: 435.059998 | E199: 432.470001 | F199: 433.209991 | G199: 92074500 | H199: 429.944122 | I199: 0.9924612334 | J199: 1 | K199: 429.67 | L199: 431.78 | M199: 429.21 | N199: 429.94 | O199: 92074500
A200: 185 | B200: 2023-06-22 | C200: 433.950012 | D200: 436.619995 | E200: 433.600006 | F200: 436.51001 | G200: 70637200 | H200: 433.219269 | I200: 0.9924612473 | J200: 1 | K200: 430.68 | L200: 433.33 | M200: 430.33 | N200: 433.22 | O200: 70637200
... 4300 more rows

Sheet CalculationsAndCharts
A1: EhlersUltimateChannelsAndBands.xlsm
A2: =InputPriceData!A1 -> SPDR S&P 500 ETF Trust (SPY) -NYSEArca (Daily)
A4: User Charting Controls | E4: Click to Shift Chart One Bar:
A5: Data Control | C5: FALSE
A6: =InputPriceData!$B$10 -> 7554 | B6: Available Input Data Rows | E6: Earliest: | F6: =OFFSET(InputPriceData!B15,CalculationsAndCharts!A6,0,1,1) -> 1994-03-15
A7: =MAX(A33:A56896) -> 1250 | B7: Available Calculation Rows | E7: Latest: | F7: =OFFSET(InputPriceData!B15,1,0,1,1) -> 2024-03-15
A8: =MIN(AvailableInputRows-DataPanRows,A7) -> 1250 | B8: Logically Available for Calc / Plot | E8: $ Change: | F8: =G33-G34 -> -1.800018
A10: Historical Price Windowing Specifications | F10: Click to Shift
A11: 28 | B11: Input Data Offset (Pan) | F11: Points to Plot
A12: 230 | B12: Data Points to Plot (Zoom)
B13: First: | C13: =OFFSET(B32,A12,0,1,1) -> 2023-03-08
B14: ="Last: " & IF(OFFSET(InputPriceData!P15,1+A11,0,1,1)="","",TEXT(OFFSET(InputPriceData!P15,1+A11,0,1,1),"H:MM AM/PM")) -> Last: | C14: =B33 -> 2024-02-05
A15: User Controls
A16: Ultimate Channel Controls
A17: 20 | B17: $UltimateSmoothed TrueRange (STR) Len
A18: 20 | B18: $UltimateSmoothed Close Len
A19: 1 | B19: Num STRs (Channel Offset Multiplier)
A21: Ultimate Band Indicator Controls
A22: 20 | B22: Length (Smoother and Std Dev Look Back)
A23: 1 | B23: Num SDs (Band Offset Multiplier)
A25: Help! I would like to plot data
A26: From | B26: 2023-03-02 | C26: =OFFSET(InputPriceData!$A$15,MATCH(B26,OFFSET(InputPriceData!B15,1,0,InputPriceData!$B$10,1),0),0,1,1)-C27 -> 234 | E26: 126
A27: To | B27: 2024-02-05 | C27: =OFFSET(InputPriceData!$A$15,MATCH(B27,OFFSET(InputPriceData!$B$15,1,0,InputPriceData!$B$10,1),0),0,1,1)-1 -> 28 | E27: =$A$12-$E$26+1 -> 105
H28: Value @ Cursor => | I28: =OFFSET(A32,$E$27,0,1,1)&"(RR)" -> 105(RR) | J28: =OFFSET($B$32,E27,0,1,1) -> 2023-09-06 | K28: =TEXT(OFFSET(D32,$E$27,0,1,1),"#,##0.00")&"(o)" -> 448.40(o) | L28: =TEXT(OFFSET(E32,$E$27,0,1,1),"#,##0.00")&"(h)" -> 448.51(h) | M28: =TEXT(OFFSET(F32,$E$27,0,1,1),"#,##0.00")&"(l)" -> 443.81(l) | N28: =TEXT(OFFSET(G32,$E$27,0,1,1),"#,##0.00")&"(c)" -> 446.22(c) | O28: =TEXT(OFFSET(C32,$E$27,0,1,1),"#,##0.00,,""M""")&"(v)" -> 70.76M(v)
E29: Cursor ==> | BE29: Work Area For Chart Cursors
B30: =LogicallyAvailableRows -> 1250 | C30: <== Calculation Rel Row Limits ==> | H30: =B30-1 -> 1249 | M30: =H30-4+1 -> 1246 | P30: =B30-4+1 -> 1247 | V30: =P30-A22+1 -> 1228 | Y30: =V30-A22+1 -> 1209
A31: Rel Row | H31: Ehlers Ultimate Channel Indicator | Q31: Ultimate Channel Indicator | T31: Ehlers Ultimate Band Indicator | Z31: Ultimate Band Indicator | BC31: Used To Color Vol Bars
B32: Date | C32: Volume | D32: Open | E32: High | F32: Low | G32: Close | H32: True HI | I32: True Lo | J32: True Range | K32: STR Ult C Coefficients | M32: ="$ STR("&A17&")" -> $ STR(20) | N32: Close Ult C Coefficients | P32: ="$S Close("&A18&")" -> $S Close(20) | Q32: Ult Channel Upper | R32: Ult Channel Lower | T32: Close Ult B Coefficients | V32: ="$S Close("&A22&")" -> $S Close(20) | W32: Delta | X32: Delta Sq'd | Y32: ="SD("&$A$22&")" -> SD(20) | Z32: Ult Up Band | AA32: Ult Dn Band | BC32: Up Vol | BD32: Dn Vol | BE32: Volume Cursor | BF32: =MAX(OFFSET(C33,0,0,A12,1)) -> 189253000 | BG32: Price Chart Cursor | BI32: Indicator01Cursor | BK32: Indicator02Cursor | BM32: Indicator03Cursor | BO32: Indicator04Cursor | BQ32: Indicator05Cursor | BS32: Indicator06Cursor | BU32: Indicator07Cursor | BW32: Indicator08Cursor
A33: 1 | B33: =IF($A33>$A$8,"",OFFSET(InputPriceData!$B$15,$A33+$A$11,0,1,1)) -> 2024-02-05 | C33: =IF($A33>$A$8,"",OFFSET(InputPriceData!$G$15,CalculationsAndCharts!$A33+$A$11,IF($C$5,8,0),1,1)) -> 75757100 | D33: =IF(A33>$A$8,"",OFFSET(InputPriceData!$C$15,CalculationsAndCharts!$A33+$A$11,IF($C$5,8,0),1,1)) -> 493.700012 | E33: =IF(A33>$A$8,"",OFFSET(InputPriceData!$D$15,CalculationsAndCharts!$A33+$A$11,IF($C$5,8,0),1,1)) -> 494.380005 | F33: =IF(A33>$A$8,"",OFFSET(InputPriceData!$E$15,CalculationsAndCharts!$A33+$A$11,IF($C$5,8,0),1,1)) -> 490.230011 | G33: =IF(A33>$A$8,"",OFFSET(InputPriceData!$F$15,CalculationsAndCharts!$A33+$A$11,IF($C$5,8,0),1,1)) -> 492.549988 | H33: =IF($A33>$H$30,NA(),IF(G34>E33,G34,E33)) -> 494.380005 | I33: =IF($A33>$H$30,NA(),IF(G34<F33,G34,F33)) -> 490.230011 | J33: =IF($A33>$H$30,NA(),H33-I33) -> 4.149994 | K33: ="a1(" & $A$24& ") ==>" -> a1() ==> | L33: =EXP(-1.414*3.14159/$A$17) -> 0.8008269377 | M33: =IF($A33>$H$30,NA(),IF($A33>$M$30,J33,(1-$L$35)*J33+(2*$L$35-$L$36)*J34-($L$35+$L$37)*J35+$L$36*M34+$L$37*M35)) -> 6.011309962 | N33: ="a1(" & $A$24& ") ==>" -> a1() ==> | O33: =EXP(-1.414*3.14159/$A$18) -> 0.8008269377 | P33: =IF($A33>$B$30,NA(),IF($A33>$P$30,G33,(1-$O$35)*G33+(2*$O$35-$O$36)*G34-($O$35+$O$37)*G35+$O$36*P34+$O$37*P35)) -> 492.8677359 | Q33: =IF($A33>$M$30,NA(),$P33+$M33*$A$19) -> 498.8790459 | R33: =IF($A33>$M$30,NA(),$P33-$M33*$A$19) -> 486.856426 | T33: ="a1(" & $A$24& ") ==>" -> a1() ==> | U33: =EXP(-1.414*3.14159/$A$22) -> 0.8008269377 | V33: =IF($A33>$B$30,NA(),IF($A33>$P$30,G33,(1-$U$35)*G33+(2*$U$35-$U$36)*G34-($U$35+$U$37)*G35+$U$36*V34+$U$37*V35)) -> 492.8677359 | W33: =IF($A33>$V$30,NA(),(G33-V33)) -> -0.3177479343 | X33: =IF($A33>$V$30,NA(),W33^2) -> 0.1009637497 | Y33: =IF($A33>$V$30,NA(),SQRT(SUM(OFFSET(X33,0,0,$A$22,1))/$A$22)) -> 3.159343413 | Z33: =IF($A33>$V$30,NA(),$G33+$A$23*Y33) -> 495.7093314 | AA33: =IF($A33>$V$30,NA(),$G33-$A$23*Y33) -> 489.3906446 | BC33: =IF(G33>=G34,C33,NA()) ->  | BD33: =IF(G33<G34,C33,NA()) -> 75757100 | BE33: =$E$27 -> 105 | BF33: 0 | BG33: =$E$27 -> 105 | BH33: 377.1227977 | BI33: =$E$27 -> 105 | BK33: =$E$27 -> 105 | BL33: 0 | BM33: =$E$27 -> 105 | BO33: =$E$27 -> 105 | BP33: 378.6259613 | BQ33: 105 | BS33: 105 | BT33: 0 | BU33: 105 | BV33: 0 | BW33: 105
A34: 2 | B34: =IF($A34>$A$8,"",OFFSET(InputPriceData!$B$15,$A34+$A$11,0,1,1)) -> 2024-02-02 | C34: =IF($A34>$A$8,"",OFFSET(InputPriceData!$G$15,CalculationsAndCharts!$A34+$A$11,IF($C$5,8,0),1,1)) -> 99147700 | D34: =IF(A34>$A$8,"",OFFSET(InputPriceData!$C$15,CalculationsAndCharts!$A34+$A$11,IF($C$5,8,0),1,1)) -> 489.649994 | E34: =IF(A34>$A$8,"",OFFSET(InputPriceData!$D$15,CalculationsAndCharts!$A34+$A$11,IF($C$5,8,0),1,1)) -> 496.049988 | F34: =IF(A34>$A$8,"",OFFSET(InputPriceData!$E$15,CalculationsAndCharts!$A34+$A$11,IF($C$5,8,0),1,1)) -> 489.299988 | G34: =IF(A34>$A$8,"",OFFSET(InputPriceData!$F$15,CalculationsAndCharts!$A34+$A$11,IF($C$5,8,0),1,1)) -> 494.350006 | H34: =IF($A34>$H$30,NA(),IF(G35>E34,G35,E34)) -> 496.049988 | I34: =IF($A34>$H$30,NA(),IF(G35<F34,G35,F34)) -> 489.200012 | J34: =IF($A34>$H$30,NA(),H34-I34) -> 6.849976 | K34: ="b1(" & $A$24 & ") ==>" -> b1() ==> | L34: =2*L33*COS(RADIANS(1.414*180/$A$17)) -> 1.562308736 | M34: =IF($A34>$H$30,NA(),IF($A34>$M$30,J34,(1-$L$35)*J34+(2*$L$35-$L$36)*J35-($L$35+$L$37)*J36+$L$36*M35+$L$37*M36)) -> 5.811535617 | N34: ="b1(" & $A$24 & ") ==>" -> b1() ==> | O34: =2*O33*COS(RADIANS(1.414*180/$A$18)) -> 1.562308736 | P34: =IF($A34>$B$30,NA(),IF($A34>$P$30,G34,(1-$O$35)*G34+(2*$O$35-$O$36)*G35-($O$35+$O$37)*G36+$O$36*P35+$O$37*P36)) -> 491.3419652 | Q34: =IF($A34>$M$30,NA(),$P34+$M34*$A$19) -> 497.1535009 | R34: =IF($A34>$M$30,NA(),$P34-$M34*$A$19) -> 485.5304296 | T34: ="b1(" & $A$24 & ") ==>" -> b1() ==> | U34: =2*U33*COS(RADIANS(1.414*180/$A$22)) -> 1.562308736 | V34: =IF($A34>$B$30,NA(),IF($A34>$P$30,G34,(1-$U$35)*G34+(2*$U$35-$U$36)*G35-($U$35+$U$37)*G36+$U$36*V35+$U$37*V36)) -> 491.3419652 | W34: =IF($A34>$V$30,NA(),(G34-V34)) -> 3.00804076 | X34: =IF($A34>$V$30,NA(),W34^2) -> 9.048309214 | Y34: 3.189330263 | Z34: =IF($A34>$V$30,NA(),$G34+$A$23*Y34) -> 497.5393363 | AA34: =IF($A34>$V$30,NA(),$G34-$A$23*Y34) -> 491.1606757 | BC34: =IF(G34>=G35,C34,NA()) -> 99147700 | BD34: =IF(G34<G35,C34,NA()) ->  | BE34: =$E$27 -> 105 | BF34: =CEILING(BF32,10^INT(LOG10(BF32))/8) -> 200000000 | BG34: =$E$27 -> 105 | BH34: 500.3822095 | BI34: =$E$27 -> 105 | BJ34: 0 | BK34: =$E$27 -> 105 | BL34: 0 | BM34: 105 | BN34: 0 | BO34: 105 | BP34: 490.3620841 | BQ34: 105 | BR34: 0 | BS34: 105 | BT34: 0 | BU34: 105 | BV34: 0 | BW34: 105 | BX34: 0
A35: 3 | B35: =IF(A35>$A$8,"",OFFSET(InputPriceData!B$15,$A35+$A$11,0,1,1)) -> 2024-02-01 | C35: =IF(A35>$A$8,"",OFFSET(InputPriceData!G$15,CalculationsAndCharts!$A35+$A$11,IF($C$5,8,0),1,1)) -> 91891600 | D35: =IF(A35>$A$8,"",OFFSET(InputPriceData!C$15,CalculationsAndCharts!$A35+$A$11,IF($C$5,8,0),1,1)) -> 484.630005 | E35: =IF(A35>$A$8,"",OFFSET(InputPriceData!D$15,CalculationsAndCharts!$A35+$A$11,IF($C$5,8,0),1,1)) -> 489.230011 | F35: =IF(A35>$A$8,"",OFFSET(InputPriceData!E$15,CalculationsAndCharts!$A35+$A$11,IF($C$5,8,0),1,1)) -> 483.799988 | G35: =IF(A35>$A$8,"",OFFSET(InputPriceData!$F$15,CalculationsAndCharts!$A35+$A$11,IF($C$5,8,0),1,1)) -> 489.200012 | H35: 489.230011 | I35: 482.880005 | J35: 6.350006 | K35: ="c1(" & $A$24 & ") ==>" -> c1() ==> | L35: =(1+L36-L37)/4 -> 0.8009081301 | M35: 4.914205717 | N35: ="c1(" & $A$24 & ") ==>" -> c1() ==> | O35: =(1+O36-O37)/4 -> 0.8009081301 | P35: 490.0561861 | Q35: 494.9703918 | R35: 485.1419804 | T35: ="c1(" & $A$24 & ") ==>" -> c1() ==> | U35: =(1+U36-U37)/4 -> 0.8009081301 | V35: 490.0561861 | W35: -0.8561741138 | X35: 0.7330341131 | Y35: 3.300058102 | Z35: 492.5000701 | AA35: 485.8999539 | BC35: 91891600
A36: 4 | B36: =IF(A36>$A$8,"",OFFSET(InputPriceData!B$15,$A36+$A$11,0,1,1)) -> 2024-01-31 | C36: =IF(A36>$A$8,"",OFFSET(InputPriceData!G$15,CalculationsAndCharts!$A36+$A$11,IF($C$5,8,0),1,1)) -> 126011100 | D36: =IF(A36>$A$8,"",OFFSET(InputPriceData!C$15,CalculationsAndCharts!$A36+$A$11,IF($C$5,8,0),1,1)) -> 488.619995 | E36: =IF(A36>$A$8,"",OFFSET(InputPriceData!D$15,CalculationsAndCharts!$A36+$A$11,IF($C$5,8,0),1,1)) -> 489.079987 | F36: =IF(A36>$A$8,"",OFFSET(InputPriceData!E$15,CalculationsAndCharts!$A36+$A$11,IF($C$5,8,0),1,1)) -> 482.859985 | G36: =IF(A36>$A$8,"",OFFSET(InputPriceData!F$15,CalculationsAndCharts!$A36+$A$11,IF($C$5,8,0),1,1)) -> 482.880005 | H36: 490.890015 | I36: 482.859985 | J36: 8.03003 | K36: ="c2(" & $A$24 & ") ==>" -> c2() ==> | L36: =L34 -> 1.562308736 | M36: 3.429081252 | N36: ="c2(" & $A$24 & ") ==>" -> c2() ==> | O36: =O34 -> 1.562308736 | P36: 491.1172201 | Q36: 494.5463014 | R36: 487.6881389 | T36: ="c2(" & $A$24 & ") ==>" -> c2() ==> | U36: =U34 -> 1.562308736 | V36: 491.1172201 | W36: -8.237215135 | X36: 67.85171318 | Y36: 3.559008998 | Z36: 486.439014 | AA36: 479.320996 | BD36: 126011100
A37: 5 | B37: =IF(A37>$A$8,"",OFFSET(InputPriceData!B$15,$A37+$A$11,0,1,1)) -> 2024-01-30 | C37: =IF(A37>$A$8,"",OFFSET(InputPriceData!G$15,CalculationsAndCharts!$A37+$A$11,IF($C$5,8,0),1,1)) -> 58618400 | D37: =IF(A37>$A$8,"",OFFSET(InputPriceData!C$15,CalculationsAndCharts!$A37+$A$11,IF($C$5,8,0),1,1)) -> 490.559998 | E37: =IF(A37>$A$8,"",OFFSET(InputPriceData!D$15,CalculationsAndCharts!$A37+$A$11,IF($C$5,8,0),1,1)) -> 491.619995 | F37: =IF(A37>$A$8,"",OFFSET(InputPriceData!E$15,CalculationsAndCharts!$A37+$A$11,IF($C$5,8,0),1,1)) -> 490.109985 | G37: =IF(A37>$A$8,"",OFFSET(InputPriceData!F$15,CalculationsAndCharts!$A37+$A$11,IF($C$5,8,0),1,1)) -> 490.890015 | H37: 491.619995 | I37: 490.109985 | J37: 1.51001 | K37: ="c3(" & $A$24 & ") ==>" -> c3() ==> | L37: =-(L33^2) -> -0.6413237842 | M37: 2.781099248 | N37: ="c3(" & $A$24 & ") ==>" -> c3() ==> | O37: =-(O33^2) -> -0.6413237842 | P37: 491.7255866 | Q37: 494.5066858 | R37: 488.9444873 | T37: ="c3(" & $A$24 & ") ==>" -> c3() ==> | U37: =-(U33^2) -> -0.6413237842 | V37: 491.7255866 | W37: -0.8355715896 | X37: 0.6981798813 | Y37: 3.186033088 | Z37: 494.0760481 | AA37: 487.7039819 | BD37: 58618400
A38: 6 | B38: =IF(A38>$A$8,"",OFFSET(InputPriceData!B$15,$A38+$A$11,0,1,1)) -> 2024-01-29 | C38: =IF(A38>$A$8,"",OFFSET(InputPriceData!G$15,CalculationsAndCharts!$A38+$A$11,IF($C$5,8,0),1,1)) -> 61322800 | D38: =IF(A38>$A$8,"",OFFSET(InputPriceData!C$15,CalculationsAndCharts!$A38+$A$11,IF($C$5,8,0),1,1)) -> 487.730011 | E38: =IF(A38>$A$8,"",OFFSET(InputPriceData!D$15,CalculationsAndCharts!$A38+$A$11,IF($C$5,8,0),1,1)) -> 491.420013 | F38: =IF(A38>$A$8,"",OFFSET(InputPriceData!E$15,CalculationsAndCharts!$A38+$A$11,IF($C$5,8,0),1,1)) -> 487.170013 | G38: =IF(A38>$A$8,"",OFFSET(InputPriceData!F$15,CalculationsAndCharts!$A38+$A$11,IF($C$5,8,0),1,1)) -> 491.269989 | H38: 491.420013 | I38: 487.170013 | J38: 4.25 | M38: 2.956371524 | P38: 489.9900794 | Q38: 492.9464509 | R38: 487.0337079 | V38: 489.9900794 | W38: 1.279909611 | X38: 1.638168612 | Y38: 3.222264969 | Z38: 494.492254 | AA38: 488.047724 | BC38: 61322800
A39: 7 | B39: =IF(A39>$A$8,"",OFFSET(InputPriceData!B$15,$A39+$A$11,0,1,1)) -> 2024-01-26 | C39: =IF(A39>$A$8,"",OFFSET(InputPriceData!G$15,CalculationsAndCharts!$A39+$A$11,IF($C$5,8,0),1,1)) -> 76641600 | D39: =IF(A39>$A$8,"",OFFSET(InputPriceData!C$15,CalculationsAndCharts!$A39+$A$11,IF($C$5,8,0),1,1)) -> 487.589996 | E39: =IF(A39>$A$8,"",OFFSET(InputPriceData!D$15,CalculationsAndCharts!$A39+$A$11,IF($C$5,8,0),1,1)) -> 489.119995 | F39: =IF(A39>$A$8,"",OFFSET(InputPriceData!E$15,CalculationsAndCharts!$A39+$A$11,IF($C$5,8,0),1,1)) -> 486.540009 | G39: =IF(A39>$A$8,"",OFFSET(InputPriceData!F$15,CalculationsAndCharts!$A39+$A$11,IF($C$5,8,0),1,1)) -> 487.410004 | H39: 489.119995 | I39: 486.540009 | J39: 2.579986 | M39: 2.954011953 | P39: 488.2841835 | Q39: 491.2381954 | R39: 485.3301715 | V39: 488.2841835 | W39: -0.8741794579 | X39: 0.7641897246 | Y39: 3.213334467 | Z39: 490.6233385 | AA39: 484.1966695 | BD39: 76641600
A40: 8 | B40: =IF(A40>$A$8,"",OFFSET(InputPriceData!B$15,$A40+$A$11,0,1,1)) -> 2024-01-25 | C40: =IF(A40>$A$8,"",OFFSET(InputPriceData!G$15,CalculationsAndCharts!$A40+$A$11,IF($C$5,8,0),1,1)) -> 72525000 | D40: =IF(A40>$A$8,"",OFFSET(InputPriceData!C$15,CalculationsAndCharts!$A40+$A$11,IF($C$5,8,0),1,1)) -> 487.579987 | E40: =IF(A40>$A$8,"",OFFSET(InputPriceData!D$15,CalculationsAndCharts!$A40+$A$11,IF($C$5,8,0),1,1)) -> 488.309998 | F40: =IF(A40>$A$8,"",OFFSET(InputPriceData!E$15,CalculationsAndCharts!$A40+$A$11,IF($C$5,8,0),1,1)) -> 485.390015 | G40: =IF(A40>$A$8,"",OFFSET(InputPriceData!F$15,CalculationsAndCharts!$A40+$A$11,IF($C$5,8,0),1,1)) -> 488.029999 | H40: 488.309998 | I40: 485.390015 | J40: 2.919983 | M40: 3.338084349 | P40: 486.5605313 | Q40: 489.8986156 | R40: 483.2224469 | V40: 486.5605313 | W40: 1.469467705 | X40: 2.159335337 | Y40: 3.207400938 | Z40: 491.2373999 | AA40: 484.8225981 | BC40: =IF(G40>=G41,C40,NA()) -> 72525000 | BD40: =IF(G40<G41,C40,NA()) -> 
A41: 9 | B41: =IF(A41>$A$8,"",OFFSET(InputPriceData!B$15,$A41+$A$11,0,1,1)) -> 2024-01-24 | C41: =IF(A41>$A$8,"",OFFSET(InputPriceData!G$15,CalculationsAndCharts!$A41+$A$11,IF($C$5,8,0),1,1)) -> 81765000 | D41: =IF(A41>$A$8,"",OFFSET(InputPriceData!C$15,CalculationsAndCharts!$A41+$A$11,IF($C$5,8,0),1,1)) -> 487.809998 | E41: =IF(A41>$A$8,"",OFFSET(InputPriceData!D$15,CalculationsAndCharts!$A41+$A$11,IF($C$5,8,0),1,1)) -> 488.769989 | F41: =IF(A41>$A$8,"",OFFSET(InputPriceData!E$15,CalculationsAndCharts!$A41+$A$11,IF($C$5,8,0),1,1)) -> 484.880005 | G41: =IF(A41>$A$8,"",OFFSET(InputPriceData!F$15,CalculationsAndCharts!$A41+$A$11,IF($C$5,8,0),1,1)) -> 485.390015 | H41: 488.769989 | I41: 484.859985 | J41: 3.910004 | M41: 3.533545064 | P41: 484.5183835 | Q41: 488.0519286 | R41: 480.9848384 | V41: 484.5183835 | W41: 0.8716314916 | X41: 0.7597414572 | Y41: 3.19064924 | Z41: 488.5806642 | AA41: 482.1993658 | BC41: 81765000
A42: 10 | B42: =IF(A42>$A$8,"",OFFSET(InputPriceData!B$15,$A42+$A$11,0,1,1)) -> 2024-01-23 | C42: =IF(A42>$A$8,"",OFFSET(InputPriceData!G$15,CalculationsAndCharts!$A42+$A$11,IF($C$5,8,0),1,1)) -> 49945300 | D42: =IF(A42>$A$8,"",OFFSET(InputPriceData!C$15,CalculationsAndCharts!$A42+$A$11,IF($C$5,8,0),1,1)) -> 484.01001 | E42: =IF(A42>$A$8,"",OFFSET(InputPriceData!D$15,CalculationsAndCharts!$A42+$A$11,IF($C$5,8,0),1,1)) -> 485.109985 | F42: =IF(A42>$A$8,"",OFFSET(InputPriceData!E$15,CalculationsAndCharts!$A42+$A$11,IF($C$5,8,0),1,1)) -> 482.890015 | G42: =IF(A42>$A$8,"",OFFSET(InputPriceData!F$15,CalculationsAndCharts!$A42+$A$11,IF($C$5,8,0),1,1)) -> 484.859985 | H42: 485.109985 | I42: 482.890015 | J42: 2.21997 | M42: 3.997904068 | P42: 482.3929486 | Q42: 486.3908527 | R42: 478.3950446 | V42: 482.3929486 | W42: 2.467036371 | X42: 6.086268458 | Y42: 3.193234865 | Z42: 488.0532199 | AA42: 481.6667501 | BC42: 49945300
A43: 11 | B43: =IF(A43>$A$8,"",OFFSET(InputPriceData!B$15,$A43+$A$11,0,1,1)) -> 2024-01-22 | C43: =IF(A43>$A$8,"",OFFSET(InputPriceData!G$15,CalculationsAndCharts!$A43+$A$11,IF($C$5,8,0),1,1)) -> 75844900 | D43: =IF(A43>$A$8,"",OFFSET(InputPriceData!C$15,CalculationsAndCharts!$A43+$A$11,IF($C$5,8,0),1,1)) -> 484.01001 | E43: =IF(A43>$A$8,"",OFFSET(InputPriceData!D$15,CalculationsAndCharts!$A43+$A$11,IF($C$5,8,0),1,1)) -> 485.220001 | F43: =IF(A43>$A$8,"",OFFSET(InputPriceData!E$15,CalculationsAndCharts!$A43+$A$11,IF($C$5,8,0),1,1)) -> 482.779999 | G43: =IF(A43>$A$8,"",OFFSET(InputPriceData!F$15,CalculationsAndCharts!$A43+$A$11,IF($C$5,8,0),1,1)) -> 483.450012 | H43: 485.220001 | I43: 482.429993 | J43: 2.790008 | M43: 4.885721362 | P43: 479.8981595 | Q43: 484.7838809 | R43: 475.0124381 | V43: 479.8981595 | W43: 3.551852492 | X43: 12.61565613 | Y43: 3.161384384 | Z43: 486.6113964 | AA43: 480.2886276 | BC43: 75844900
A44: 12 | B44: =IF(A44>$A$8,"",OFFSET(InputPriceData!B$15,$A44+$A$11,0,1,1)) -> 2024-01-19 | C44: =IF(A44>$A$8,"",OFFSET(InputPriceData!G$15,CalculationsAndCharts!$A44+$A$11,IF($C$5,8,0),1,1)) -> 110733300 | D44: =IF(A44>$A$8,"",OFFSET(InputPriceData!C$15,CalculationsAndCharts!$A44+$A$11,IF($C$5,8,0),1,1)) -> 477.649994 | E44: =IF(A44>$A$8,"",OFFSET(InputPriceData!D$15,CalculationsAndCharts!$A44+$A$11,IF($C$5,8,0),1,1)) -> 482.720001 | F44: =IF(A44>$A$8,"",OFFSET(InputPriceData!E$15,CalculationsAndCharts!$A44+$A$11,IF($C$5,8,0),1,1)) -> 476.540009 | G44: =IF(A44>$A$8,"",OFFSET(InputPriceData!F$15,CalculationsAndCharts!$A44+$A$11,IF($C$5,8,0),1,1)) -> 482.429993 | H44: 482.720001 | I44: 476.48999 | J44: 6.230011 | M44: 4.978909613 | P44: 477.1372357 | Q44: 482.1161453 | R44: 472.1583261 | V44: 477.1372357 | W44: 5.292757293 | X44: 28.01327976 | Y44: 3.360193555 | Z44: 485.7901866 | AA44: 479.0697994 | BC44: 110733300
A45: 13 | B45: =IF(A45>$A$8,"",OFFSET(InputPriceData!B$15,$A45+$A$11,0,1,1)) -> 2024-01-18 | C45: =IF(A45>$A$8,"",OFFSET(InputPriceData!G$15,CalculationsAndCharts!$A45+$A$11,IF($C$5,8,0),1,1)) -> 91856200 | D45: =IF(A45>$A$8,"",OFFSET(InputPriceData!C$15,CalculationsAndCharts!$A45+$A$11,IF($C$5,8,0),1,1)) -> 474.01001 | E45: =IF(A45>$A$8,"",OFFSET(InputPriceData!D$15,CalculationsAndCharts!$A45+$A$11,IF($C$5,8,0),1,1)) -> 477.059998 | F45: =IF(A45>$A$8,"",OFFSET(InputPriceData!E$15,CalculationsAndCharts!$A45+$A$11,IF($C$5,8,0),1,1)) -> 472.420013 | G45: =IF(A45>$A$8,"",OFFSET(InputPriceData!F$15,CalculationsAndCharts!$A45+$A$11,IF($C$5,8,0),1,1)) -> 476.48999 | H45: 477.059998 | I45: 472.290009 | J45: 4.769989 | M45: 4.573754069 | P45: 475.2790365 | Q45: 479.8527906 | R45: 470.7052824 | V45: 475.2790365 | W45: 1.210953498 | X45: 1.466408374 | Y45: 3.150800076 | Z45: 479.6407901 | AA45: 473.3391899 | BC45: =IF(G45>=G46,C45,NA()) -> 91856200 | BD45: =IF(G45<G46,C45,NA()) -> 
A46: 14 | B46: =IF(A46>$A$8,"",OFFSET(InputPriceData!B$15,$A46+$A$11,0,1,1)) -> 2024-01-17 | C46: =IF(A46>$A$8,"",OFFSET(InputPriceData!G$15,CalculationsAndCharts!$A46+$A$11,IF($C$5,8,0),1,1)) -> 68843900 | D46: =IF(A46>$A$8,"",OFFSET(InputPriceData!C$15,CalculationsAndCharts!$A46+$A$11,IF($C$5,8,0),1,1)) -> 471.820007 | E46: =IF(A46>$A$8,"",OFFSET(InputPriceData!D$15,CalculationsAndCharts!$A46+$A$11,IF($C$5,8,0),1,1)) -> 472.790009 | F46: =IF(A46>$A$8,"",OFFSET(InputPriceData!E$15,CalculationsAndCharts!$A46+$A$11,IF($C$5,8,0),1,1)) -> 469.869995 | G46: =IF(A46>$A$8,"",OFFSET(InputPriceData!F$15,CalculationsAndCharts!$A46+$A$11,IF($C$5,8,0),1,1)) -> 472.290009 | H46: 474.929993 | I46: 469.869995 | J46: 5.059998 | M46: 4.347265638 | P46: 475.4199043 | Q46: 479.7671699 | R46: 471.0726387 | V46: 475.4199043 | W46: -3.129895299 | X46: 9.796244585 | Y46: 3.139145444 | Z46: 475.4291544 | AA46: 469.1508636 | BD46: 68843900
A47: 15 | B47: =IF(A47>$A$8,"",OFFSET(InputPriceData!B$15,$A47+$A$11,0,1,1)) -> 2024-01-16 | C47: =IF(A47>$A$8,"",OFFSET(InputPriceData!G$15,CalculationsAndCharts!$A47+$A$11,IF($C$5,8,0),1,1)) -> 85014900 | D47: =IF(A47>$A$8,"",OFFSET(InputPriceData!C$15,CalculationsAndCharts!$A47+$A$11,IF($C$5,8,0),1,1)) -> 475.26001 | E47: =IF(A47>$A$8,"",OFFSET(InputPriceData!D$15,CalculationsAndCharts!$A47+$A$11,IF($C$5,8,0),1,1)) -> 476.609985 | F47: =IF(A47>$A$8,"",OFFSET(InputPriceData!E$15,CalculationsAndCharts!$A47+$A$11,IF($C$5,8,0),1,1)) -> 473.059998 | G47: =IF(A47>$A$8,"",OFFSET(InputPriceData!F$15,CalculationsAndCharts!$A47+$A$11,IF($C$5,8,0),1,1)) -> 474.929993 | H47: 476.679993 | I47: 473.059998 | J47: 3.619995 | M47: 4.350215246 | P47: 475.9008484 | Q47: 480.2510637 | R47: 471.5506332 | V47: 475.9008484 | W47: -0.9708554473 | X47: 0.9425602996 | Y47: 3.069995429 | Z47: 477.9999884 | AA47: 471.8599976 | BD47: 85014900
A48: 16 | B48: =IF(A48>$A$8,"",OFFSET(InputPriceData!B$15,$A48+$A$11,0,1,1)) -> 2024-01-12 | C48: =IF(A48>$A$8,"",OFFSET(InputPriceData!G$15,CalculationsAndCharts!$A48+$A$11,IF($C$5,8,0),1,1)) -> 57944000 | D48: =IF(A48>$A$8,"",OFFSET(InputPriceData!C$15,CalculationsAndCharts!$A48+$A$11,IF($C$5,8,0),1,1)) -> 477.839996 | E48: =IF(A48>$A$8,"",OFFSET(InputPriceData!D$15,CalculationsAndCharts!$A48+$A$11,IF($C$5,8,0),1,1)) -> 478.600006 | F48: =IF(A48>$A$8,"",OFFSET(InputPriceData!E$15,CalculationsAndCharts!$A48+$A$11,IF($C$5,8,0),1,1)) -> 475.230011 | G48: =IF(A48>$A$8,"",OFFSET(InputPriceData!F$15,CalculationsAndCharts!$A48+$A$11,IF($C$5,8,0),1,1)) -> 476.679993 | H48: 478.600006 | I48: 475.230011 | J48: 3.369995 | M48: 4.774088807 | P48: 475.2761406 | Q48: 480.0502294 | R48: 470.5020518 | V48: 475.2761406 | W48: 1.403852396 | X48: 1.97080155 | Y48: 3.189683338 | Z48: 479.8696763 | AA48: 473.4903097 | BC48: 57944000
A49: 17 | B49: =IF(A49>$A$8,"",OFFSET(InputPriceData!B$15,$A49+$A$11,0,1,1)) -> 2024-01-11 | C49: =IF(A49>$A$8,"",OFFSET(InputPriceData!G$15,CalculationsAndCharts!$A49+$A$11,IF($C$5,8,0),1,1)) -> 77940700 | D49: =IF(A49>$A$8,"",OFFSET(InputPriceData!C$15,CalculationsAndCharts!$A49+$A$11,IF($C$5,8,0),1,1)) -> 477.589996 | E49: =IF(A49>$A$8,"",OFFSET(InputPriceData!D$15,CalculationsAndCharts!$A49+$A$11,IF($C$5,8,0),1,1)) -> 478.119995 | F49: =IF(A49>$A$8,"",OFFSET(InputPriceData!E$15,CalculationsAndCharts!$A49+$A$11,IF($C$5,8,0),1,1)) -> 472.26001 | G49: =IF(A49>$A$8,"",OFFSET(InputPriceData!F$15,CalculationsAndCharts!$A49+$A$11,IF($C$5,8,0),1,1)) -> 476.350006 | H49: 478.119995 | I49: 472.26001 | J49: 5.859985 | M49: 4.720042103 | P49: 474.0138572 | Q49: 478.7338993 | R49: 469.2938151 | V49: 474.0138572 | W49: 2.336148835 | X49: 5.457591378 | Y49: 3.464083467 | Z49: 479.8140895 | AA49: 472.8859225 | BD49: 77940700
A50: 18 | B50: =IF(A50>$A$8,"",OFFSET(InputPriceData!B$15,$A50+$A$11,0,1,1)) -> 2024-01-10 | C50: =IF(A50>$A$8,"",OFFSET(InputPriceData!G$15,CalculationsAndCharts!$A50+$A$11,IF($C$5,8,0),1,1)) -> 67310600 | D50: =IF(A50>$A$8,"",OFFSET(InputPriceData!C$15,CalculationsAndCharts!$A50+$A$11,IF($C$5,8,0),1,1)) -> 474.160004 | E50: =IF(A50>$A$8,"",OFFSET(InputPriceData!D$15,CalculationsAndCharts!$A50+$A$11,IF($C$5,8,0),1,1)) -> 477.450012 | F50: =IF(A50>$A$8,"",OFFSET(InputPriceData!E$15,CalculationsAndCharts!$A50+$A$11,IF($C$5,8,0),1,1)) -> 473.869995 | G50: =IF(A50>$A$8,"",OFFSET(InputPriceData!F$15,CalculationsAndCharts!$A50+$A$11,IF($C$5,8,0),1,1)) -> 476.559998 | H50: 477.450012 | I50: 473.869995 | J50: 3.580017 | M50: 4.570564372 | P50: 472.3836257 | Q50: 476.95419 | R50: 467.8130613 | V50: 472.3836257 | W50: 4.176372333 | X50: 17.44208586 | Y50: 3.48056134 | Z50: 480.0405593 | AA50: 473.0794367 | BC50: 67310600
A51: 19 | B51: =IF(A51>$A$8,"",OFFSET(InputPriceData!B$15,$A51+$A$11,0,1,1)) -> 2024-01-09 | C51: =IF(A51>$A$8,"",OFFSET(InputPriceData!G$15,CalculationsAndCharts!$A51+$A$11,IF($C$5,8,0),1,1)) -> 65931400 | D51: =IF(A51>$A$8,"",OFFSET(InputPriceData!C$15,CalculationsAndCharts!$A51+$A$11,IF($C$5,8,0),1,1)) -> 471.869995 | E51: =IF(A51>$A$8,"",OFFSET(InputPriceData!D$15,CalculationsAndCharts!$A51+$A$11,IF($C$5,8,0),1,1)) -> 474.929993 | F51: =IF(A51>$A$8,"",OFFSET(InputPriceData!E$15,CalculationsAndCharts!$A51+$A$11,IF($C$5,8,0),1,1)) -> 471.350006 | G51: =IF(A51>$A$8,"",OFFSET(InputPriceData!F$15,CalculationsAndCharts!$A51+$A$11,IF($C$5,8,0),1,1)) -> 473.880005 | H51: 474.929993 | I51: 471.350006 | J51: 3.579987 | M51: 4.923244261 | P51: 470.9578903 | Q51: 475.8811346 | R51: 466.034646 | V51: 470.9578903 | W51: 2.922114711 | X51: 8.538754384 | Y51: 3.397913361 | Z51: 477.2779184 | AA51: 470.4820916 | BD51: 65931400
A52: 20 | B52: =IF(A52>$A$8,"",OFFSET(InputPriceData!B$15,$A52+$A$11,0,1,1)) -> 2024-01-08 | C52: =IF(A52>$A$8,"",OFFSET(InputPriceData!G$15,CalculationsAndCharts!$A52+$A$11,IF($C$5,8,0),1,1)) -> 74879100 | D52: =IF(A52>$A$8,"",OFFSET(InputPriceData!C$15,CalculationsAndCharts!$A52+$A$11,IF($C$5,8,0),1,1)) -> 468.429993 | E52: =IF(A52>$A$8,"",OFFSET(InputPriceData!D$15,CalculationsAndCharts!$A52+$A$11,IF($C$5,8,0),1,1)) -> 474.75 | F52: =IF(A52>$A$8,"",OFFSET(InputPriceData!E$15,CalculationsAndCharts!$A52+$A$11,IF($C$5,8,0),1,1)) -> 468.299988 | G52: =IF(A52>$A$8,"",OFFSET(InputPriceData!F$15,CalculationsAndCharts!$A52+$A$11,IF($C$5,8,0),1,1)) -> 474.600006 | H52: 474.75 | I52: 467.920013 | J52: 6.829987 | M52: 4.498964348 | P52: 469.7476117 | Q52: 474.2465761 | R52: 465.2486474 | V52: 469.7476117 | W52: 4.852394254 | X52: 23.54572999 | Y52: 3.36625027 | Z52: 477.9662563 | AA52: 471.2337557 | BC52: 74879100
A53: 21 | B53: =IF(A53>$A$8,"",OFFSET(InputPriceData!B$15,$A53+$A$11,0,1,1)) -> 2024-01-05 | C53: =IF(A53>$A$8,"",OFFSET(InputPriceData!G$15,CalculationsAndCharts!$A53+$A$11,IF($C$5,8,0),1,1)) -> 86060800 | D53: =IF(A53>$A$8,"",OFFSET(InputPriceData!C$15,CalculationsAndCharts!$A53+$A$11,IF($C$5,8,0),1,1)) -> 467.48999 | E53: =IF(A53>$A$8,"",OFFSET(InputPriceData!D$15,CalculationsAndCharts!$A53+$A$11,IF($C$5,8,0),1,1)) -> 470.440002 | F53: =IF(A53>$A$8,"",OFFSET(InputPriceData!E$15,CalculationsAndCharts!$A53+$A$11,IF($C$5,8,0),1,1)) -> 466.429993 | G53: =IF(A53>$A$8,"",OFFSET(InputPriceData!F$15,CalculationsAndCharts!$A53+$A$11,IF($C$5,8,0),1,1)) -> 467.920013 | H53: 470.440002 | I53: 466.429993 | J53: 4.010009 | M53: 3.817376841 | P53: 469.8970052 | Q53: 473.7143821 | R53: 466.0796284 | V53: 469.8970052 | W53: -1.976992223 | X53: 3.90849825 | Y53: 3.193782205 | Z53: 471.1137952 | AA53: 464.7262308 | BC53: 86060800
A54: 22 | B54: =IF(A54>$A$8,"",OFFSET(InputPriceData!B$15,$A54+$A$11,0,1,1)) -> 2024-01-04 | C54: =IF(A54>$A$8,"",OFFSET(InputPriceData!G$15,CalculationsAndCharts!$A54+$A$11,IF($C$5,8,0),1,1)) -> 84232200 | D54: =IF(A54>$A$8,"",OFFSET(InputPriceData!C$15,CalculationsAndCharts!$A54+$A$11,IF($C$5,8,0),1,1)) -> 468.299988 | E54: =IF(A54>$A$8,"",OFFSET(InputPriceData!D$15,CalculationsAndCharts!$A54+$A$11,IF($C$5,8,0),1,1)) -> 470.959991 | F54: =IF(A54>$A$8,"",OFFSET(InputPriceData!E$15,CalculationsAndCharts!$A54+$A$11,IF($C$5,8,0),1,1)) -> 467.049988 | G54: =IF(A54>$A$8,"",OFFSET(InputPriceData!F$15,CalculationsAndCharts!$A54+$A$11,IF($C$5,8,0),1,1)) -> 467.279999 | H54: 470.959991 | I54: 467.049988 | J54: 3.910003 | M54: 3.678644138 | P54: 472.1193614 | Q54: 475.7980055 | R54: 468.4407172 | V54: 472.1193614 | W54: -4.83936237 | X54: 23.41942815 | Y54: 3.22251245 | Z54: 470.5025115 | AA54: 464.0574865 | BD54: 84232200
A55: 23 | B55: =IF(A55>$A$8,"",OFFSET(InputPriceData!B$15,$A55+$A$11,0,1,1)) -> 2024-01-03 | C55: =IF(A55>$A$8,"",OFFSET(InputPriceData!G$15,CalculationsAndCharts!$A55+$A$11,IF($C$5,8,0),1,1)) -> 103585900 | D55: =IF(A55>$A$8,"",OFFSET(InputPriceData!C$15,CalculationsAndCharts!$A55+$A$11,IF($C$5,8,0),1,1)) -> 470.429993 | E55: =IF(A55>$A$8,"",OFFSET(InputPriceData!D$15,CalculationsAndCharts!$A55+$A$11,IF($C$5,8,0),1,1)) -> 471.190002 | F55: =IF(A55>$A$8,"",OFFSET(InputPriceData!E$15,CalculationsAndCharts!$A55+$A$11,IF($C$5,8,0),1,1)) -> 468.170013 | G55: =IF(A55>$A$8,"",OFFSET(InputPriceData!F$15,CalculationsAndCharts!$A55+$A$11,IF($C$5,8,0),1,1)) -> 468.790009 | H55: 472.649994 | I55: 468.170013 | J55: 4.479981 | M55: 3.38004137 | P55: 474.8113266 | Q55: 478.191368 | R55: 471.4312852 | V55: 474.8113266 | W55: -6.021317593 | X55: 36.25626555 | Y55: 3.055787754 | Z55: 471.8457968 | AA55: 465.7342212 | BD55: 103585900
A56: 24 | B56: =IF(A56>$A$8,"",OFFSET(InputPriceData!B$15,$A56+$A$11,0,1,1)) -> 2024-01-02 | C56: =IF(A56>$A$8,"",OFFSET(InputPriceData!G$15,CalculationsAndCharts!$A56+$A$11,IF($C$5,8,0),1,1)) -> 123623700 | D56: =IF(A56>$A$8,"",OFFSET(InputPriceData!C$15,CalculationsAndCharts!$A56+$A$11,IF($C$5,8,0),1,1)) -> 472.160004 | E56: =IF(A56>$A$8,"",OFFSET(InputPriceData!D$15,CalculationsAndCharts!$A56+$A$11,IF($C$5,8,0),1,1)) -> 473.670013 | F56: =IF(A56>$A$8,"",OFFSET(InputPriceData!E$15,CalculationsAndCharts!$A56+$A$11,IF($C$5,8,0),1,1)) -> 470.48999 | G56: =IF(A56>$A$8,"",OFFSET(InputPriceData!F$15,CalculationsAndCharts!$A56+$A$11,IF($C$5,8,0),1,1)) -> 472.649994 | H56: 475.309998 | I56: 470.48999 | J56: 4.820008 | M56: 2.788402691 | P56: 476.8377081 | Q56: 479.6261107 | R56: 474.0493054 | V56: 476.8377081 | W56: -4.187714056 | X56: 17.53694901 | Y56: 2.770255374 | Z56: 475.4202494 | AA56: 469.8797386 | BD56: 123623700
A57: 25 | B57: =IF(A57>$A$8,"",OFFSET(InputPriceData!B$15,$A57+$A$11,0,1,1)) -> 2023-12-29 | C57: =IF(A57>$A$8,"",OFFSET(InputPriceData!G$15,CalculationsAndCharts!$A57+$A$11,IF($C$5,8,0),1,1)) -> 122234100 | D57: =IF(A57>$A$8,"",OFFSET(InputPriceData!C$15,CalculationsAndCharts!$A57+$A$11,IF($C$5,8,0),1,1)) -> 476.48999 | E57: =IF(A57>$A$8,"",OFFSET(InputPriceData!D$15,CalculationsAndCharts!$A57+$A$11,IF($C$5,8,0),1,1)) -> 477.029999 | F57: =IF(A57>$A$8,"",OFFSET(InputPriceData!E$15,CalculationsAndCharts!$A57+$A$11,IF($C$5,8,0),1,1)) -> 473.299988 | G57: =IF(A57>$A$8,"",OFFSET(InputPriceData!F$15,CalculationsAndCharts!$A57+$A$11,IF($C$5,8,0),1,1)) -> 475.309998 | H57: 477.029999 | I57: 473.299988 | J57: 3.730011 | M57: 2.281854439 | P57: 477.6212474 | Q57: 479.9031018 | R57: 475.3393929 | V57: 477.6212474 | W57: -2.311249382 | X57: 5.341873707 | Y57: 2.61975133 | Z57: 477.9297493 | AA57: 472.6902467 | BD57: 122234100
A58: 26 | B58: =IF(A58>$A$8,"",OFFSET(InputPriceData!B$15,$A58+$A$11,0,1,1)) -> 2023-12-28 | C58: =IF(A58>$A$8,"",OFFSET(InputPriceData!G$15,CalculationsAndCharts!$A58+$A$11,IF($C$5,8,0),1,1)) -> 77158100 | D58: =IF(A58>$A$8,"",OFFSET(InputPriceData!C$15,CalculationsAndCharts!$A58+$A$11,IF($C$5,8,0),1,1)) -> 476.880005 | E58: =IF(A58>$A$8,"",OFFSET(InputPriceData!D$15,CalculationsAndCharts!$A58+$A$11,IF($C$5,8,0),1,1)) -> 477.549988 | F58: =IF(A58>$A$8,"",OFFSET(InputPriceData!E$15,CalculationsAndCharts!$A58+$A$11,IF($C$5,8,0),1,1)) -> 476.26001 | G58: =IF(A58>$A$8,"",OFFSET(InputPriceData!F$15,CalculationsAndCharts!$A58+$A$11,IF($C$5,8,0),1,1)) -> 476.690002 | H58: 477.549988 | I58: 476.26001 | J58: 1.289978 | M58: 2.61597353 | P58: 477.389077 | Q58: 480.0050506 | R58: 474.7731035 | V58: 477.389077 | W58: -0.699075044 | X58: 0.4887059171 | Y58: 2.57607611 | Z58: 479.2660781 | AA58: 474.1139259 | BC58: 77158100
A59: 27 | B59: =IF(A59>$A$8,"",OFFSET(InputPriceData!B$15,$A59+$A$11,0,1,1)) -> 2023-12-27 | C59: =IF(A59>$A$8,"",OFFSET(InputPriceData!G$15,CalculationsAndCharts!$A59+$A$11,IF($C$5,8,0),1,1)) -> 68000300 | D59: =IF(A59>$A$8,"",OFFSET(InputPriceData!C$15,CalculationsAndCharts!$A59+$A$11,IF($C$5,8,0),1,1)) -> 475.440002 | E59: =IF(A59>$A$8,"",OFFSET(InputPriceData!D$15,CalculationsAndCharts!$A59+$A$11,IF($C$5,8,0),1,1)) -> 476.660004 | F59: =IF(A59>$A$8,"",OFFSET(InputPriceData!E$15,CalculationsAndCharts!$A59+$A$11,IF($C$5,8,0),1,1)) -> 474.890015 | G59: =IF(A59>$A$8,"",OFFSET(InputPriceData!F$15,CalculationsAndCharts!$A59+$A$11,IF($C$5,8,0),1,1)) -> 476.51001 | H59: 476.660004 | I59: 474.890015 | J59: 1.769989 | M59: 3.611623461 | P59: 476.5573108 | Q59: 480.1689343 | R59: 472.9456874 | V59: 476.5573108 | W59: -0.04730082734 | X59: 0.002237368267 | Y59: 2.648231445 | Z59: 479.1582414 | AA59: 473.8617786 | BC59: 68000300
A60: 28 | B60: =IF(A60>$A$8,"",OFFSET(InputPriceData!B$15,$A60+$A$11,0,1,1)) -> 2023-12-26 | C60: =IF(A60>$A$8,"",OFFSET(InputPriceData!G$15,CalculationsAndCharts!$A60+$A$11,IF($C$5,8,0),1,1)) -> 55387000 | D60: =IF(A60>$A$8,"",OFFSET(InputPriceData!C$15,CalculationsAndCharts!$A60+$A$11,IF($C$5,8,0),1,1)) -> 474.070007 | E60: =IF(A60>$A$8,"",OFFSET(InputPriceData!D$15,CalculationsAndCharts!$A60+$A$11,IF($C$5,8,0),1,1)) -> 476.579987 | F60: =IF(A60>$A$8,"",OFFSET(InputPriceData!E$15,CalculationsAndCharts!$A60+$A$11,IF($C$5,8,0),1,1)) -> 473.98999 | G60: =IF(A60>$A$8,"",OFFSET(InputPriceData!F$15,CalculationsAndCharts!$A60+$A$11,IF($C$5,8,0),1,1)) -> 475.649994 | H60: 476.579987 | I60: 473.649994 | J60: 2.929993 | M60: 4.499549875 | P60: 475.5244103 | Q60: 480.0239602 | R60: 471.0248604 | V60: 475.5244103 | W60: 0.1255836754 | X60: 0.01577125953 | Y60: 2.724842866 | Z60: 478.3748369 | AA60: 472.9251511 | BC60: 55387000
A61: 29 | B61: =IF(A61>$A$8,"",OFFSET(InputPriceData!B$15,$A61+$A$11,0,1,1)) -> 2023-12-22 | C61: =IF(A61>$A$8,"",OFFSET(InputPriceData!G$15,CalculationsAndCharts!$A61+$A$11,IF($C$5,8,0),1,1)) -> 67126600 | D61: =IF(A61>$A$8,"",OFFSET(InputPriceData!C$15,CalculationsAndCharts!$A61+$A$11,IF($C$5,8,0),1,1)) -> 473.859985 | E61: =IF(A61>$A$8,"",OFFSET(InputPriceData!D$15,CalculationsAndCharts!$A61+$A$11,IF($C$5,8,0),1,1)) -> 475.380005 | F61: =IF(A61>$A$8,"",OFFSET(InputPriceData!E$15,CalculationsAndCharts!$A61+$A$11,IF($C$5,8,0),1,1)) -> 471.700012 | G61: =IF(A61>$A$8,"",OFFSET(InputPriceData!F$15,CalculationsAndCharts!$A61+$A$11,IF($C$5,8,0),1,1)) -> 473.649994 | H61: 475.380005 | I61: 471.700012 | J61: 3.679993 | M61: 5.143954759 | P61: 474.6939614 | Q61: 479.8379162 | R61: 469.5500067 | V61: 474.6939614 | W61: -1.043967446 | X61: 1.089868029 | Y61: 2.836996708 | Z61: 476.4869907 | AA61: 470.8129973 | BC61: 67126600
A62: 30 | B62: =IF(A62>$A$8,"",OFFSET(InputPriceData!B$15,$A62+$A$11,0,1,1)) -> 2023-12-21 | C62: =IF(A62>$A$8,"",OFFSET(InputPriceData!G$15,CalculationsAndCharts!$A62+$A$11,IF($C$5,8,0),1,1)) -> 86667500 | D62: =IF(A62>$A$8,"",OFFSET(InputPriceData!C$15,CalculationsAndCharts!$A62+$A$11,IF($C$5,8,0),1,1)) -> 471.329987 | E62: =IF(A62>$A$8,"",OFFSET(InputPriceData!D$15,CalculationsAndCharts!$A62+$A$11,IF($C$5,8,0),1,1)) -> 472.980011 | F62: =IF(A62>$A$8,"",OFFSET(InputPriceData!E$15,CalculationsAndCharts!$A62+$A$11,IF($C$5,8,0),1,1)) -> 468.839996 | G62: =IF(A62>$A$8,"",OFFSET(InputPriceData!F$15,CalculationsAndCharts!$A62+$A$11,IF($C$5,8,0),1,1)) -> 472.700012 | H62: 472.980011 | I62: 468.26001 | J62: 4.720001 | M62: 5.476769448 | P62: 474.1277077 | Q62: 479.6044771 | R62: 468.6509382 | V62: 474.1277077 | W62: -1.427695661 | X62: 2.038314901 | Y62: 2.884266713 | Z62: 475.5842787 | AA62: 469.8157453 | BC62: 86667500
A63: 31 | B63: =IF(A63>$A$8,"",OFFSET(InputPriceData!B$15,$A63+$A$11,0,1,1)) -> 2023-12-20 | C63: =IF(A63>$A$8,"",OFFSET(InputPriceData!G$15,CalculationsAndCharts!$A63+$A$11,IF($C$5,8,0),1,1)) -> 102921000 | D63: =IF(A63>$A$8,"",OFFSET(InputPriceData!C$15,CalculationsAndCharts!$A63+$A$11,IF($C$5,8,0),1,1)) -> 473.959991 | E63: =IF(A63>$A$8,"",OFFSET(InputPriceData!D$15,CalculationsAndCharts!$A63+$A$11,IF($C$5,8,0),1,1)) -> 475.899994 | F63: =IF(A63>$A$8,"",OFFSET(InputPriceData!E$15,CalculationsAndCharts!$A63+$A$11,IF($C$5,8,0),1,1)) -> 467.820007 | G63: =IF(A63>$A$8,"",OFFSET(InputPriceData!F$15,CalculationsAndCharts!$A63+$A$11,IF($C$5,8,0),1,1)) -> 468.26001 | H63: 475.899994 | I63: 467.820007 | J63: 8.079987 | M63: 4.743536527 | P63: 474.4686045 | Q63: 479.2121411 | R63: 469.725068 | V63: 474.4686045 | W63: -6.208594548 | X63: 38.54664626 | Y63: 2.903777625 | Z63: 471.1637876 | AA63: 465.3562324 | BD63: 102921000
A64: 32 | B64: =IF(A64>$A$8,"",OFFSET(InputPriceData!B$15,$A64+$A$11,0,1,1)) -> 2023-12-19 | C64: =IF(A64>$A$8,"",OFFSET(InputPriceData!G$15,CalculationsAndCharts!$A64+$A$11,IF($C$5,8,0),1,1)) -> 55761800 | D64: =IF(A64>$A$8,"",OFFSET(InputPriceData!C$15,CalculationsAndCharts!$A64+$A$11,IF($C$5,8,0),1,1)) -> 472.529999 | E64: =IF(A64>$A$8,"",OFFSET(InputPriceData!D$15,CalculationsAndCharts!$A64+$A$11,IF($C$5,8,0),1,1)) -> 474.920013 | F64: =IF(A64>$A$8,"",OFFSET(InputPriceData!E$15,CalculationsAndCharts!$A64+$A$11,IF($C$5,8,0),1,1)) -> 472.450012 | G64: =IF(A64>$A$8,"",OFFSET(InputPriceData!F$15,CalculationsAndCharts!$A64+$A$11,IF($C$5,8,0),1,1)) -> 474.839996 | H64: 474.920013 | I64: 471.970001 | J64: 2.950012 | M64: 4.24474742 | P64: 473.9762324 | Q64: 478.2209798 | R64: 469.731485 | V64: 473.9762324 | W64: 0.8637636023 | X64: 0.7460875607 | Y64: 2.632137235 | Z64: 477.4721332 | AA64: 472.2078588 | BC64: 55761800
A65: 33 | B65: =IF(A65>$A$8,"",OFFSET(InputPriceData!B$15,$A65+$A$11,0,1,1)) -> 2023-12-18 | C65: =IF(A65>$A$8,"",OFFSET(InputPriceData!G$15,CalculationsAndCharts!$A65+$A$11,IF($C$5,8,0),1,1)) -> 70375300 | D65: =IF(A65>$A$8,"",OFFSET(InputPriceData!C$15,CalculationsAndCharts!$A65+$A$11,IF($C$5,8,0),1,1)) -> 470.980011 | E65: =IF(A65>$A$8,"",OFFSET(InputPriceData!D$15,CalculationsAndCharts!$A65+$A$11,IF($C$5,8,0),1,1)) -> 472.980011 | F65: =IF(A65>$A$8,"",OFFSET(InputPriceData!E$15,CalculationsAndCharts!$A65+$A$11,IF($C$5,8,0),1,1)) -> 469.890015 | G65: =IF(A65>$A$8,"",OFFSET(InputPriceData!F$15,CalculationsAndCharts!$A65+$A$11,IF($C$5,8,0),1,1)) -> 471.970001 | H65: 472.980011 | I65: 469.329987 | J65: 3.650024 | M65: 4.72583463 | P65: 471.9863837 | Q65: 476.7122184 | R65: 467.2605491 | V65: 471.9863837 | W65: -0.01638274263 | X65: 0.0002683942562 | Y65: 2.626852384 | Z65: 474.5968534 | AA65: 469.3431486 | BC65: 70375300
A66: 34 | B66: =IF(A66>$A$8,"",OFFSET(InputPriceData!B$15,$A66+$A$11,0,1,1)) -> 2023-12-15 | C66: =IF(A66>$A$8,"",OFFSET(InputPriceData!G$15,CalculationsAndCharts!$A66+$A$11,IF($C$5,8,0),1,1)) -> 141319300 | D66: =IF(A66>$A$8,"",OFFSET(InputPriceData!C$15,CalculationsAndCharts!$A66+$A$11,IF($C$5,8,0),1,1)) -> 469.48999 | E66: =IF(A66>$A$8,"",OFFSET(InputPriceData!D$15,CalculationsAndCharts!$A66+$A$11,IF($C$5,8,0),1,1)) -> 470.700012 | F66: =IF(A66>$A$8,"",OFFSET(InputPriceData!E$15,CalculationsAndCharts!$A66+$A$11,IF($C$5,8,0),1,1)) -> 467.429993 | G66: =IF(A66>$A$8,"",OFFSET(InputPriceData!F$15,CalculationsAndCharts!$A66+$A$11,IF($C$5,8,0),1,1)) -> 469.329987 | H66: 472.01001 | I66: 467.429993 | J66: 4.580017 | M66: 4.894708702 | P66: 470.4295328 | Q66: 475.3242415 | R66: 465.5348241 | V66: 470.4295328 | W66: -1.099545766 | X66: 1.209000892 | Y66: 2.668256059 | Z66: 471.9982431 | AA66: 466.6617309 | BD66: 141319300
A67: 35 | B67: =IF(A67>$A$8,"",OFFSET(InputPriceData!B$15,$A67+$A$11,0,1,1)) -> 2023-12-14 | C67: =IF(A67>$A$8,"",OFFSET(InputPriceData!G$15,CalculationsAndCharts!$A67+$A$11,IF($C$5,8,0),1,1)) -> 119026000 | D67: =IF(A67>$A$8,"",OFFSET(InputPriceData!C$15,CalculationsAndCharts!$A67+$A$11,IF($C$5,8,0),1,1)) -> 472.5 | E67: =IF(A67>$A$8,"",OFFSET(InputPriceData!D$15,CalculationsAndCharts!$A67+$A$11,IF($C$5,8,0),1,1)) -> 473.730011 | F67: =IF(A67>$A$8,"",OFFSET(InputPriceData!E$15,CalculationsAndCharts!$A67+$A$11,IF($C$5,8,0),1,1)) -> 469.25 | G67: =IF(A67>$A$8,"",OFFSET(InputPriceData!F$15,CalculationsAndCharts!$A67+$A$11,IF($C$5,8,0),1,1)) -> 472.01001 | H67: 473.730011 | I67: 469.25 | J67: 4.480011 | M67: 4.855436868 | P67: 468.0191808 | Q67: 472.8746177 | R67: 463.163744 | V67: 468.0191808 | W67: 3.990829181 | X67: 15.92671755 | Y67: 2.662726285 | Z67: 474.6727363 | AA67: 469.3472837 | BC67: 119026000
A68: 36 | B68: =IF(A68>$A$8,"",OFFSET(InputPriceData!B$15,$A68+$A$11,0,1,1)) -> 2023-12-13 | C68: =IF(A68>$A$8,"",OFFSET(InputPriceData!G$15,CalculationsAndCharts!$A68+$A$11,IF($C$5,8,0),1,1)) -> 93278000 | D68: =IF(A68>$A$8,"",OFFSET(InputPriceData!C$15,CalculationsAndCharts!$A68+$A$11,IF($C$5,8,0),1,1)) -> 464.48999 | E68: =IF(A68>$A$8,"",OFFSET(InputPriceData!D$15,CalculationsAndCharts!$A68+$A$11,IF($C$5,8,0),1,1)) -> 470.76001 | F68: =IF(A68>$A$8,"",OFFSET(InputPriceData!E$15,CalculationsAndCharts!$A68+$A$11,IF($C$5,8,0),1,1)) -> 464.119995 | G68: =IF(A68>$A$8,"",OFFSET(InputPriceData!F$15,CalculationsAndCharts!$A68+$A$11,IF($C$5,8,0),1,1)) -> 470.5 | H68: 470.76001 | I68: 464.100006 | J68: 6.660004 | M68: 4.236531858 | P68: 464.2962358 | Q68: 468.5327676 | R68: 460.0597039 | V68: 464.2962358 | W68: 6.203764249 | X68: 38.48669086 | Y68: 2.527114545 | Z68: 473.0271145 | AA68: 467.9728855 | BC68: 93278000
A69: 37 | B69: =IF(A69>$A$8,"",OFFSET(InputPriceData!B$15,$A69+$A$11,0,1,1)) -> 2023-12-12 | C69: =IF(A69>$A$8,"",OFFSET(InputPriceData!G$15,CalculationsAndCharts!$A69+$A$11,IF($C$5,8,0),1,1)) -> 68327600 | D69: =IF(A69>$A$8,"",OFFSET(InputPriceData!C$15,CalculationsAndCharts!$A69+$A$11,IF($C$5,8,0),1,1)) -> 461.630005 | E69: =IF(A69>$A$8,"",OFFSET(InputPriceData!D$15,CalculationsAndCharts!$A69+$A$11,IF($C$5,8,0),1,1)) -> 464.200012 | F69: =IF(A69>$A$8,"",OFFSET(InputPriceData!E$15,CalculationsAndCharts!$A69+$A$11,IF($C$5,8,0),1,1)) -> 460.600006 | G69: =IF(A69>$A$8,"",OFFSET(InputPriceData!F$15,CalculationsAndCharts!$A69+$A$11,IF($C$5,8,0),1,1)) -> 464.100006 | H69: 464.200012 | I69: 460.600006 | J69: 3.600006 | M69: 3.654758105 | P69: 461.3167973 | Q69: 464.9715554 | R69: 457.6620392 | V69: 461.3167973 | W69: 2.78320874 | X69: 7.746250893 | Y69: 2.297551189 | Z69: 466.3975572 | AA69: 461.8024548 | BC69: 68327600
A70: 38 | B70: =IF(A70>$A$8,"",OFFSET(InputPriceData!B$15,$A70+$A$11,0,1,1)) -> 2023-12-11 | C70: =IF(A70>$A$8,"",OFFSET(InputPriceData!G$15,CalculationsAndCharts!$A70+$A$11,IF($C$5,8,0),1,1)) -> 65002200 | D70: =IF(A70>$A$8,"",OFFSET(InputPriceData!C$15,CalculationsAndCharts!$A70+$A$11,IF($C$5,8,0),1,1)) -> 459.690002 | E70: =IF(A70>$A$8,"",OFFSET(InputPriceData!D$15,CalculationsAndCharts!$A70+$A$11,IF($C$5,8,0),1,1)) -> 462.170013 | F70: =IF(A70>$A$8,"",OFFSET(InputPriceData!E$15,CalculationsAndCharts!$A70+$A$11,IF($C$5,8,0),1,1)) -> 459.470001 | G70: =IF(A70>$A$8,"",OFFSET(InputPriceData!F$15,CalculationsAndCharts!$A70+$A$11,IF($C$5,8,0),1,1)) -> 461.98999 | H70: 462.170013 | I70: 459.470001 | J70: 2.700012 | M70: 3.914760443 | P70: 459.5257974 | Q70: 463.4405578 | R70: 455.6110369 | V70: 459.5257974 | W70: 2.464192625 | X70: 6.072245292 | Y70: 2.246166331 | Z70: 464.2361563 | AA70: 459.7438237 | BC70: 65002200
A71: 39 | B71: =IF(A71>$A$8,"",OFFSET(InputPriceData!B$15,$A71+$A$11,0,1,1)) -> 2023-12-08 | C71: =IF(A71>$A$8,"",OFFSET(InputPriceData!G$15,CalculationsAndCharts!$A71+$A$11,IF($C$5,8,0),1,1)) -> 83080900 | D71: =IF(A71>$A$8,"",OFFSET(InputPriceData!C$15,CalculationsAndCharts!$A71+$A$11,IF($C$5,8,0),1,1)) -> 457.459991 | E71: =IF(A71>$A$8,"",OFFSET(InputPriceData!D$15,CalculationsAndCharts!$A71+$A$11,IF($C$5,8,0),1,1)) -> 460.75 | F71: =IF(A71>$A$8,"",OFFSET(InputPriceData!E$15,CalculationsAndCharts!$A71+$A$11,IF($C$5,8,0),1,1)) -> 457.209991 | G71: =IF(A71>$A$8,"",OFFSET(InputPriceData!F$15,CalculationsAndCharts!$A71+$A$11,IF($C$5,8,0),1,1)) -> 460.200012 | H71: 460.75 | I71: 457.209991 | J71: 3.540009 | M71: 4.240882839 | P71: 458.137182 | Q71: 462.3780648 | R71: 453.8962991 | V71: 458.137182 | W71: 2.06283003 | X71: 4.255267733 | Y71: 2.181863535 | Z71: 462.3818755 | AA71: 458.0181485 | BC71: 83080900
A72: 40 | B72: =IF(A72>$A$8,"",OFFSET(InputPriceData!B$15,$A72+$A$11,0,1,1)) -> 2023-12-07 | C72: =IF(A72>$A$8,"",OFFSET(InputPriceData!G$15,CalculationsAndCharts!$A72+$A$11,IF($C$5,8,0),1,1)) -> 66995400 | D72: =IF(A72>$A$8,"",OFFSET(InputPriceData!C$15,CalculationsAndCharts!$A72+$A$11,IF($C$5,8,0),1,1)) -> 456.910004 | E72: =IF(A72>$A$8,"",OFFSET(InputPriceData!D$15,CalculationsAndCharts!$A72+$A$11,IF($C$5,8,0),1,1)) -> 458.899994 | F72: =IF(A72>$A$8,"",OFFSET(InputPriceData!E$15,CalculationsAndCharts!$A72+$A$11,IF($C$5,8,0),1,1)) -> 456.290009 | G72: =IF(A72>$A$8,"",OFFSET(InputPriceData!F$15,CalculationsAndCharts!$A72+$A$11,IF($C$5,8,0),1,1)) -> 458.230011 | H72: 458.899994 | I72: 454.76001 | J72: 4.139984 | M72: 4.252982224 | P72: 457.2719881 | Q72: 461.5249703 | R72: 453.0190059 | V72: 457.2719881 | W72: 0.9580228951 | X72: 0.9178078676 | Y72: 2.382134032 | Z72: 460.612145 | AA72: 455.847877 | BC72: 66995400
A73: 41 | B73: =IF(A73>$A$8,"",OFFSET(InputPriceData!B$15,$A73+$A$11,0,1,1)) -> 2023-12-06 | C73: =IF(A73>$A$8,"",OFFSET(InputPriceData!G$15,CalculationsAndCharts!$A73+$A$11,IF($C$5,8,0),1,1)) -> 69124700 | D73: =IF(A73>$A$8,"",OFFSET(InputPriceData!C$15,CalculationsAndCharts!$A73+$A$11,IF($C$5,8,0),1,1)) -> 458.809998 | E73: =IF(A73>$A$8,"",OFFSET(InputPriceData!D$15,CalculationsAndCharts!$A73+$A$11,IF($C$5,8,0),1,1)) -> 458.839996 | F73: =IF(A73>$A$8,"",OFFSET(InputPriceData!E$15,CalculationsAndCharts!$A73+$A$11,IF($C$5,8,0),1,1)) -> 454.309998 | G73: =IF(A73>$A$8,"",OFFSET(InputPriceData!F$15,CalculationsAndCharts!$A73+$A$11,IF($C$5,8,0),1,1)) -> 454.76001 | H73: 458.839996 | I73: 454.309998 | J73: 4.529998 | M73: 3.974621352 | P73: 457.5159731 | Q73: 461.4905945 | R73: 453.5413518 | V73: 457.5159731 | W73: -2.755963104 | X73: 7.595332628 | Y73: 2.372864756 | Z73: 457.1328748 | AA73: 452.3871452 | BD73: 69124700
A74: 42 | B74: =IF(A74>$A$8,"",OFFSET(InputPriceData!B$15,$A74+$A$11,0,1,1)) -> 2023-12-05 | C74: =IF(A74>$A$8,"",OFFSET(InputPriceData!G$15,CalculationsAndCharts!$A74+$A$11,IF($C$5,8,0),1,1)) -> 69793500 | D74: =IF(A74>$A$8,"",OFFSET(InputPriceData!C$15,CalculationsAndCharts!$A74+$A$11,IF($C$5,8,0),1,1)) -> 455.26001 | E74: =IF(A74>$A$8,"",OFFSET(InputPriceData!D$15,CalculationsAndCharts!$A74+$A$11,IF($C$5,8,0),1,1)) -> 457.589996 | F74: =IF(A74>$A$8,"",OFFSET(InputPriceData!E$15,CalculationsAndCharts!$A74+$A$11,IF($C$5,8,0),1,1)) -> 454.869995 | G74: =IF(A74>$A$8,"",OFFSET(InputPriceData!F$15,CalculationsAndCharts!$A74+$A$11,IF($C$5,8,0),1,1)) -> 456.600006 | H74: 457.589996 | I74: 454.869995 | J74: 2.720001 | M74: 3.9383227 | P74: 458.1762275 | Q74: 462.1145502 | R74: 454.2379048 | V74: 458.1762275 | W74: -1.576221536 | X74: 2.484474331 | Y74: 2.401111015 | Z74: 459.001117 | AA74: 454.198895 | BD74: 69793500
A75: 43 | B75: =IF(A75>$A$8,"",OFFSET(InputPriceData!B$15,$A75+$A$11,0,1,1)) -> 2023-12-04 | C75: =IF(A75>$A$8,"",OFFSET(InputPriceData!G$15,CalculationsAndCharts!$A75+$A$11,IF($C$5,8,0),1,1)) -> 72430900 | D75: =IF(A75>$A$8,"",OFFSET(InputPriceData!C$15,CalculationsAndCharts!$A75+$A$11,IF($C$5,8,0),1,1)) -> 455.600006 | E75: =IF(A75>$A$8,"",OFFSET(InputPriceData!D$15,CalculationsAndCharts!$A75+$A$11,IF($C$5,8,0),1,1)) -> 459.119995 | F75: =IF(A75>$A$8,"",OFFSET(InputPriceData!E$15,CalculationsAndCharts!$A75+$A$11,IF($C$5,8,0),1,1)) -> 454.339996 | G75: =IF(A75>$A$8,"",OFFSET(InputPriceData!F$15,CalculationsAndCharts!$A75+$A$11,IF($C$5,8,0),1,1)) -> 456.690002 | H75: 459.119995 | I75: 454.339996 | J75: 4.779999 | M75: 3.780910565 | P75: 458.4179448 | Q75: 462.1988553 | R75: 454.6370342 | V75: 458.4179448 | W75: -1.727942777 | X75: 2.985786239 | Y75: 2.769387994 | Z75: 459.45939 | AA75: 453.920614 | BD75: 72430900
A76: 44 | B76: =IF(A76>$A$8,"",OFFSET(InputPriceData!B$15,$A76+$A$11,0,1,1)) -> 2023-12-01 | C76: =IF(A76>$A$8,"",OFFSET(InputPriceData!G$15,CalculationsAndCharts!$A76+$A$11,IF($C$5,8,0),1,1)) -> 89097900 | D76: =IF(A76>$A$8,"",OFFSET(InputPriceData!C$15,CalculationsAndCharts!$A76+$A$11,IF($C$5,8,0),1,1)) -> 455.769989 | E76: =IF(A76>$A$8,"",OFFSET(InputPriceData!D$15,CalculationsAndCharts!$A76+$A$11,IF($C$5,8,0),1,1)) -> 459.649994 | F76: =IF(A76>$A$8,"",OFFSET(InputPriceData!E$15,CalculationsAndCharts!$A76+$A$11,IF($C$5,8,0),1,1)) -> 455.160004 | G76: =IF(A76>$A$8,"",OFFSET(InputPriceData!F$15,CalculationsAndCharts!$A76+$A$11,IF($C$5,8,0),1,1)) -> 459.100006 | H76: 459.649994 | I76: 455.160004 | J76: 4.48999 | M76: 3.091216713 | P76: 457.9543215 | Q76: 461.0455382 | R76: 454.8631048 | V76: 457.9543215 | W76: 1.145684485 | X76: 1.31259294 | Y76: 3.656044672 | Z76: 462.7560507 | AA76: 455.4439613 | BC76: 89097900
A77: 45 | B77: =IF(A77>$A$8,"",OFFSET(InputPriceData!B$15,$A77+$A$11,0,1,1)) -> 2023-11-30 | C77: =IF(A77>$A$8,"",OFFSET(InputPriceData!G$15,CalculationsAndCharts!$A77+$A$11,IF($C$5,8,0),1,1)) -> 79752700 | D77: =IF(A77>$A$8,"",OFFSET(InputPriceData!C$15,CalculationsAndCharts!$A77+$A$11,IF($C$5,8,0),1,1)) -> 455.480011 | E77: =IF(A77>$A$8,"",OFFSET(InputPriceData!D$15,CalculationsAndCharts!$A77+$A$11,IF($C$5,8,0),1,1)) -> 456.76001 | F77: =IF(A77>$A$8,"",OFFSET(InputPriceData!E$15,CalculationsAndCharts!$A77+$A$11,IF($C$5,8,0),1,1)) -> 453.339996 | G77: =IF(A77>$A$8,"",OFFSET(InputPriceData!F$15,CalculationsAndCharts!$A77+$A$11,IF($C$5,8,0),1,1)) -> 456.399994 | H77: 456.76001 | I77: 453.339996 | J77: 3.420014 | M77: 2.544410453 | P77: 457.2962616 | Q77: 459.840672 | R77: 454.7518511 | V77: 457.2962616 | W77: -0.8962675588 | X77: 0.803295537 | Y77: 4.629374282 | Z77: 461.0293683 | AA77: 451.7706197 | BC77: 79752700
A78: 46 | B78: =IF(A78>$A$8,"",OFFSET(InputPriceData!B$15,$A78+$A$11,0,1,1)) -> 2023-11-29 | C78: =IF(A78>$A$8,"",OFFSET(InputPriceData!G$15,CalculationsAndCharts!$A78+$A$11,IF($C$5,8,0),1,1)) -> 63146000 | D78: =IF(A78>$A$8,"",OFFSET(InputPriceData!C$15,CalculationsAndCharts!$A78+$A$11,IF($C$5,8,0),1,1)) -> 457.149994 | E78: =IF(A78>$A$8,"",OFFSET(InputPriceData!D$15,CalculationsAndCharts!$A78+$A$11,IF($C$5,8,0),1,1)) -> 458.320007 | F78: =IF(A78>$A$8,"",OFFSET(InputPriceData!E$15,CalculationsAndCharts!$A78+$A$11,IF($C$5,8,0),1,1)) -> 454.200012 | G78: =IF(A78>$A$8,"",OFFSET(InputPriceData!F$15,CalculationsAndCharts!$A78+$A$11,IF($C$5,8,0),1,1)) -> 454.609985 | H78: 458.320007 | I78: 454.200012 | J78: 4.119995 | M78: 1.957650847 | P78: 457.4433468 | Q78: 459.4009977 | R78: 455.485696 | V78: 457.4433468 | W78: -2.833361815 | X78: 8.027939175 | Y78: 5.043449025 | Z78: 459.653434 | AA78: 449.566536 | BD78: 63146000
A79: 47 | B79: =IF(A79>$A$8,"",OFFSET(InputPriceData!B$15,$A79+$A$11,0,1,1)) -> 2023-11-28 | C79: =IF(A79>$A$8,"",OFFSET(InputPriceData!G$15,CalculationsAndCharts!$A79+$A$11,IF($C$5,8,0),1,1)) -> 62115000 | D79: =IF(A79>$A$8,"",OFFSET(InputPriceData!C$15,CalculationsAndCharts!$A79+$A$11,IF($C$5,8,0),1,1)) -> 454.079987 | E79: =IF(A79>$A$8,"",OFFSET(InputPriceData!D$15,CalculationsAndCharts!$A79+$A$11,IF($C$5,8,0),1,1)) -> 456.269989 | F79: =IF(A79>$A$8,"",OFFSET(InputPriceData!E$15,CalculationsAndCharts!$A79+$A$11,IF($C$5,8,0),1,1)) -> 453.5 | G79: =IF(A79>$A$8,"",OFFSET(InputPriceData!F$15,CalculationsAndCharts!$A79+$A$11,IF($C$5,8,0),1,1)) -> 454.929993 | H79: 456.269989 | I79: 453.5 | J79: 2.769989 | M79: 1.427774068 | P79: 457.7996645 | Q79: 459.2274386 | R79: 456.3718904 | V79: 457.7996645 | W79: -2.869671503 | X79: 8.235014535 | Y79: 5.215021632 | Z79: 460.1450146 | AA79: 449.7149714 | BC79: 62115000
A80: 48 | B80: =IF(A80>$A$8,"",OFFSET(InputPriceData!B$15,$A80+$A$11,0,1,1)) -> 2023-11-27 | C80: =IF(A80>$A$8,"",OFFSET(InputPriceData!G$15,CalculationsAndCharts!$A80+$A$11,IF($C$5,8,0),1,1)) -> 50506000 | D80: =IF(A80>$A$8,"",OFFSET(InputPriceData!C$15,CalculationsAndCharts!$A80+$A$11,IF($C$5,8,0),1,1)) -> 454.649994 | E80: =IF(A80>$A$8,"",OFFSET(InputPriceData!D$15,CalculationsAndCharts!$A80+$A$11,IF($C$5,8,0),1,1)) -> 455.48999 | F80: =IF(A80>$A$8,"",OFFSET(InputPriceData!E$15,CalculationsAndCharts!$A80+$A$11,IF($C$5,8,0),1,1)) -> 454.079987 | G80: =IF(A80>$A$8,"",OFFSET(InputPriceData!F$15,CalculationsAndCharts!$A80+$A$11,IF($C$5,8,0),1,1)) -> 454.480011 | H80: 455.48999 | I80: 454.079987 | J80: 1.410003 | M80: 1.52442742 | P80: 458.0143292 | Q80: 459.5387566 | R80: 456.4899017 | V80: 458.0143292 | W80: -3.534318157 | X80: 12.49140484 | Y80: 5.264021268 | Z80: 459.7440323 | AA80: 449.2159897 | BD80: 50506000
A81: 49 | B81: =IF(A81>$A$8,"",OFFSET(InputPriceData!B$15,$A81+$A$11,0,1,1)) -> 2023-11-24 | C81: =IF(A81>$A$8,"",OFFSET(InputPriceData!G$15,CalculationsAndCharts!$A81+$A$11,IF($C$5,8,0),1,1)) -> 29737400 | D81: =IF(A81>$A$8,"",OFFSET(InputPriceData!C$15,CalculationsAndCharts!$A81+$A$11,IF($C$5,8,0),1,1)) -> 455.070007 | E81: =IF(A81>$A$8,"",OFFSET(InputPriceData!D$15,CalculationsAndCharts!$A81+$A$11,IF($C$5,8,0),1,1)) -> 455.5 | F81: =IF(A81>$A$8,"",OFFSET(InputPriceData!E$15,CalculationsAndCharts!$A81+$A$11,IF($C$5,8,0),1,1)) -> 454.730011 | G81: =IF(A81>$A$8,"",OFFSET(InputPriceData!F$15,CalculationsAndCharts!$A81+$A$11,IF($C$5,8,0),1,1)) -> 455.299988 | H81: 455.5 | I81: 454.730011 | J81: 0.769989 | M81: 2.242489784 | P81: 457.8492528 | Q81: 460.0917426 | R81: 455.606763 | V81: 457.8492528 | W81: -2.549264792 | X81: 6.498750977 | Y81: 5.237862982 | Z81: 460.537851 | AA81: 450.062125 | BC81: 29737400
A82: 50 | B82: =IF(A82>$A$8,"",OFFSET(InputPriceData!B$15,$A82+$A$11,0,1,1)) -> 2023-11-22 | C82: =IF(A82>$A$8,"",OFFSET(InputPriceData!G$15,CalculationsAndCharts!$A82+$A$11,IF($C$5,8,0),1,1)) -> 59394900 | D82: =IF(A82>$A$8,"",OFFSET(InputPriceData!C$15,CalculationsAndCharts!$A82+$A$11,IF($C$5,8,0),1,1)) -> 454.980011 | E82: =IF(A82>$A$8,"",OFFSET(InputPriceData!D$15,CalculationsAndCharts!$A82+$A$11,IF($C$5,8,0),1,1)) -> 456.380005 | F82: =IF(A82>$A$8,"",OFFSET(InputPriceData!E$15,CalculationsAndCharts!$A82+$A$11,IF($C$5,8,0),1,1)) -> 453.890015 | G82: =IF(A82>$A$8,"",OFFSET(InputPriceData!F$15,CalculationsAndCharts!$A82+$A$11,IF($C$5,8,0),1,1)) -> 455.019989 | H82: 456.380005 | I82: 453.269989 | J82: 3.110016 | M82: 2.797127797 | P82: 457.0928892 | Q82: 459.890017 | R82: 454.2957614 | V82: 457.0928892 | W82: -2.072900228 | X82: 4.296915357 | Y82: 5.311065233 | Z82: 460.3310542 | AA82: 449.7089238 | BC82: 59394900
A83: 51 | B83: =IF(A83>$A$8,"",OFFSET(InputPriceData!B$15,$A83+$A$11,0,1,1)) -> 2023-11-21 | C83: =IF(A83>$A$8,"",OFFSET(InputPriceData!G$15,CalculationsAndCharts!$A83+$A$11,IF($C$5,8,0),1,1)) -> 49244600 | D83: =IF(A83>$A$8,"",OFFSET(InputPriceData!C$15,CalculationsAndCharts!$A83+$A$11,IF($C$5,8,0),1,1)) -> 453.179993 | E83: =IF(A83>$A$8,"",OFFSET(InputPriceData!D$15,CalculationsAndCharts!$A83+$A$11,IF($C$5,8,0),1,1)) -> 454.130005 | F83: =IF(A83>$A$8,"",OFFSET(InputPriceData!E$15,CalculationsAndCharts!$A83+$A$11,IF($C$5,8,0),1,1)) -> 451.959991 | G83: =IF(A83>$A$8,"",OFFSET(InputPriceData!F$15,CalculationsAndCharts!$A83+$A$11,IF($C$5,8,0),1,1)) -> 453.269989 | H83: 454.26001 | I83: 451.959991 | J83: 2.300019 | M83: 3.175631427 | P83: 456.1805018 | Q83: 459.3561332 | R83: 453.0048704 | V83: 456.1805018 | W83: -2.910512822 | X83: 8.471084885 | Y83: 5.344441853 | Z83: 458.6144309 | AA83: 447.9255471 | BD83: 49244600
A84: 52 | B84: =IF(A84>$A$8,"",OFFSET(InputPriceData!B$15,$A84+$A$11,0,1,1)) -> 2023-11-20 | C84: =IF(A84>$A$8,"",OFFSET(InputPriceData!G$15,CalculationsAndCharts!$A84+$A$11,IF($C$5,8,0),1,1)) -> 69936200 | D84: =IF(A84>$A$8,"",OFFSET(InputPriceData!C$15,CalculationsAndCharts!$A84+$A$11,IF($C$5,8,0),1,1)) -> 450.529999 | E84: =IF(A84>$A$8,"",OFFSET(InputPriceData!D$15,CalculationsAndCharts!$A84+$A$11,IF($C$5,8,0),1,1)) -> 455.130005 | F84: =IF(A84>$A$8,"",OFFSET(InputPriceData!E$15,CalculationsAndCharts!$A84+$A$11,IF($C$5,8,0),1,1)) -> 450.519989 | G84: =IF(A84>$A$8,"",OFFSET(InputPriceData!F$15,CalculationsAndCharts!$A84+$A$11,IF($C$5,8,0),1,1)) -> 454.26001 | H84: 455.130005 | I84: 450.519989 | J84: 4.610016 | M84: 3.334586281 | P84: 454.6961614 | Q84: 458.0307477 | R84: 451.3615751 | V84: 454.6961614 | W84: -0.436151428 | X84: 0.1902280681 | Y84: 5.305516376 | Z84: 459.5655264 | AA84: 448.9544936 | BC84: 69936200
A85: 53 | B85: =IF(A85>$A$8,"",OFFSET(InputPriceData!B$15,$A85+$A$11,0,1,1)) -> 2023-11-17 | C85: =IF(A85>$A$8,"",OFFSET(InputPriceData!G$15,CalculationsAndCharts!$A85+$A$11,IF($C$5,8,0),1,1)) -> 83133200 | D85: =IF(A85>$A$8,"",OFFSET(InputPriceData!C$15,CalculationsAndCharts!$A85+$A$11,IF($C$5,8,0),1,1)) -> 450.23999 | E85: =IF(A85>$A$8,"",OFFSET(InputPriceData!D$15,CalculationsAndCharts!$A85+$A$11,IF($C$5,8,0),1,1)) -> 451.420013 | F85: =IF(A85>$A$8,"",OFFSET(InputPriceData!E$15,CalculationsAndCharts!$A85+$A$11,IF($C$5,8,0),1,1)) -> 449.290009 | G85: =IF(A85>$A$8,"",OFFSET(InputPriceData!F$15,CalculationsAndCharts!$A85+$A$11,IF($C$5,8,0),1,1)) -> 450.790009 | H85: 451.420013 | I85: 449.290009 | J85: 2.130004 | M85: 3.639584271 | P85: 452.8840499 | Q85: 456.5236342 | R85: 449.2444656 | V85: 452.8840499 | W85: -2.094040917 | X85: 4.38500736 | Y85: 5.433027541 | Z85: 456.2230365 | AA85: 445.3569815 | BC85: 83133200
A86: 54 | B86: =IF(A86>$A$8,"",OFFSET(InputPriceData!B$15,$A86+$A$11,0,1,1)) -> 2023-11-16 | C86: =IF(A86>$A$8,"",OFFSET(InputPriceData!G$15,CalculationsAndCharts!$A86+$A$11,IF($C$5,8,0),1,1)) -> 66665800 | D86: =IF(A86>$A$8,"",OFFSET(InputPriceData!C$15,CalculationsAndCharts!$A86+$A$11,IF($C$5,8,0),1,1)) -> 449.220001 | E86: =IF(A86>$A$8,"",OFFSET(InputPriceData!D$15,CalculationsAndCharts!$A86+$A$11,IF($C$5,8,0),1,1)) -> 450.559998 | F86: =IF(A86>$A$8,"",OFFSET(InputPriceData!E$15,CalculationsAndCharts!$A86+$A$11,IF($C$5,8,0),1,1)) -> 448.119995 | G86: =IF(A86>$A$8,"",OFFSET(InputPriceData!F$15,CalculationsAndCharts!$A86+$A$11,IF($C$5,8,0),1,1)) -> 450.230011 | H86: 450.559998 | I86: 448.119995 | J86: 2.440003 | M86: 4.62192375 | P86: 451.0170424 | Q86: 455.6389661 | R86: 446.3951186 | V86: 451.0170424 | W86: -0.7870313578 | X86: 0.6194183581 | Y86: 5.743027825 | Z86: 455.9730388 | AA86: 444.4869832 | BC86: 66665800
A87: 55 | B87: =IF(A87>$A$8,"",OFFSET(InputPriceData!B$15,$A87+$A$11,0,1,1)) -> 2023-11-15 | C87: =IF(A87>$A$8,"",OFFSET(InputPriceData!G$15,CalculationsAndCharts!$A87+$A$11,IF($C$5,8,0),1,1)) -> 77327600 | D87: =IF(A87>$A$8,"",OFFSET(InputPriceData!C$15,CalculationsAndCharts!$A87+$A$11,IF($C$5,8,0),1,1)) -> 450.109985 | E87: =IF(A87>$A$8,"",OFFSET(InputPriceData!D$15,CalculationsAndCharts!$A87+$A$11,IF($C$5,8,0),1,1)) -> 451.380005 | F87: =IF(A87>$A$8,"",OFFSET(InputPriceData!E$15,CalculationsAndCharts!$A87+$A$11,IF($C$5,8,0),1,1)) -> 448.799988 | G87: =IF(A87>$A$8,"",OFFSET(InputPriceData!F$15,CalculationsAndCharts!$A87+$A$11,IF($C$5,8,0),1,1)) -> 449.679993 | H87: 451.380005 | I87: 448.730011 | J87: 2.649994 | M87: 5.736345772 | P87: 448.3196068 | Q87: 454.0559526 | R87: 442.583261 | V87: 448.3196068 | W87: 1.360386181 | X87: 1.850650562 | Y87: 5.955209772 | Z87: 455.6352028 | AA87: 443.7247832 | BC87: 77327600
A88: 56 | B88: =IF(A88>$A$8,"",OFFSET(InputPriceData!B$15,$A88+$A$11,0,1,1)) -> 2023-11-14 | C88: =IF(A88>$A$8,"",OFFSET(InputPriceData!G$15,CalculationsAndCharts!$A88+$A$11,IF($C$5,8,0),1,1)) -> 97176900 | D88: =IF(A88>$A$8,"",OFFSET(InputPriceData!C$15,CalculationsAndCharts!$A88+$A$11,IF($C$5,8,0),1,1)) -> 446.320007 | E88: =IF(A88>$A$8,"",OFFSET(InputPriceData!D$15,CalculationsAndCharts!$A88+$A$11,IF($C$5,8,0),1,1)) -> 450.059998 | F88: =IF(A88>$A$8,"",OFFSET(InputPriceData!E$15,CalculationsAndCharts!$A88+$A$11,IF($C$5,8,0),1,1)) -> 446.089996 | G88: =IF(A88>$A$8,"",OFFSET(InputPriceData!F$15,CalculationsAndCharts!$A88+$A$11,IF($C$5,8,0),1,1)) -> 448.730011 | H88: 450.059998 | I88: 440.190002 | J88: 9.869996 | M88: 5.231993655 | P88: 444.6883082 | Q88: 449.9203018 | R88: 439.4563145 | V88: 444.6883082 | W88: 4.04170283 | X88: 16.33536177 | Y88: 6.082943526 | Z88: 454.8129545 | AA88: 442.6470675 | BC88: 97176900
A89: 57 | B89: =IF(A89>$A$8,"",OFFSET(InputPriceData!B$15,$A89+$A$11,0,1,1)) -> 2023-11-13 | C89: =IF(A89>$A$8,"",OFFSET(InputPriceData!G$15,CalculationsAndCharts!$A89+$A$11,IF($C$5,8,0),1,1)) -> 52236100 | D89: =IF(A89>$A$8,"",OFFSET(InputPriceData!C$15,CalculationsAndCharts!$A89+$A$11,IF($C$5,8,0),1,1)) -> 439.230011 | E89: =IF(A89>$A$8,"",OFFSET(InputPriceData!D$15,CalculationsAndCharts!$A89+$A$11,IF($C$5,8,0),1,1)) -> 441.329987 | F89: =IF(A89>$A$8,"",OFFSET(InputPriceData!E$15,CalculationsAndCharts!$A89+$A$11,IF($C$5,8,0),1,1)) -> 438.420013 | G89: =IF(A89>$A$8,"",OFFSET(InputPriceData!F$15,CalculationsAndCharts!$A89+$A$11,IF($C$5,8,0),1,1)) -> 440.190002 | H89: 441.329987 | I89: 438.420013 | J89: 2.909974 | M89: 4.507533887 | P89: 441.9440503 | Q89: 446.4515842 | R89: 437.4365164 | V89: 441.9440503 | W89: -1.754048266 | X89: 3.076685321 | Y89: 6.015859053 | Z89: 446.2058611 | AA89: 434.1741429 | BD89: 52236100
A90: 58 | B90: =IF(A90>$A$8,"",OFFSET(InputPriceData!B$15,$A90+$A$11,0,1,1)) -> 2023-11-10 | C90: =IF(A90>$A$8,"",OFFSET(InputPriceData!G$15,CalculationsAndCharts!$A90+$A$11,IF($C$5,8,0),1,1)) -> 89462200 | D90: =IF(A90>$A$8,"",OFFSET(InputPriceData!C$15,CalculationsAndCharts!$A90+$A$11,IF($C$5,8,0),1,1)) -> 435.980011 | E90: =IF(A90>$A$8,"",OFFSET(InputPriceData!D$15,CalculationsAndCharts!$A90+$A$11,IF($C$5,8,0),1,1)) -> 440.929993 | F90: =IF(A90>$A$8,"",OFFSET(InputPriceData!E$15,CalculationsAndCharts!$A90+$A$11,IF($C$5,8,0),1,1)) -> 433.829987 | G90: =IF(A90>$A$8,"",OFFSET(InputPriceData!F$15,CalculationsAndCharts!$A90+$A$11,IF($C$5,8,0),1,1)) -> 440.609985 | H90: 440.929993 | I90: 433.829987 | J90: 7.100006 | M90: 4.299104443 | P90: 439.995533 | Q90: 444.2946374 | R90: 435.6964286 | V90: 439.995533 | W90: 0.6144519937 | X90: 0.3775512526 | Y90: 6.006377738 | Z90: 446.6163627 | AA90: 434.6036073 | BC90: 89462200
A91: 59 | B91: =IF(A91>$A$8,"",OFFSET(InputPriceData!B$15,$A91+$A$11,0,1,1)) -> 2023-11-09 | C91: =IF(A91>$A$8,"",OFFSET(InputPriceData!G$15,CalculationsAndCharts!$A91+$A$11,IF($C$5,8,0),1,1)) -> 83174400 | D91: =IF(A91>$A$8,"",OFFSET(InputPriceData!C$15,CalculationsAndCharts!$A91+$A$11,IF($C$5,8,0),1,1)) -> 438.429993 | E91: =IF(A91>$A$8,"",OFFSET(InputPriceData!D$15,CalculationsAndCharts!$A91+$A$11,IF($C$5,8,0),1,1)) -> 438.470001 | F91: =IF(A91>$A$8,"",OFFSET(InputPriceData!E$15,CalculationsAndCharts!$A91+$A$11,IF($C$5,8,0),1,1)) -> 433.399994 | G91: =IF(A91>$A$8,"",OFFSET(InputPriceData!F$15,CalculationsAndCharts!$A91+$A$11,IF($C$5,8,0),1,1)) -> 433.839996 | H91: 438.470001 | I91: 433.399994 | J91: 5.070007 | M91: 3.523581486 | P91: 438.5872003 | Q91: 442.1107818 | R91: 435.0636188 | V91: 438.5872003 | W91: -4.747204331 | X91: 22.53594896 | Y91: 6.042676027 | Z91: 439.882672 | AA91: 427.79732 | BD91: 83174400
A92: 60 | B92: =IF(A92>$A$8,"",OFFSET(InputPriceData!B$15,$A92+$A$11,0,1,1)) -> 2023-11-08 | C92: =IF(A92>$A$8,"",OFFSET(InputPriceData!G$15,CalculationsAndCharts!$A92+$A$11,IF($C$5,8,0),1,1)) -> 61746000 | D92: =IF(A92>$A$8,"",OFFSET(InputPriceData!C$15,CalculationsAndCharts!$A92+$A$11,IF($C$5,8,0),1,1)) -> 437.549988 | E92: =IF(A92>$A$8,"",OFFSET(InputPriceData!D$15,CalculationsAndCharts!$A92+$A$11,IF($C$5,8,0),1,1)) -> 438.089996 | F92: =IF(A92>$A$8,"",OFFSET(InputPriceData!E$15,CalculationsAndCharts!$A92+$A$11,IF($C$5,8,0),1,1)) -> 434.869995 | G92: =IF(A92>$A$8,"",OFFSET(InputPriceData!F$15,CalculationsAndCharts!$A92+$A$11,IF($C$5,8,0),1,1)) -> 437.25 | H92: 438.089996 | I92: 434.869995 | J92: 3.220001 | M92: 3.595395795 | P92: 437.0594748 | Q92: 440.6548706 | R92: 433.464079 | V92: 437.0594748 | W92: 0.1905252362 | X92: 0.03629986563 | Y92: 5.949326717 | Z92: 443.1993267 | AA92: 431.3006733 | BC92: 61746000
A93: 61 | B93: =IF(A93>$A$8,"",OFFSET(InputPriceData!B$15,$A93+$A$11,0,1,1)) -> 2023-11-07 | C93: =IF(A93>$A$8,"",OFFSET(InputPriceData!G$15,CalculationsAndCharts!$A93+$A$11,IF($C$5,8,0),1,1)) -> 64256100 | D93: =IF(A93>$A$8,"",OFFSET(InputPriceData!C$15,CalculationsAndCharts!$A93+$A$11,IF($C$5,8,0),1,1)) -> 435.690002 | E93: =IF(A93>$A$8,"",OFFSET(InputPriceData!D$15,CalculationsAndCharts!$A93+$A$11,IF($C$5,8,0),1,1)) -> 437.589996 | F93: =IF(A93>$A$8,"",OFFSET(InputPriceData!E$15,CalculationsAndCharts!$A93+$A$11,IF($C$5,8,0),1,1)) -> 434.51001 | G93: =IF(A93>$A$8,"",OFFSET(InputPriceData!F$15,CalculationsAndCharts!$A93+$A$11,IF($C$5,8,0),1,1)) -> 436.929993 | H93: 437.589996 | I93: 434.51001 | J93: 3.079986 | M93: 4.270277714 | P93: 433.7218359 | Q93: 437.9921136 | R93: 429.4515582 | V93: 433.7218359 | W93: 3.208157076 | X93: 10.29227183 | Y93: 6.029995901 | Z93: 442.9599889 | AA93: 430.8999971 | BC93: 64256100
A94: 62 | B94: =IF(A94>$A$8,"",OFFSET(InputPriceData!B$15,$A94+$A$11,0,1,1)) -> 2023-11-06 | C94: =IF(A94>$A$8,"",OFFSET(InputPriceData!G$15,CalculationsAndCharts!$A94+$A$11,IF($C$5,8,0),1,1)) -> 67831700 | D94: =IF(A94>$A$8,"",OFFSET(InputPriceData!C$15,CalculationsAndCharts!$A94+$A$11,IF($C$5,8,0),1,1)) -> 435.470001 | E94: =IF(A94>$A$8,"",OFFSET(InputPriceData!D$15,CalculationsAndCharts!$A94+$A$11,IF($C$5,8,0),1,1)) -> 436.149994 | F94: =IF(A94>$A$8,"",OFFSET(InputPriceData!E$15,CalculationsAndCharts!$A94+$A$11,IF($C$5,8,0),1,1)) -> 433.679993 | G94: =IF(A94>$A$8,"",OFFSET(InputPriceData!F$15,CalculationsAndCharts!$A94+$A$11,IF($C$5,8,0),1,1)) -> 435.690002 | H94: 436.149994 | I94: 433.679993 | J94: 2.470001 | M94: 5.371205023 | P94: 429.3207015 | Q94: 434.6919065 | R94: 423.9494964 | V94: 429.3207015 | W94: 6.369300542 | X94: 40.56798939 | Y94: 6.124743677 | Z94: 441.8147457 | AA94: 429.5652583 | BC94: 67831700
A95: 63 | B95: =IF(A95>$A$8,"",OFFSET(InputPriceData!B$15,$A95+$A$11,0,1,1)) -> 2023-11-03 | C95: =IF(A95>$A$8,"",OFFSET(InputPriceData!G$15,CalculationsAndCharts!$A95+$A$11,IF($C$5,8,0),1,1)) -> 100110800 | D95: =IF(A95>$A$8,"",OFFSET(InputPriceData!C$15,CalculationsAndCharts!$A95+$A$11,IF($C$5,8,0),1,1)) -> 433.140015 | E95: =IF(A95>$A$8,"",OFFSET(InputPriceData!D$15,CalculationsAndCharts!$A95+$A$11,IF($C$5,8,0),1,1)) -> 436.290009 | F95: =IF(A95>$A$8,"",OFFSET(InputPriceData!E$15,CalculationsAndCharts!$A95+$A$11,IF($C$5,8,0),1,1)) -> 433.01001 | G95: =IF(A95>$A$8,"",OFFSET(InputPriceData!F$15,CalculationsAndCharts!$A95+$A$11,IF($C$5,8,0),1,1)) -> 434.690002 | H95: 436.290009 | I95: 430.76001 | J95: 5.529999 | M95: 6.15833287 | P95: 423.876638 | Q95: 430.0349708 | R95: 417.7183051 | V95: 423.876638 | W95: 10.81336404 | X95: 116.9288419 | Y95: 6.137724318 | Z95: 440.8277263 | AA95: 428.5522777 | BC95: 100110800
A96: 64 | B96: =IF(A96>$A$8,"",OFFSET(InputPriceData!B$15,$A96+$A$11,0,1,1)) -> 2023-11-02 | C96: =IF(A96>$A$8,"",OFFSET(InputPriceData!G$15,CalculationsAndCharts!$A96+$A$11,IF($C$5,8,0),1,1)) -> 94938900 | D96: =IF(A96>$A$8,"",OFFSET(InputPriceData!C$15,CalculationsAndCharts!$A96+$A$11,IF($C$5,8,0),1,1)) -> 426.579987 | E96: =IF(A96>$A$8,"",OFFSET(InputPriceData!D$15,CalculationsAndCharts!$A96+$A$11,IF($C$5,8,0),1,1)) -> 430.920013 | F96: =IF(A96>$A$8,"",OFFSET(InputPriceData!E$15,CalculationsAndCharts!$A96+$A$11,IF($C$5,8,0),1,1)) -> 426.559998 | G96: =IF(A96>$A$8,"",OFFSET(InputPriceData!F$15,CalculationsAndCharts!$A96+$A$11,IF($C$5,8,0),1,1)) -> 430.76001 | H96: 430.920013 | I96: 422.660004 | J96: 8.260009 | M96: 5.679000003 | P96: 418.0084821 | Q96: 423.6874821 | R96: 412.3294821 | V96: 418.0084821 | W96: 12.75152794 | X96: 162.6014648 | Y96: 5.824916951 | Z96: 436.584927 | AA96: 424.935093 | BC96: 94938900
A97: 65 | B97: =IF(A97>$A$8,"",OFFSET(InputPriceData!B$15,$A97+$A$11,0,1,1)) -> 2023-11-01 | C97: =IF(A97>$A$8,"",OFFSET(InputPriceData!G$15,CalculationsAndCharts!$A97+$A$11,IF($C$5,8,0),1,1)) -> 98068100 | D97: =IF(A97>$A$8,"",OFFSET(InputPriceData!C$15,CalculationsAndCharts!$A97+$A$11,IF($C$5,8,0),1,1)) -> 419.200012 | E97: =IF(A97>$A$8,"",OFFSET(InputPriceData!D$15,CalculationsAndCharts!$A97+$A$11,IF($C$5,8,0),1,1)) -> 423.5 | F97: =IF(A97>$A$8,"",OFFSET(InputPriceData!E$15,CalculationsAndCharts!$A97+$A$11,IF($C$5,8,0),1,1)) -> 418.649994 | G97: =IF(A97>$A$8,"",OFFSET(InputPriceData!F$15,CalculationsAndCharts!$A97+$A$11,IF($C$5,8,0),1,1)) -> 422.660004 | H97: 423.5 | I97: 418.200012 | J97: 5.299988 | M97: 5.138642532 | P97: 413.6650759 | Q97: 418.8037184 | R97: 408.5264333 | V97: 413.6650759 | W97: 8.99492813 | X97: 80.90873206 | Y97: =IF($A97>$V$30,NA(),SQRT(SUM(OFFSET(X97,0,0,$A$22,1))/$A$22)) -> 5.113274428 | Z97: 427.7732784 | AA97: 417.5467296 | BC97: 98068100
A98: 66 | B98: =IF(A98>$A$8,"",OFFSET(InputPriceData!B$15,$A98+$A$11,0,1,1)) -> 2023-10-31 | C98: =IF(A98>$A$8,"",OFFSET(InputPriceData!G$15,CalculationsAndCharts!$A98+$A$11,IF($C$5,8,0),1,1)) -> 79665200 | D98: =IF(A98>$A$8,"",OFFSET(InputPriceData!C$15,CalculationsAndCharts!$A98+$A$11,IF($C$5,8,0),1,1)) -> 416.179993 | E98: =IF(A98>$A$8,"",OFFSET(InputPriceData!D$15,CalculationsAndCharts!$A98+$A$11,IF($C$5,8,0),1,1)) -> 418.529999 | F98: =IF(A98>$A$8,"",OFFSET(InputPriceData!E$15,CalculationsAndCharts!$A98+$A$11,IF($C$5,8,0),1,1)) -> 414.209991 | G98: =IF(A98>$A$8,"",OFFSET(InputPriceData!F$15,CalculationsAndCharts!$A98+$A$11,IF($C$5,8,0),1,1)) -> 418.200012 | H98: =IF($A98>$H$30,NA(),IF(G99>E98,G99,E98)) -> 418.529999 | I98: =IF($A98>$H$30,NA(),IF(G99<F98,G99,F98)) -> 414.209991 | J98: =IF($A98>$H$30,NA(),H98-I98) -> 4.320008 | M98: =IF($A98>$H$30,NA(),IF($A98>$M$30,J98,(1-$L$35)*J98+(2*$L$35-$L$36)*J99-($L$35+$L$37)*J100+$L$36*M99+$L$37*M100)) -> 5.478715422 | P98: =IF($A98>$B$30,NA(),IF($A98>$P$30,G98,(1-$O$35)*G98+(2*$O$35-$O$36)*G99-($O$35+$O$37)*G100+$O$36*P99+$O$37*P100)) -> 411.6251059 | Q98: =IF($A98>$M$30,NA(),$P98+$M98*$A$19) -> 417.1038213 | R98: =IF($A98>$M$30,NA(),$P98-$M98*$A$19) -> 406.1463905 | V98: =IF($A98>$B$30,NA(),IF($A98>$P$30,G98,(1-$U$35)*G98+(2*$U$35-$U$36)*G99-($U$35+$U$37)*G100+$U$36*V99+$U$37*V100)) -> 411.6251059 | W98: =IF($A98>$V$30,NA(),(G98-V98)) -> 6.574906105 | X98: =IF($A98>$V$30,NA(),W98^2) -> 43.22939029 | Y98: 4.742182693 | Z98: =IF($A98>$V$30,NA(),$G98+$A$23*Y98) -> 422.9421947 | AA98: =IF($A98>$V$30,NA(),$G98-$A$23*Y98) -> 413.4578293 | BC98: 79665200
A99: 67 | B99: =IF(A99>$A$8,"",OFFSET(InputPriceData!B$15,$A99+$A$11,0,1,1)) -> 2023-10-30 | C99: =IF(A99>$A$8,"",OFFSET(InputPriceData!G$15,CalculationsAndCharts!$A99+$A$11,IF($C$5,8,0),1,1)) -> 86562700 | D99: =IF(A99>$A$8,"",OFFSET(InputPriceData!C$15,CalculationsAndCharts!$A99+$A$11,IF($C$5,8,0),1,1)) -> 413.559998 | E99: =IF(A99>$A$8,"",OFFSET(InputPriceData!D$15,CalculationsAndCharts!$A99+$A$11,IF($C$5,8,0),1,1)) -> 416.679993 | F99: =IF(A99>$A$8,"",OFFSET(InputPriceData!E$15,CalculationsAndCharts!$A99+$A$11,IF($C$5,8,0),1,1)) -> 412.220001 | G99: =IF(A99>$A$8,"",OFFSET(InputPriceData!F$15,CalculationsAndCharts!$A99+$A$11,IF($C$5,8,0),1,1)) -> 415.589996 | H99: 416.679993 | I99: 410.679993 | J99: 6 | M99: 5.75240431 | P99: 411.2883219 | Q99: 417.0407262 | R99: 405.5359176 | V99: 411.2883219 | W99: 4.301674139 | X99: 18.5044004 | Y99: 4.518593427 | Z99: 420.1085894 | AA99: 411.0714026 | BC99: 86562700
A100: 68 | B100: =IF(A100>$A$8,"",OFFSET(InputPriceData!B$15,$A100+$A$11,0,1,1)) -> 2023-10-27 | C100: =IF(A100>$A$8,"",OFFSET(InputPriceData!G$15,CalculationsAndCharts!$A100+$A$11,IF($C$5,8,0),1,1)) -> 107367700 | D100: =IF(A100>$A$8,"",OFFSET(InputPriceData!C$15,CalculationsAndCharts!$A100+$A$11,IF($C$5,8,0),1,1)) -> 414.190002 | E100: =IF(A100>$A$8,"",OFFSET(InputPriceData!D$15,CalculationsAndCharts!$A100+$A$11,IF($C$5,8,0),1,1)) -> 414.600006 | F100: =IF(A100>$A$8,"",OFFSET(InputPriceData!E$15,CalculationsAndCharts!$A100+$A$11,IF($C$5,8,0),1,1)) -> 409.209991 | G100: =IF(A100>$A$8,"",OFFSET(InputPriceData!F$15,CalculationsAndCharts!$A100+$A$11,IF($C$5,8,0),1,1)) -> 410.679993 | H100: 414.600006 | I100: 409.209991 | J100: 5.390015 | M100: 5.839917018 | P100: 413.3252111 | Q100: 419.1651282 | R100: 407.4852941 | V100: 413.3252111 | W100: -2.645218136 | X100: 6.997178985 | Y100: 4.478081133 | Z100: 415.1580741 | AA100: 406.2019119 | BD100: 107367700
A101: 69 | B101: =IF(A101>$A$8,"",OFFSET(InputPriceData!B$15,$A101+$A$11,0,1,1)) -> 2023-10-26 | C101: =IF(A101>$A$8,"",OFFSET(InputPriceData!G$15,CalculationsAndCharts!$A101+$A$11,IF($C$5,8,0),1,1)) -> 115156800 | D101: =IF(A101>$A$8,"",OFFSET(InputPriceData!C$15,CalculationsAndCharts!$A101+$A$11,IF($C$5,8,0),1,1)) -> 416.450012 | E101: =IF(A101>$A$8,"",OFFSET(InputPriceData!D$15,CalculationsAndCharts!$A101+$A$11,IF($C$5,8,0),1,1)) -> 417.329987 | F101: =IF(A101>$A$8,"",OFFSET(InputPriceData!E$15,CalculationsAndCharts!$A101+$A$11,IF($C$5,8,0),1,1)) -> 411.600006 | G101: =IF(A101>$A$8,"",OFFSET(InputPriceData!F$15,CalculationsAndCharts!$A101+$A$11,IF($C$5,8,0),1,1)) -> 412.549988 | H101: 417.549988 | I101: 411.600006 | J101: 5.949982 | M101: 5.970965902 | P101: 417.2343083 | Q101: 423.2052742 | R101: 411.2633424 | V101: 417.2343083 | W101: -4.6843203 | X101: 21.94285667 | Y101: 4.500828675 | Z101: 417.0508167 | AA101: 408.0491593 | BD101: 115156800
A102: 70 | B102: =IF(A102>$A$8,"",OFFSET(InputPriceData!B$15,$A102+$A$11,0,1,1)) -> 2023-10-25 | C102: =IF(A102>$A$8,"",OFFSET(InputPriceData!G$15,CalculationsAndCharts!$A102+$A$11,IF($C$5,8,0),1,1)) -> 94223200 | D102: =IF(A102>$A$8,"",OFFSET(InputPriceData!C$15,CalculationsAndCharts!$A102+$A$11,IF($C$5,8,0),1,1)) -> 421.890015 | E102: =IF(A102>$A$8,"",OFFSET(InputPriceData!D$15,CalculationsAndCharts!$A102+$A$11,IF($C$5,8,0),1,1)) -> 421.920013 | F102: =IF(A102>$A$8,"",OFFSET(InputPriceData!E$15,CalculationsAndCharts!$A102+$A$11,IF($C$5,8,0),1,1)) -> 417.019989 | G102: =IF(A102>$A$8,"",OFFSET(InputPriceData!F$15,CalculationsAndCharts!$A102+$A$11,IF($C$5,8,0),1,1)) -> 417.549988 | H102: 423.630005 | I102: 417.019989 | J102: 6.610016 | M102: 5.8346461 | P102: 420.9278293 | Q102: 426.7624754 | R102: 415.0931832 | V102: 420.9278293 | W102: -3.377841262 | X102: 11.40981159 | Y102: 4.466549213 | Z102: 422.0165372 | AA102: 413.0834388 | BD102: 94223200
A103: 71 | B103: =IF(A103>$A$8,"",OFFSET(InputPriceData!B$15,$A103+$A$11,0,1,1)) -> 2023-10-24 | C103: =IF(A103>$A$8,"",OFFSET(InputPriceData!G$15,CalculationsAndCharts!$A103+$A$11,IF($C$5,8,0),1,1)) -> 78564200 | D103: =IF(A103>$A$8,"",OFFSET(InputPriceData!C$15,CalculationsAndCharts!$A103+$A$11,IF($C$5,8,0),1,1)) -> 422.649994 | E103: =IF(A103>$A$8,"",OFFSET(InputPriceData!D$15,CalculationsAndCharts!$A103+$A$11,IF($C$5,8,0),1,1)) -> 424.820007 | F103: =IF(A103>$A$8,"",OFFSET(InputPriceData!E$15,CalculationsAndCharts!$A103+$A$11,IF($C$5,8,0),1,1)) -> 420.73999 | G103: =IF(A103>$A$8,"",OFFSET(InputPriceData!F$15,CalculationsAndCharts!$A103+$A$11,IF($C$5,8,0),1,1)) -> 423.630005 | H103: 424.820007 | I103: 420.459991 | J103: 4.360016 | M103: 6.07259683 | P103: 423.2057516 | Q103: 429.2783485 | R103: 417.1331548 | V103: 423.2057516 | W103: 0.4242533798 | X103: 0.1799909303 | Y103: 4.402288995 | Z103: 428.032294 | AA103: 419.227716 | BC103: 78564200
A104: 72 | B104: =IF(A104>$A$8,"",OFFSET(InputPriceData!B$15,$A104+$A$11,0,1,1)) -> 2023-10-23 | C104: =IF(A104>$A$8,"",OFFSET(InputPriceData!G$15,CalculationsAndCharts!$A104+$A$11,IF($C$5,8,0),1,1)) -> 92035100 | D104: =IF(A104>$A$8,"",OFFSET(InputPriceData!C$15,CalculationsAndCharts!$A104+$A$11,IF($C$5,8,0),1,1)) -> 419.609985 | E104: =IF(A104>$A$8,"",OFFSET(InputPriceData!D$15,CalculationsAndCharts!$A104+$A$11,IF($C$5,8,0),1,1)) -> 424.450012 | F104: =IF(A104>$A$8,"",OFFSET(InputPriceData!E$15,CalculationsAndCharts!$A104+$A$11,IF($C$5,8,0),1,1)) -> 417.799988 | G104: =IF(A104>$A$8,"",OFFSET(InputPriceData!F$15,CalculationsAndCharts!$A104+$A$11,IF($C$5,8,0),1,1)) -> 420.459991 | H104: 424.450012 | I104: 417.799988 | J104: 6.650024 | M104: 6.361278393 | P104: 425.7112683 | Q104: 432.0725467 | R104: 419.3499899 | V104: 425.7112683 | W104: -5.251277266 | X104: 27.57591293 | Y104: 4.454237063 | Z104: 424.9142281 | AA104: 416.0057539 | BD104: 92035100
A105: 73 | B105: =IF(A105>$A$8,"",OFFSET(InputPriceData!B$15,$A105+$A$11,0,1,1)) -> 2023-10-20 | C105: =IF(A105>$A$8,"",OFFSET(InputPriceData!G$15,CalculationsAndCharts!$A105+$A$11,IF($C$5,8,0),1,1)) -> 123845800 | D105: =IF(A105>$A$8,"",OFFSET(InputPriceData!C$15,CalculationsAndCharts!$A105+$A$11,IF($C$5,8,0),1,1)) -> 425.980011 | E105: =IF(A105>$A$8,"",OFFSET(InputPriceData!D$15,CalculationsAndCharts!$A105+$A$11,IF($C$5,8,0),1,1)) -> 426.540009 | F105: =IF(A105>$A$8,"",OFFSET(InputPriceData!E$15,CalculationsAndCharts!$A105+$A$11,IF($C$5,8,0),1,1)) -> 421.079987 | G105: =IF(A105>$A$8,"",OFFSET(InputPriceData!F$15,CalculationsAndCharts!$A105+$A$11,IF($C$5,8,0),1,1)) -> 421.190002 | H105: 426.540009 | I105: 421.079987 | J105: 5.460022 | M105: 6.43219503 | P105: 429.7735103 | Q105: 436.2057053 | R105: 423.3413152 | V105: 429.7735103 | W105: -8.58350826 | X105: 73.67661405 | Y105: 4.298209949 | Z105: 425.4882119 | AA105: 416.8917921 | BD105: 123845800
A106: 74 | B106: =IF(A106>$A$8,"",OFFSET(InputPriceData!B$15,$A106+$A$11,0,1,1)) -> 2023-10-19 | C106: =IF(A106>$A$8,"",OFFSET(InputPriceData!G$15,CalculationsAndCharts!$A106+$A$11,IF($C$5,8,0),1,1)) -> 121323000 | D106: =IF(A106>$A$8,"",OFFSET(InputPriceData!C$15,CalculationsAndCharts!$A106+$A$11,IF($C$5,8,0),1,1)) -> 430.950012 | E106: =IF(A106>$A$8,"",OFFSET(InputPriceData!D$15,CalculationsAndCharts!$A106+$A$11,IF($C$5,8,0),1,1)) -> 432.820007 | F106: =IF(A106>$A$8,"",OFFSET(InputPriceData!E$15,CalculationsAndCharts!$A106+$A$11,IF($C$5,8,0),1,1)) -> 425.730011 | G106: =IF(A106>$A$8,"",OFFSET(InputPriceData!F$15,CalculationsAndCharts!$A106+$A$11,IF($C$5,8,0),1,1)) -> 426.429993 | H106: 432.820007 | I106: 425.730011 | J106: 7.089996 | M106: 6.386822829 | P106: 433.5195991 | Q106: 439.906422 | R106: 427.1327763 | V106: 433.5195991 | W106: -7.089606123 | X106: 50.26251498 | Y106: 3.956983078 | Z106: 430.3869761 | AA106: 422.4730099 | BD106: 121323000
A107: 75 | B107: =IF(A107>$A$8,"",OFFSET(InputPriceData!B$15,$A107+$A$11,0,1,1)) -> 2023-10-18 | C107: =IF(A107>$A$8,"",OFFSET(InputPriceData!G$15,CalculationsAndCharts!$A107+$A$11,IF($C$5,8,0),1,1)) -> 93559800 | D107: =IF(A107>$A$8,"",OFFSET(InputPriceData!C$15,CalculationsAndCharts!$A107+$A$11,IF($C$5,8,0),1,1)) -> 434.190002 | E107: =IF(A107>$A$8,"",OFFSET(InputPriceData!D$15,CalculationsAndCharts!$A107+$A$11,IF($C$5,8,0),1,1)) -> 435.179993 | F107: =IF(A107>$A$8,"",OFFSET(InputPriceData!E$15,CalculationsAndCharts!$A107+$A$11,IF($C$5,8,0),1,1)) -> 429.089996 | G107: =IF(A107>$A$8,"",OFFSET(InputPriceData!F$15,CalculationsAndCharts!$A107+$A$11,IF($C$5,8,0),1,1)) -> 430.209991 | H107: 436.019989 | I107: 429.089996 | J107: 6.929993 | M107: 5.936517469 | P107: 435.9200016 | Q107: 441.856519 | R107: 429.9834841 | V107: 435.9200016 | W107: -5.71001057 | X107: 32.6042207 | Y107: 3.992049255 | Z107: 434.2020403 | AA107: 426.2179417 | BD107: 93559800
A108: 76 | B108: =IF(A108>$A$8,"",OFFSET(InputPriceData!B$15,$A108+$A$11,0,1,1)) -> 2023-10-17 | C108: =IF(A108>$A$8,"",OFFSET(InputPriceData!G$15,CalculationsAndCharts!$A108+$A$11,IF($C$5,8,0),1,1)) -> 75324700 | D108: =IF(A108>$A$8,"",OFFSET(InputPriceData!C$15,CalculationsAndCharts!$A108+$A$11,IF($C$5,8,0),1,1)) -> 432.809998 | E108: =IF(A108>$A$8,"",OFFSET(InputPriceData!D$15,CalculationsAndCharts!$A108+$A$11,IF($C$5,8,0),1,1)) -> 438.140015 | F108: =IF(A108>$A$8,"",OFFSET(InputPriceData!E$15,CalculationsAndCharts!$A108+$A$11,IF($C$5,8,0),1,1)) -> 432.450012 | G108: =IF(A108>$A$8,"",OFFSET(InputPriceData!F$15,CalculationsAndCharts!$A108+$A$11,IF($C$5,8,0),1,1)) -> 436.019989 | H108: 438.140015 | I108: 432.450012 | J108: 5.690003 | M108: 5.714995116 | P108: 436.3401857 | Q108: 442.0551808 | R108: 430.6251906 | V108: 436.3401857 | W108: -0.3201967159 | X108: 0.1025259369 | Y108: 3.879984308 | Z108: 439.8999733 | AA108: 432.1400047 | BD108: 75324700
A109: 77 | B109: =IF(A109>$A$8,"",OFFSET(InputPriceData!B$15,$A109+$A$11,0,1,1)) -> 2023-10-16 | C109: =IF(A109>$A$8,"",OFFSET(InputPriceData!G$15,CalculationsAndCharts!$A109+$A$11,IF($C$5,8,0),1,1)) -> 75433200 | D109: =IF(A109>$A$8,"",OFFSET(InputPriceData!C$15,CalculationsAndCharts!$A109+$A$11,IF($C$5,8,0),1,1)) -> 433.820007 | E109: =IF(A109>$A$8,"",OFFSET(InputPriceData!D$15,CalculationsAndCharts!$A109+$A$11,IF($C$5,8,0),1,1)) -> 437.140015 | F109: =IF(A109>$A$8,"",OFFSET(InputPriceData!E$15,CalculationsAndCharts!$A109+$A$11,IF($C$5,8,0),1,1)) -> 433.570007 | G109: =IF(A109>$A$8,"",OFFSET(InputPriceData!F$15,CalculationsAndCharts!$A109+$A$11,IF($C$5,8,0),1,1)) -> 436.040009 | H109: 437.140015 | I109: 431.5 | J109: 5.640015 | M109: 5.763881693 | P109: 435.1472868 | Q109: 440.9111685 | R109: 429.3834051 | V109: 435.1472868 | W109: 0.8927222155 | X109: 0.796952954 | Y109: 3.898835243 | Z109: 439.9388442 | AA109: 432.1411738 | BC109: =IF(G109>=G110,C109,NA()) -> 75433200 | BD109: =IF(G109<G110,C109,NA()) -> 
A110: 78 | B110: =IF(A110>$A$8,"",OFFSET(InputPriceData!B$15,$A110+$A$11,0,1,1)) -> 2023-10-13 | C110: =IF(A110>$A$8,"",OFFSET(InputPriceData!G$15,CalculationsAndCharts!$A110+$A$11,IF($C$5,8,0),1,1)) -> 95143100 | D110: =IF(A110>$A$8,"",OFFSET(InputPriceData!C$15,CalculationsAndCharts!$A110+$A$11,IF($C$5,8,0),1,1)) -> 435.209991 | E110: =IF(A110>$A$8,"",OFFSET(InputPriceData!D$15,CalculationsAndCharts!$A110+$A$11,IF($C$5,8,0),1,1)) -> 436.450012 | F110: =IF(A110>$A$8,"",OFFSET(InputPriceData!E$15,CalculationsAndCharts!$A110+$A$11,IF($C$5,8,0),1,1)) -> 429.880005 | G110: =IF(A110>$A$8,"",OFFSET(InputPriceData!F$15,CalculationsAndCharts!$A110+$A$11,IF($C$5,8,0),1,1)) -> 431.5 | H110: 436.450012 | I110: 429.880005 | J110: 6.570007 | M110: 5.608951033 | P110: 434.5207204 | Q110: 440.1296715 | R110: 428.9117694 | V110: 434.5207204 | W110: -3.020720446 | X110: 9.124752013 | Y110: 3.923201149 | Z110: 435.4232011 | AA110: 427.5767989 | BD110: 95143100
A111: 79 | B111: =IF(A111>$A$8,"",OFFSET(InputPriceData!B$15,$A111+$A$11,0,1,1)) -> 2023-10-12 | C111: =IF(A111>$A$8,"",OFFSET(InputPriceData!G$15,CalculationsAndCharts!$A111+$A$11,IF($C$5,8,0),1,1)) -> 81154200 | D111: =IF(A111>$A$8,"",OFFSET(InputPriceData!C$15,CalculationsAndCharts!$A111+$A$11,IF($C$5,8,0),1,1)) -> 436.950012 | E111: =IF(A111>$A$8,"",OFFSET(InputPriceData!D$15,CalculationsAndCharts!$A111+$A$11,IF($C$5,8,0),1,1)) -> 437.339996 | F111: =IF(A111>$A$8,"",OFFSET(InputPriceData!E$15,CalculationsAndCharts!$A111+$A$11,IF($C$5,8,0),1,1)) -> 431.230011 | G111: =IF(A111>$A$8,"",OFFSET(InputPriceData!F$15,CalculationsAndCharts!$A111+$A$11,IF($C$5,8,0),1,1)) -> 433.660004 | H111: 437.339996 | I111: 431.230011 | J111: 6.109985 | M111: 5.31154383 | P111: 434.0434691 | Q111: 439.3550129 | R111: 428.7319252 | V111: 434.0434691 | W111: -0.3834650771 | X111: 0.1470454654 | Y111: 3.96610827 | Z111: 437.6261123 | AA111: 429.6938957 | BD111: 81154200
A112: 80 | B112: =IF(A112>$A$8,"",OFFSET(InputPriceData!B$15,$A112+$A$11,0,1,1)) -> 2023-10-11 | C112: =IF(A112>$A$8,"",OFFSET(InputPriceData!G$15,CalculationsAndCharts!$A112+$A$11,IF($C$5,8,0),1,1)) -> 62451700 | D112: =IF(A112>$A$8,"",OFFSET(InputPriceData!C$15,CalculationsAndCharts!$A112+$A$11,IF($C$5,8,0),1,1)) -> 435.640015 | E112: =IF(A112>$A$8,"",OFFSET(InputPriceData!D$15,CalculationsAndCharts!$A112+$A$11,IF($C$5,8,0),1,1)) -> 436.579987 | F112: =IF(A112>$A$8,"",OFFSET(InputPriceData!E$15,CalculationsAndCharts!$A112+$A$11,IF($C$5,8,0),1,1)) -> 433.179993 | G112: =IF(A112>$A$8,"",OFFSET(InputPriceData!F$15,CalculationsAndCharts!$A112+$A$11,IF($C$5,8,0),1,1)) -> 436.320007 | H112: 436.579987 | I112: 433.179993 | J112: 3.399994 | M112: 5.7633288 | P112: 431.9196044 | Q112: 437.6829332 | R112: 426.1562756 | V112: 431.9196044 | W112: 4.400402635 | X112: 19.36354335 | Y112: 4.010521085 | Z112: 440.3305281 | AA112: 432.3094859 | BC112: 62451700
A113: 81 | B113: =IF(A113>$A$8,"",OFFSET(InputPriceData!B$15,$A113+$A$11,0,1,1)) -> 2023-10-10 | C113: =IF(A113>$A$8,"",OFFSET(InputPriceData!G$15,CalculationsAndCharts!$A113+$A$11,IF($C$5,8,0),1,1)) -> 78607300 | D113: =IF(A113>$A$8,"",OFFSET(InputPriceData!C$15,CalculationsAndCharts!$A113+$A$11,IF($C$5,8,0),1,1)) -> 432.940002 | E113: =IF(A113>$A$8,"",OFFSET(InputPriceData!D$15,CalculationsAndCharts!$A113+$A$11,IF($C$5,8,0),1,1)) -> 437.220001 | F113: =IF(A113>$A$8,"",OFFSET(InputPriceData!E$15,CalculationsAndCharts!$A113+$A$11,IF($C$5,8,0),1,1)) -> 432.529999 | G113: =IF(A113>$A$8,"",OFFSET(InputPriceData!F$15,CalculationsAndCharts!$A113+$A$11,IF($C$5,8,0),1,1)) -> 434.540009 | H113: 437.220001 | I113: 432.290009 | J113: 4.929992 | M113: 6.637176637 | P113: 428.7672313 | Q113: 435.4044079 | R113: 422.1300546 | V113: 428.7672313 | W113: 5.772777729 | X113: 33.3249627 | Y113: 3.891748163 | Z113: 438.4317572 | AA113: 430.6482608 | BC113: 78607300
A114: 82 | B114: =IF(A114>$A$8,"",OFFSET(InputPriceData!B$15,$A114+$A$11,0,1,1)) -> 2023-10-09 | C114: =IF(A114>$A$8,"",OFFSET(InputPriceData!G$15,CalculationsAndCharts!$A114+$A$11,IF($C$5,8,0),1,1)) -> 80374400 | D114: =IF(A114>$A$8,"",OFFSET(InputPriceData!C$15,CalculationsAndCharts!$A114+$A$11,IF($C$5,8,0),1,1)) -> 427.579987 | E114: =IF(A114>$A$8,"",OFFSET(InputPriceData!D$15,CalculationsAndCharts!$A114+$A$11,IF($C$5,8,0),1,1)) -> 432.880005 | F114: =IF(A114>$A$8,"",OFFSET(InputPriceData!E$15,CalculationsAndCharts!$A114+$A$11,IF($C$5,8,0),1,1)) -> 427.01001 | G114: =IF(A114>$A$8,"",OFFSET(InputPriceData!F$15,CalculationsAndCharts!$A114+$A$11,IF($C$5,8,0),1,1)) -> 432.290009 | H114: 432.880005 | I114: 427.01001 | J114: 5.869995 | M114: 7.080532462 | P114: 425.6755186 | Q114: 432.7560511 | R114: 418.5949861 | V114: 425.6755186 | W114: 6.614490409 | X114: 43.75148337 | Y114: 3.696174473 | Z114: 435.9861835 | AA114: 428.5938345 | BC114: 80374400
A115: 83 | B115: =IF(A115>$A$8,"",OFFSET(InputPriceData!B$15,$A115+$A$11,0,1,1)) -> 2023-10-06 | C115: =IF(A115>$A$8,"",OFFSET(InputPriceData!G$15,CalculationsAndCharts!$A115+$A$11,IF($C$5,8,0),1,1)) -> 113202700 | D115: =IF(A115>$A$8,"",OFFSET(InputPriceData!C$15,CalculationsAndCharts!$A115+$A$11,IF($C$5,8,0),1,1)) -> 421.970001 | E115: =IF(A115>$A$8,"",OFFSET(InputPriceData!D$15,CalculationsAndCharts!$A115+$A$11,IF($C$5,8,0),1,1)) -> 431.130005 | F115: =IF(A115>$A$8,"",OFFSET(InputPriceData!E$15,CalculationsAndCharts!$A115+$A$11,IF($C$5,8,0),1,1)) -> 420.600006 | G115: =IF(A115>$A$8,"",OFFSET(InputPriceData!F$15,CalculationsAndCharts!$A115+$A$11,IF($C$5,8,0),1,1)) -> 429.540009 | H115: 431.130005 | I115: 420.600006 | J115: 10.529999 | M115: 6.171310769 | P115: 423.0524212 | Q115: 429.223732 | R115: 416.8811104 | V115: 423.0524212 | W115: 6.4875878 | X115: 42.08879546 | Y115: 3.387888454 | Z115: 432.9278975 | AA115: 426.1521205 | BC115: 113202700
A116: 84 | B116: =IF(A116>$A$8,"",OFFSET(InputPriceData!B$15,$A116+$A$11,0,1,1)) -> 2023-10-05 | C116: =IF(A116>$A$8,"",OFFSET(InputPriceData!G$15,CalculationsAndCharts!$A116+$A$11,IF($C$5,8,0),1,1)) -> 70142700 | D116: =IF(A116>$A$8,"",OFFSET(InputPriceData!C$15,CalculationsAndCharts!$A116+$A$11,IF($C$5,8,0),1,1)) -> 424.359985 | E116: =IF(A116>$A$8,"",OFFSET(InputPriceData!D$15,CalculationsAndCharts!$A116+$A$11,IF($C$5,8,0),1,1)) -> 425.369995 | F116: =IF(A116>$A$8,"",OFFSET(InputPriceData!E$15,CalculationsAndCharts!$A116+$A$11,IF($C$5,8,0),1,1)) -> 421.170013 | G116: =IF(A116>$A$8,"",OFFSET(InputPriceData!F$15,CalculationsAndCharts!$A116+$A$11,IF($C$5,8,0),1,1)) -> 424.5 | H116: 425.369995 | I116: 421.170013 | J116: 4.199982 | M116: 5.419090078 | P116: 421.8694444 | Q116: 427.2885345 | R116: 416.4503543 | V116: 421.8694444 | W116: 2.630555584 | X116: 6.91982268 | Y116: 3.138864246 | Z116: 427.6388642 | AA116: 421.3611358 | BD116: 70142700
A117: 85 | B117: =IF(A117>$A$8,"",OFFSET(InputPriceData!B$15,$A117+$A$11,0,1,1)) -> 2023-10-04 | C117: =IF(A117>$A$8,"",OFFSET(InputPriceData!G$15,CalculationsAndCharts!$A117+$A$11,IF($C$5,8,0),1,1)) -> 87453000 | D117: =IF(A117>$A$8,"",OFFSET(InputPriceData!C$15,CalculationsAndCharts!$A117+$A$11,IF($C$5,8,0),1,1)) -> 422.070007 | E117: =IF(A117>$A$8,"",OFFSET(InputPriceData!D$15,CalculationsAndCharts!$A117+$A$11,IF($C$5,8,0),1,1)) -> 425.429993 | F117: =IF(A117>$A$8,"",OFFSET(InputPriceData!E$15,CalculationsAndCharts!$A117+$A$11,IF($C$5,8,0),1,1)) -> 420.559998 | G117: =IF(A117>$A$8,"",OFFSET(InputPriceData!F$15,CalculationsAndCharts!$A117+$A$11,IF($C$5,8,0),1,1)) -> 424.660004 | H117: 425.429993 | I117: 420.559998 | J117: 4.869995 | M117: 5.894330148 | P117: 421.8737595 | Q117: 427.7680897 | R117: 415.9794294 | V117: 421.8737595 | W117: 2.786244488 | X117: 7.763158345 | Y117: 3.290527286 | Z117: 427.9505313 | AA117: 421.3694767 | BC117: 87453000
A118: 86 | B118: =IF(A118>$A$8,"",OFFSET(InputPriceData!B$15,$A118+$A$11,0,1,1)) -> 2023-10-03 | C118: =IF(A118>$A$8,"",OFFSET(InputPriceData!G$15,CalculationsAndCharts!$A118+$A$11,IF($C$5,8,0),1,1)) -> 103760600 | D118: =IF(A118>$A$8,"",OFFSET(InputPriceData!C$15,CalculationsAndCharts!$A118+$A$11,IF($C$5,8,0),1,1)) -> 425.059998 | E118: =IF(A118>$A$8,"",OFFSET(InputPriceData!D$15,CalculationsAndCharts!$A118+$A$11,IF($C$5,8,0),1,1)) -> 427.369995 | F118: =IF(A118>$A$8,"",OFFSET(InputPriceData!E$15,CalculationsAndCharts!$A118+$A$11,IF($C$5,8,0),1,1)) -> 420.179993 | G118: =IF(A118>$A$8,"",OFFSET(InputPriceData!F$15,CalculationsAndCharts!$A118+$A$11,IF($C$5,8,0),1,1)) -> 421.589996 | H118: 427.369995 | I118: 420.179993 | J118: 7.190002 | M118: 5.723856568 | P118: 422.938027 | Q118: 428.6618836 | R118: 417.2141704 | V118: 422.938027 | W118: -1.348031013 | X118: 1.817187612 | Y118: 3.429906662 | Z118: 425.0199027 | AA118: 418.1600893 | BD118: 103760600
A119: 87 | B119: =IF(A119>$A$8,"",OFFSET(InputPriceData!B$15,$A119+$A$11,0,1,1)) -> 2023-10-02 | C119: =IF(A119>$A$8,"",OFFSET(InputPriceData!G$15,CalculationsAndCharts!$A119+$A$11,IF($C$5,8,0),1,1)) -> 83798600 | D119: =IF(A119>$A$8,"",OFFSET(InputPriceData!C$15,CalculationsAndCharts!$A119+$A$11,IF($C$5,8,0),1,1)) -> 426.619995 | E119: =IF(A119>$A$8,"",OFFSET(InputPriceData!D$15,CalculationsAndCharts!$A119+$A$11,IF($C$5,8,0),1,1)) -> 428.600006 | F119: =IF(A119>$A$8,"",OFFSET(InputPriceData!E$15,CalculationsAndCharts!$A119+$A$11,IF($C$5,8,0),1,1)) -> 424.459991 | G119: =IF(A119>$A$8,"",OFFSET(InputPriceData!F$15,CalculationsAndCharts!$A119+$A$11,IF($C$5,8,0),1,1)) -> 427.309998 | H119: 428.600006 | I119: 424.459991 | J119: 4.140015 | M119: 5.67740518 | P119: 423.9611352 | Q119: 429.6385404 | R119: 418.28373 | V119: 423.9611352 | W119: 3.348862789 | X119: 11.21488198 | Y119: 3.460779709 | Z119: 430.7707777 | AA119: 423.8492183 | BD119: 83798600
A120: 88 | B120: =IF(A120>$A$8,"",OFFSET(InputPriceData!B$15,$A120+$A$11,0,1,1)) -> 2023-09-29 | C120: =IF(A120>$A$8,"",OFFSET(InputPriceData!G$15,CalculationsAndCharts!$A120+$A$11,IF($C$5,8,0),1,1)) -> 115078500 | D120: =IF(A120>$A$8,"",OFFSET(InputPriceData!C$15,CalculationsAndCharts!$A120+$A$11,IF($C$5,8,0),1,1)) -> 431.670013 | E120: =IF(A120>$A$8,"",OFFSET(InputPriceData!D$15,CalculationsAndCharts!$A120+$A$11,IF($C$5,8,0),1,1)) -> 431.850006 | F120: =IF(A120>$A$8,"",OFFSET(InputPriceData!E$15,CalculationsAndCharts!$A120+$A$11,IF($C$5,8,0),1,1)) -> 425.910004 | G120: =IF(A120>$A$8,"",OFFSET(InputPriceData!F$15,CalculationsAndCharts!$A120+$A$11,IF($C$5,8,0),1,1)) -> 427.480011 | H120: 431.850006 | I120: 425.910004 | J120: 5.940002 | M120: 5.914492162 | P120: 424.1510259 | Q120: 430.0655181 | R120: 418.2365338 | V120: 424.1510259 | W120: 3.328985054 | X120: 11.08214149 | Y120: 3.382288787 | Z120: 430.8622998 | AA120: 424.0977222 | BD120: 115078500
A121: 89 | B121: =IF(A121>$A$8,"",OFFSET(InputPriceData!B$15,$A121+$A$11,0,1,1)) -> 2023-09-28 | C121: =IF(A121>$A$8,"",OFFSET(InputPriceData!G$15,CalculationsAndCharts!$A121+$A$11,IF($C$5,8,0),1,1)) -> 92258300 | D121: =IF(A121>$A$8,"",OFFSET(InputPriceData!C$15,CalculationsAndCharts!$A121+$A$11,IF($C$5,8,0),1,1)) -> 425.480011 | E121: =IF(A121>$A$8,"",OFFSET(InputPriceData!D$15,CalculationsAndCharts!$A121+$A$11,IF($C$5,8,0),1,1)) -> 430.25 | F121: =IF(A121>$A$8,"",OFFSET(InputPriceData!E$15,CalculationsAndCharts!$A121+$A$11,IF($C$5,8,0),1,1)) -> 424.869995 | G121: =IF(A121>$A$8,"",OFFSET(InputPriceData!F$15,CalculationsAndCharts!$A121+$A$11,IF($C$5,8,0),1,1)) -> 428.519989 | H121: 430.25 | I121: 424.869995 | J121: 5.380005 | M121: 5.867880169 | P121: 424.5457068 | Q121: 430.413587 | R121: 418.6778267 | V121: 424.5457068 | W121: 3.974282177 | X121: 15.79491882 | Y121: 3.330514567 | Z121: 431.8505036 | AA121: 425.1894744 | BC121: 92258300
A122: 90 | B122: =IF(A122>$A$8,"",OFFSET(InputPriceData!B$15,$A122+$A$11,0,1,1)) -> 2023-09-27 | C122: =IF(A122>$A$8,"",OFFSET(InputPriceData!G$15,CalculationsAndCharts!$A122+$A$11,IF($C$5,8,0),1,1)) -> 104705800 | D122: =IF(A122>$A$8,"",OFFSET(InputPriceData!C$15,CalculationsAndCharts!$A122+$A$11,IF($C$5,8,0),1,1)) -> 427.089996 | E122: =IF(A122>$A$8,"",OFFSET(InputPriceData!D$15,CalculationsAndCharts!$A122+$A$11,IF($C$5,8,0),1,1)) -> 427.670013 | F122: =IF(A122>$A$8,"",OFFSET(InputPriceData!E$15,CalculationsAndCharts!$A122+$A$11,IF($C$5,8,0),1,1)) -> 422.290009 | G122: =IF(A122>$A$8,"",OFFSET(InputPriceData!F$15,CalculationsAndCharts!$A122+$A$11,IF($C$5,8,0),1,1)) -> 426.049988 | H122: 427.670013 | I122: 422.290009 | J122: 5.380004 | M122: 5.908935151 | P122: 425.942554 | Q122: 431.8514891 | R122: 420.0336188 | V122: 425.942554 | W122: 0.107434022 | X122: 0.01154206908 | Y122: 3.457933693 | Z122: 429.5079217 | AA122: 422.5920543 | BC122: 104705800
A123: 91 | B123: =IF(A123>$A$8,"",OFFSET(InputPriceData!B$15,$A123+$A$11,0,1,1)) -> 2023-09-26 | C123: =IF(A123>$A$8,"",OFFSET(InputPriceData!G$15,CalculationsAndCharts!$A123+$A$11,IF($C$5,8,0),1,1)) -> 96168400 | D123: =IF(A123>$A$8,"",OFFSET(InputPriceData!C$15,CalculationsAndCharts!$A123+$A$11,IF($C$5,8,0),1,1)) -> 429.089996 | E123: =IF(A123>$A$8,"",OFFSET(InputPriceData!D$15,CalculationsAndCharts!$A123+$A$11,IF($C$5,8,0),1,1)) -> 429.820007 | F123: =IF(A123>$A$8,"",OFFSET(InputPriceData!E$15,CalculationsAndCharts!$A123+$A$11,IF($C$5,8,0),1,1)) -> 425.019989 | G123: =IF(A123>$A$8,"",OFFSET(InputPriceData!F$15,CalculationsAndCharts!$A123+$A$11,IF($C$5,8,0),1,1)) -> 425.880005 | H123: 432.230011 | I123: 425.019989 | J123: 7.210022 | M123: 5.452409801 | P123: 428.9429414 | Q123: 434.3953512 | R123: 423.4905316 | V123: 428.9429414 | W123: -3.06293638 | X123: 9.381579267 | Y123: 3.863829681 | Z123: 429.7438347 | AA123: 422.0161753 | BD123: 96168400
A124: 92 | B124: =IF(A124>$A$8,"",OFFSET(InputPriceData!B$15,$A124+$A$11,0,1,1)) -> 2023-09-25 | C124: =IF(A124>$A$8,"",OFFSET(InputPriceData!G$15,CalculationsAndCharts!$A124+$A$11,IF($C$5,8,0),1,1)) -> 70874500 | D124: =IF(A124>$A$8,"",OFFSET(InputPriceData!C$15,CalculationsAndCharts!$A124+$A$11,IF($C$5,8,0),1,1)) -> 429.170013 | E124: =IF(A124>$A$8,"",OFFSET(InputPriceData!D$15,CalculationsAndCharts!$A124+$A$11,IF($C$5,8,0),1,1)) -> 432.269989 | F124: =IF(A124>$A$8,"",OFFSET(InputPriceData!E$15,CalculationsAndCharts!$A124+$A$11,IF($C$5,8,0),1,1)) -> 428.720001 | G124: =IF(A124>$A$8,"",OFFSET(InputPriceData!F$15,CalculationsAndCharts!$A124+$A$11,IF($C$5,8,0),1,1)) -> 432.230011 | H124: 432.269989 | I124: 428.720001 | J124: 3.549988 | M124: 5.299748831 | P124: 431.7166573 | Q124: 437.0164062 | R124: 426.4169085 | V124: 431.7166573 | W124: 0.5133536596 | X124: 0.2635319798 | Y124: 3.91320307 | Z124: 436.1432141 | AA124: 428.3168079 | BC124: 70874500
A125: 93 | B125: =IF(A125>$A$8,"",OFFSET(InputPriceData!B$15,$A125+$A$11,0,1,1)) -> 2023-09-22 | C125: =IF(A125>$A$8,"",OFFSET(InputPriceData!G$15,CalculationsAndCharts!$A125+$A$11,IF($C$5,8,0),1,1)) -> 100829700 | D125: =IF(A125>$A$8,"",OFFSET(InputPriceData!C$15,CalculationsAndCharts!$A125+$A$11,IF($C$5,8,0),1,1)) -> 432.450012 | E125: =IF(A125>$A$8,"",OFFSET(InputPriceData!D$15,CalculationsAndCharts!$A125+$A$11,IF($C$5,8,0),1,1)) -> 434.100006 | F125: =IF(A125>$A$8,"",OFFSET(InputPriceData!E$15,CalculationsAndCharts!$A125+$A$11,IF($C$5,8,0),1,1)) -> 429.98999 | G125: =IF(A125>$A$8,"",OFFSET(InputPriceData!F$15,CalculationsAndCharts!$A125+$A$11,IF($C$5,8,0),1,1)) -> 430.420013 | H125: 434.100006 | I125: 429.98999 | J125: 4.110016 | M125: 5.8429891 | P125: 434.5839943 | Q125: 440.4269834 | R125: 428.7410052 | V125: 434.5839943 | W125: -4.163981321 | X125: 17.33874044 | Y125: 3.952795692 | Z125: 434.3728087 | AA125: 426.4672173 | BD125: 100829700
A126: 94 | B126: =IF(A126>$A$8,"",OFFSET(InputPriceData!B$15,$A126+$A$11,0,1,1)) -> 2023-09-21 | C126: =IF(A126>$A$8,"",OFFSET(InputPriceData!G$15,CalculationsAndCharts!$A126+$A$11,IF($C$5,8,0),1,1)) -> 103976100 | D126: =IF(A126>$A$8,"",OFFSET(InputPriceData!C$15,CalculationsAndCharts!$A126+$A$11,IF($C$5,8,0),1,1)) -> 435.700012 | E126: =IF(A126>$A$8,"",OFFSET(InputPriceData!D$15,CalculationsAndCharts!$A126+$A$11,IF($C$5,8,0),1,1)) -> 435.970001 | F126: =IF(A126>$A$8,"",OFFSET(InputPriceData!E$15,CalculationsAndCharts!$A126+$A$11,IF($C$5,8,0),1,1)) -> 431.230011 | G126: =IF(A126>$A$8,"",OFFSET(InputPriceData!F$15,CalculationsAndCharts!$A126+$A$11,IF($C$5,8,0),1,1)) -> 431.390015 | H126: 438.640015 | I126: 431.230011 | J126: 7.410004 | M126: 5.481527171 | P126: 438.8624549 | Q126: 444.3439821 | R126: 433.3809278 | V126: 438.8624549 | W126: -7.472439931 | X126: 55.83735852 | Y126: 3.843877954 | Z126: 435.233893 | AA126: 427.546137 | BD126: 103976100
A127: 95 | B127: =IF(A127>$A$8,"",OFFSET(InputPriceData!B$15,$A127+$A$11,0,1,1)) -> 2023-09-20 | C127: =IF(A127>$A$8,"",OFFSET(InputPriceData!G$15,CalculationsAndCharts!$A127+$A$11,IF($C$5,8,0),1,1)) -> 82562600 | D127: =IF(A127>$A$8,"",OFFSET(InputPriceData!C$15,CalculationsAndCharts!$A127+$A$11,IF($C$5,8,0),1,1)) -> 444.01001 | E127: =IF(A127>$A$8,"",OFFSET(InputPriceData!D$15,CalculationsAndCharts!$A127+$A$11,IF($C$5,8,0),1,1)) -> 444.440002 | F127: =IF(A127>$A$8,"",OFFSET(InputPriceData!E$15,CalculationsAndCharts!$A127+$A$11,IF($C$5,8,0),1,1)) -> 438.429993 | G127: =IF(A127>$A$8,"",OFFSET(InputPriceData!F$15,CalculationsAndCharts!$A127+$A$11,IF($C$5,8,0),1,1)) -> 438.640015 | H127: 444.440002 | I127: 438.429993 | J127: 6.010009 | M127: 4.479433142 | P127: 442.5079137 | Q127: 446.9873468 | R127: 438.0284805 | V127: 442.5079137 | W127: -3.867898664 | X127: 14.96064008 | Y127: 3.719948099 | Z127: 442.3599631 | AA127: 434.9200669 | BD127: 82562600
A128: 96 | B128: =IF(A128>$A$8,"",OFFSET(InputPriceData!B$15,$A128+$A$11,0,1,1)) -> 2023-09-19 | C128: =IF(A128>$A$8,"",OFFSET(InputPriceData!G$15,CalculationsAndCharts!$A128+$A$11,IF($C$5,8,0),1,1)) -> 66514600 | D128: =IF(A128>$A$8,"",OFFSET(InputPriceData!C$15,CalculationsAndCharts!$A128+$A$11,IF($C$5,8,0),1,1)) -> 442.679993 | E128: =IF(A128>$A$8,"",OFFSET(InputPriceData!D$15,CalculationsAndCharts!$A128+$A$11,IF($C$5,8,0),1,1)) -> 443.290009 | F128: =IF(A128>$A$8,"",OFFSET(InputPriceData!E$15,CalculationsAndCharts!$A128+$A$11,IF($C$5,8,0),1,1)) -> 439.940002 | G128: =IF(A128>$A$8,"",OFFSET(InputPriceData!F$15,CalculationsAndCharts!$A128+$A$11,IF($C$5,8,0),1,1)) -> 442.709991 | H128: 443.630005 | I128: 439.940002 | J128: 3.690003 | M128: 4.117383195 | P128: 444.4521984 | Q128: 448.5695816 | R128: 440.3348152 | V128: 444.4521984 | W128: -1.742207363 | X128: 3.035286495 | Y128: 3.645614804 | Z128: 446.3556058 | AA128: 439.0643762 | BD128: 66514600
A129: 97 | B129: =IF(A129>$A$8,"",OFFSET(InputPriceData!B$15,$A129+$A$11,0,1,1)) -> 2023-09-18 | C129: =IF(A129>$A$8,"",OFFSET(InputPriceData!G$15,CalculationsAndCharts!$A129+$A$11,IF($C$5,8,0),1,1)) -> 55752200 | D129: =IF(A129>$A$8,"",OFFSET(InputPriceData!C$15,CalculationsAndCharts!$A129+$A$11,IF($C$5,8,0),1,1)) -> 443.049988 | E129: =IF(A129>$A$8,"",OFFSET(InputPriceData!D$15,CalculationsAndCharts!$A129+$A$11,IF($C$5,8,0),1,1)) -> 444.970001 | F129: =IF(A129>$A$8,"",OFFSET(InputPriceData!E$15,CalculationsAndCharts!$A129+$A$11,IF($C$5,8,0),1,1)) -> 442.559998 | G129: =IF(A129>$A$8,"",OFFSET(InputPriceData!F$15,CalculationsAndCharts!$A129+$A$11,IF($C$5,8,0),1,1)) -> 443.630005 | H129: 444.970001 | I129: 442.559998 | J129: 2.410003 | M129: 4.538922032 | P129: 445.7768103 | Q129: 450.3157323 | R129: 441.2378883 | V129: 445.7768103 | W129: -2.146805293 | X129: 4.608772966 | Y129: 3.684786163 | Z129: 447.3147912 | AA129: 439.9452188 | BC129: 55752200
A130: 98 | B130: =IF(A130>$A$8,"",OFFSET(InputPriceData!B$15,$A130+$A$11,0,1,1)) -> 2023-09-15 | C130: =IF(A130>$A$8,"",OFFSET(InputPriceData!G$15,CalculationsAndCharts!$A130+$A$11,IF($C$5,8,0),1,1)) -> 111761400 | D130: =IF(A130>$A$8,"",OFFSET(InputPriceData!C$15,CalculationsAndCharts!$A130+$A$11,IF($C$5,8,0),1,1)) -> 447.140015 | E130: =IF(A130>$A$8,"",OFFSET(InputPriceData!D$15,CalculationsAndCharts!$A130+$A$11,IF($C$5,8,0),1,1)) -> 447.480011 | F130: =IF(A130>$A$8,"",OFFSET(InputPriceData!E$15,CalculationsAndCharts!$A130+$A$11,IF($C$5,8,0),1,1)) -> 442.920013 | G130: =IF(A130>$A$8,"",OFFSET(InputPriceData!F$15,CalculationsAndCharts!$A130+$A$11,IF($C$5,8,0),1,1)) -> 443.369995 | H130: 450.359985 | I130: 442.920013 | J130: 7.439972 | M130: 4.079646189 | P130: 447.3568362 | Q130: 451.4364824 | R130: 443.2771901 | V130: 447.3568362 | W130: -3.986841249 | X130: 15.89490314 | Y130: 3.659397815 | Z130: 447.0293928 | AA130: 439.7105972 | BD130: 111761400
A131: 99 | B131: =IF(A131>$A$8,"",OFFSET(InputPriceData!B$15,$A131+$A$11,0,1,1)) -> 2023-09-14 | C131: =IF(A131>$A$8,"",OFFSET(InputPriceData!G$15,CalculationsAndCharts!$A131+$A$11,IF($C$5,8,0),1,1)) -> 83430800 | D131: =IF(A131>$A$8,"",OFFSET(InputPriceData!C$15,CalculationsAndCharts!$A131+$A$11,IF($C$5,8,0),1,1)) -> 449.070007 | E131: =IF(A131>$A$8,"",OFFSET(InputPriceData!D$15,CalculationsAndCharts!$A131+$A$11,IF($C$5,8,0),1,1)) -> 451.079987 | F131: =IF(A131>$A$8,"",OFFSET(InputPriceData!E$15,CalculationsAndCharts!$A131+$A$11,IF($C$5,8,0),1,1)) -> 447.720001 | G131: =IF(A131>$A$8,"",OFFSET(InputPriceData!F$15,CalculationsAndCharts!$A131+$A$11,IF($C$5,8,0),1,1)) -> 450.359985 | H131: 451.079987 | I131: 446.51001 | J131: 4.569977 | M131: 2.930181261 | P131: 447.6706846 | Q131: 450.6008658 | R131: 444.7405033 | V131: 447.6706846 | W131: 2.689300421 | X131: 7.232336755 | Y131: 3.640290147 | Z131: 454.0002751 | AA131: 446.7196949 | BC131: 83430800
A132: 100 | B132: =IF(A132>$A$8,"",OFFSET(InputPriceData!B$15,$A132+$A$11,0,1,1)) -> 2023-09-13 | C132: =IF(A132>$A$8,"",OFFSET(InputPriceData!G$15,CalculationsAndCharts!$A132+$A$11,IF($C$5,8,0),1,1)) -> 60199300 | D132: =IF(A132>$A$8,"",OFFSET(InputPriceData!C$15,CalculationsAndCharts!$A132+$A$11,IF($C$5,8,0),1,1)) -> 446.220001 | E132: =IF(A132>$A$8,"",OFFSET(InputPriceData!D$15,CalculationsAndCharts!$A132+$A$11,IF($C$5,8,0),1,1)) -> 447.709991 | F132: =IF(A132>$A$8,"",OFFSET(InputPriceData!E$15,CalculationsAndCharts!$A132+$A$11,IF($C$5,8,0),1,1)) -> 445.079987 | G132: =IF(A132>$A$8,"",OFFSET(InputPriceData!F$15,CalculationsAndCharts!$A132+$A$11,IF($C$5,8,0),1,1)) -> 446.51001 | H132: 447.709991 | I132: 445.079987 | J132: 2.630004 | M132: 2.713575549 | P132: 447.2794455 | Q132: 449.9930211 | R132: 444.56587 | V132: 447.2794455 | W132: -0.7694355324 | X132: 0.5920310385 | Y132: 3.648790549 | Z132: 450.1588005 | AA132: 442.8612195 | BC132: 60199300
A133: 101 | B133: =IF(A133>$A$8,"",OFFSET(InputPriceData!B$15,$A133+$A$11,0,1,1)) -> 2023-09-12 | C133: =IF(A133>$A$8,"",OFFSET(InputPriceData!G$15,CalculationsAndCharts!$A133+$A$11,IF($C$5,8,0),1,1)) -> 67565400 | D133: =IF(A133>$A$8,"",OFFSET(InputPriceData!C$15,CalculationsAndCharts!$A133+$A$11,IF($C$5,8,0),1,1)) -> 446.950012 | E133: =IF(A133>$A$8,"",OFFSET(InputPriceData!D$15,CalculationsAndCharts!$A133+$A$11,IF($C$5,8,0),1,1)) -> 448.529999 | F133: =IF(A133>$A$8,"",OFFSET(InputPriceData!E$15,CalculationsAndCharts!$A133+$A$11,IF($C$5,8,0),1,1)) -> 445.390015 | G133: =IF(A133>$A$8,"",OFFSET(InputPriceData!F$15,CalculationsAndCharts!$A133+$A$11,IF($C$5,8,0),1,1)) -> 445.98999 | H133: 448.529999 | I133: 445.390015 | J133: 3.139984 | M133: 2.840873034 | P133: 447.8991789 | Q133: 450.7400519 | R133: 445.0583059 | V133: 447.8991789 | W133: -1.909188889 | X133: 3.645002213 | Y133: 3.661611356 | Z133: 449.6516014 | AA133: 442.3283786 | BD133: 67565400
A134: 102 | B134: =IF(A134>$A$8,"",OFFSET(InputPriceData!B$15,$A134+$A$11,0,1,1)) -> 2023-09-11 | C134: =IF(A134>$A$8,"",OFFSET(InputPriceData!G$15,CalculationsAndCharts!$A134+$A$11,IF($C$5,8,0),1,1)) -> 60180100 | D134: =IF(A134>$A$8,"",OFFSET(InputPriceData!C$15,CalculationsAndCharts!$A134+$A$11,IF($C$5,8,0),1,1)) -> 448.23999 | E134: =IF(A134>$A$8,"",OFFSET(InputPriceData!D$15,CalculationsAndCharts!$A134+$A$11,IF($C$5,8,0),1,1)) -> 448.769989 | F134: =IF(A134>$A$8,"",OFFSET(InputPriceData!E$15,CalculationsAndCharts!$A134+$A$11,IF($C$5,8,0),1,1)) -> 446.470001 | G134: =IF(A134>$A$8,"",OFFSET(InputPriceData!F$15,CalculationsAndCharts!$A134+$A$11,IF($C$5,8,0),1,1)) -> 448.450012 | H134: 448.769989 | I134: 445.519989 | J134: 3.25 | M134: 2.890523538 | P134: 448.1795824 | Q134: 451.070106 | R134: 445.2890589 | V134: 448.1795824 | W134: 0.2704295747 | X134: 0.07313215487 | Y134: 3.705191434 | Z134: 452.1552034 | AA134: 444.7448206 | BC134: 60180100
A135: 103 | B135: =IF(A135>$A$8,"",OFFSET(InputPriceData!B$15,$A135+$A$11,0,1,1)) -> 2023-09-08 | C135: =IF(A135>$A$8,"",OFFSET(InputPriceData!G$15,CalculationsAndCharts!$A135+$A$11,IF($C$5,8,0),1,1)) -> 61659700 | D135: =IF(A135>$A$8,"",OFFSET(InputPriceData!C$15,CalculationsAndCharts!$A135+$A$11,IF($C$5,8,0),1,1)) -> 444.899994 | E135: =IF(A135>$A$8,"",OFFSET(InputPriceData!D$15,CalculationsAndCharts!$A135+$A$11,IF($C$5,8,0),1,1)) -> 447.109985 | F135: =IF(A135>$A$8,"",OFFSET(InputPriceData!E$15,CalculationsAndCharts!$A135+$A$11,IF($C$5,8,0),1,1)) -> 444.529999 | G135: =IF(A135>$A$8,"",OFFSET(InputPriceData!F$15,CalculationsAndCharts!$A135+$A$11,IF($C$5,8,0),1,1)) -> 445.519989 | H135: 447.109985 | I135: 444.529999 | J135: 2.579986 | M135: 3.144802286 | P135: 448.6155353 | Q135: 451.7603376 | R135: 445.470733 | V135: 448.6155353 | W135: -3.09554633 | X135: 9.582407079 | Y135: 3.707020364 | Z135: 449.2270094 | AA135: 441.8129686 | BC135: 61659700
A136: 104 | B136: =IF(A136>$A$8,"",OFFSET(InputPriceData!B$15,$A136+$A$11,0,1,1)) -> 2023-09-07 | C136: =IF(A136>$A$8,"",OFFSET(InputPriceData!G$15,CalculationsAndCharts!$A136+$A$11,IF($C$5,8,0),1,1)) -> 70355400 | D136: =IF(A136>$A$8,"",OFFSET(InputPriceData!C$15,CalculationsAndCharts!$A136+$A$11,IF($C$5,8,0),1,1)) -> 443.109985 | E136: =IF(A136>$A$8,"",OFFSET(InputPriceData!D$15,CalculationsAndCharts!$A136+$A$11,IF($C$5,8,0),1,1)) -> 445.549988 | F136: =IF(A136>$A$8,"",OFFSET(InputPriceData!E$15,CalculationsAndCharts!$A136+$A$11,IF($C$5,8,0),1,1)) -> 442.75 | G136: =IF(A136>$A$8,"",OFFSET(InputPriceData!F$15,CalculationsAndCharts!$A136+$A$11,IF($C$5,8,0),1,1)) -> 444.850006 | H136: 446.220001 | I136: 442.75 | J136: 3.470001 | M136: 3.458234667 | P136: 449.9902243 | Q136: 453.4484589 | R136: 446.5319896 | V136: 449.9902243 | W136: -5.140218279 | X136: 26.42184396 | Y136: 3.641924036 | Z136: 448.49193 | AA136: 441.208082 | BD136: 70355400
A137: 105 | B137: =IF(A137>$A$8,"",OFFSET(InputPriceData!B$15,$A137+$A$11,0,1,1)) -> 2023-09-06 | C137: =IF(A137>$A$8,"",OFFSET(InputPriceData!G$15,CalculationsAndCharts!$A137+$A$11,IF($C$5,8,0),1,1)) -> 70758500 | D137: =IF(A137>$A$8,"",OFFSET(InputPriceData!C$15,CalculationsAndCharts!$A137+$A$11,IF($C$5,8,0),1,1)) -> 448.399994 | E137: =IF(A137>$A$8,"",OFFSET(InputPriceData!D$15,CalculationsAndCharts!$A137+$A$11,IF($C$5,8,0),1,1)) -> 448.51001 | F137: =IF(A137>$A$8,"",OFFSET(InputPriceData!E$15,CalculationsAndCharts!$A137+$A$11,IF($C$5,8,0),1,1)) -> 443.809998 | G137: =IF(A137>$A$8,"",OFFSET(InputPriceData!F$15,CalculationsAndCharts!$A137+$A$11,IF($C$5,8,0),1,1)) -> 446.220001 | H137: 449.23999 | I137: 443.809998 | J137: 5.429992 | M137: 3.184400235 | P137: 451.3675204 | Q137: 454.5519206 | R137: 448.1831202 | V137: 451.3675204 | W137: -5.147519412 | X137: 26.4969561 | Y137: 3.47747789 | Z137: 449.6974789 | AA137: 442.7425231 | BD137: 70758500
A138: 106 | B138: =IF(A138>$A$8,"",OFFSET(InputPriceData!B$15,$A138+$A$11,0,1,1)) -> 2023-09-05 | C138: =IF(A138>$A$8,"",OFFSET(InputPriceData!G$15,CalculationsAndCharts!$A138+$A$11,IF($C$5,8,0),1,1)) -> 55166200 | D138: =IF(A138>$A$8,"",OFFSET(InputPriceData!C$15,CalculationsAndCharts!$A138+$A$11,IF($C$5,8,0),1,1)) -> 450.730011 | E138: =IF(A138>$A$8,"",OFFSET(InputPriceData!D$15,CalculationsAndCharts!$A138+$A$11,IF($C$5,8,0),1,1)) -> 451.059998 | F138: =IF(A138>$A$8,"",OFFSET(InputPriceData!E$15,CalculationsAndCharts!$A138+$A$11,IF($C$5,8,0),1,1)) -> 449.170013 | G138: =IF(A138>$A$8,"",OFFSET(InputPriceData!F$15,CalculationsAndCharts!$A138+$A$11,IF($C$5,8,0),1,1)) -> 449.23999 | H138: 451.190002 | I138: 449.170013 | J138: 2.019989 | M138: 3.274161345 | P138: 451.7041161 | Q138: 454.9782774 | R138: 448.4299547 | V138: 451.7041161 | W138: -2.464126076 | X138: 6.071917316 | Y138: 3.281524443 | Z138: 452.5215144 | AA138: 445.9584656 | BD138: 55166200
A139: 107 | B139: =IF(A139>$A$8,"",OFFSET(InputPriceData!B$15,$A139+$A$11,0,1,1)) -> 2023-09-01 | C139: =IF(A139>$A$8,"",OFFSET(InputPriceData!G$15,CalculationsAndCharts!$A139+$A$11,IF($C$5,8,0),1,1)) -> 58875700 | D139: =IF(A139>$A$8,"",OFFSET(InputPriceData!C$15,CalculationsAndCharts!$A139+$A$11,IF($C$5,8,0),1,1)) -> 453.170013 | E139: =IF(A139>$A$8,"",OFFSET(InputPriceData!D$15,CalculationsAndCharts!$A139+$A$11,IF($C$5,8,0),1,1)) -> 453.670013 | F139: =IF(A139>$A$8,"",OFFSET(InputPriceData!E$15,CalculationsAndCharts!$A139+$A$11,IF($C$5,8,0),1,1)) -> 449.679993 | G139: =IF(A139>$A$8,"",OFFSET(InputPriceData!F$15,CalculationsAndCharts!$A139+$A$11,IF($C$5,8,0),1,1)) -> 451.190002 | H139: 453.670013 | I139: 449.679993 | J139: 3.99002 | M139: 3.827985162 | P139: 450.5026106 | Q139: 454.3305958 | R139: 446.6746255 | V139: 450.5026106 | W139: 0.6873913769 | X139: 0.472506905 | Y139: 3.245816865 | Z139: 454.4358189 | AA139: 447.9441851 | BC139: 58875700
A140: 108 | B140: =IF(A140>$A$8,"",OFFSET(InputPriceData!B$15,$A140+$A$11,0,1,1)) -> 2023-08-31 | C140: =IF(A140>$A$8,"",OFFSET(InputPriceData!G$15,CalculationsAndCharts!$A140+$A$11,IF($C$5,8,0),1,1)) -> 66084600 | D140: =IF(A140>$A$8,"",OFFSET(InputPriceData!C$15,CalculationsAndCharts!$A140+$A$11,IF($C$5,8,0),1,1)) -> 451.649994 | E140: =IF(A140>$A$8,"",OFFSET(InputPriceData!D$15,CalculationsAndCharts!$A140+$A$11,IF($C$5,8,0),1,1)) -> 452.829987 | F140: =IF(A140>$A$8,"",OFFSET(InputPriceData!E$15,CalculationsAndCharts!$A140+$A$11,IF($C$5,8,0),1,1)) -> 450.160004 | G140: =IF(A140>$A$8,"",OFFSET(InputPriceData!F$15,CalculationsAndCharts!$A140+$A$11,IF($C$5,8,0),1,1)) -> 450.350006 | H140: 452.829987 | I140: 450.160004 | J140: 2.669983 | M140: 4.428410568 | P140: 448.3174858 | Q140: 452.7458964 | R140: 443.8890752 | V140: 448.3174858 | W140: 2.032520188 | X140: 4.131138315 | Y140: 3.38085371 | Z140: 453.7308597 | AA140: 446.9691523 | BD140: 66084600
A141: 109 | B141: =IF(A141>$A$8,"",OFFSET(InputPriceData!B$15,$A141+$A$11,0,1,1)) -> 2023-08-30 | C141: =IF(A141>$A$8,"",OFFSET(InputPriceData!G$15,CalculationsAndCharts!$A141+$A$11,IF($C$5,8,0),1,1)) -> 69053900 | D141: =IF(A141>$A$8,"",OFFSET(InputPriceData!C$15,CalculationsAndCharts!$A141+$A$11,IF($C$5,8,0),1,1)) -> 449.51001 | E141: =IF(A141>$A$8,"",OFFSET(InputPriceData!D$15,CalculationsAndCharts!$A141+$A$11,IF($C$5,8,0),1,1)) -> 451.670013 | F141: =IF(A141>$A$8,"",OFFSET(InputPriceData!E$15,CalculationsAndCharts!$A141+$A$11,IF($C$5,8,0),1,1)) -> 448.779999 | G141: =IF(A141>$A$8,"",OFFSET(InputPriceData!F$15,CalculationsAndCharts!$A141+$A$11,IF($C$5,8,0),1,1)) -> 451.01001 | H141: 451.670013 | I141: 448.779999 | J141: 2.890014 | M141: 5.503028906 | P141: 445.2572296 | Q141: 450.7602586 | R141: 439.7542007 | V141: 445.2572296 | W141: 5.752780352 | X141: 33.09448177 | Y141: 3.52388989 | Z141: 454.5338999 | AA141: 447.4861201 | BC141: 69053900
A142: 110 | B142: =IF(A142>$A$8,"",OFFSET(InputPriceData!B$15,$A142+$A$11,0,1,1)) -> 2023-08-29 | C142: =IF(A142>$A$8,"",OFFSET(InputPriceData!G$15,CalculationsAndCharts!$A142+$A$11,IF($C$5,8,0),1,1)) -> 83081900 | D142: =IF(A142>$A$8,"",OFFSET(InputPriceData!C$15,CalculationsAndCharts!$A142+$A$11,IF($C$5,8,0),1,1)) -> 442.649994 | E142: =IF(A142>$A$8,"",OFFSET(InputPriceData!D$15,CalculationsAndCharts!$A142+$A$11,IF($C$5,8,0),1,1)) -> 449.450012 | F142: =IF(A142>$A$8,"",OFFSET(InputPriceData!E$15,CalculationsAndCharts!$A142+$A$11,IF($C$5,8,0),1,1)) -> 442.459991 | G142: =IF(A142>$A$8,"",OFFSET(InputPriceData!F$15,CalculationsAndCharts!$A142+$A$11,IF($C$5,8,0),1,1)) -> 449.160004 | H142: 449.450012 | I142: 442.459991 | J142: 6.990021 | M142: 5.768179716 | P142: 441.4496843 | Q142: 447.217864 | R142: 435.6815046 | V142: 441.4496843 | W142: 7.710319684 | X142: 59.44902963 | Y142: 3.556967102 | Z142: 452.7169711 | AA142: 445.6030369 | BC142: 83081900
A143: 111 | B143: =IF(A143>$A$8,"",OFFSET(InputPriceData!B$15,$A143+$A$11,0,1,1)) -> 2023-08-28 | C143: =IF(A143>$A$8,"",OFFSET(InputPriceData!G$15,CalculationsAndCharts!$A143+$A$11,IF($C$5,8,0),1,1)) -> 61595400 | D143: =IF(A143>$A$8,"",OFFSET(InputPriceData!C$15,CalculationsAndCharts!$A143+$A$11,IF($C$5,8,0),1,1)) -> 442.23999 | E143: =IF(A143>$A$8,"",OFFSET(InputPriceData!D$15,CalculationsAndCharts!$A143+$A$11,IF($C$5,8,0),1,1)) -> 443.399994 | F143: =IF(A143>$A$8,"",OFFSET(InputPriceData!E$15,CalculationsAndCharts!$A143+$A$11,IF($C$5,8,0),1,1)) -> 439.970001 | G143: =IF(A143>$A$8,"",OFFSET(InputPriceData!F$15,CalculationsAndCharts!$A143+$A$11,IF($C$5,8,0),1,1)) -> 442.76001 | H143: 443.399994 | I143: 439.970001 | J143: 3.429993 | M143: 5.945221859 | P143: 438.6294957 | Q143: 444.5747175 | R143: 432.6842738 | V143: 438.6294957 | W143: 4.130514311 | X143: 17.06114847 | Y143: 3.119774581 | Z143: 445.8797846 | AA143: 439.6402354 | BC143: 61595400
A144: 112 | B144: =IF(A144>$A$8,"",OFFSET(InputPriceData!B$15,$A144+$A$11,0,1,1)) -> 2023-08-25 | C144: =IF(A144>$A$8,"",OFFSET(InputPriceData!G$15,CalculationsAndCharts!$A144+$A$11,IF($C$5,8,0),1,1)) -> 102325100 | D144: =IF(A144>$A$8,"",OFFSET(InputPriceData!C$15,CalculationsAndCharts!$A144+$A$11,IF($C$5,8,0),1,1)) -> 438.679993 | E144: =IF(A144>$A$8,"",OFFSET(InputPriceData!D$15,CalculationsAndCharts!$A144+$A$11,IF($C$5,8,0),1,1)) -> 441.299988 | F144: =IF(A144>$A$8,"",OFFSET(InputPriceData!E$15,CalculationsAndCharts!$A144+$A$11,IF($C$5,8,0),1,1)) -> 435 | G144: =IF(A144>$A$8,"",OFFSET(InputPriceData!F$15,CalculationsAndCharts!$A144+$A$11,IF($C$5,8,0),1,1)) -> 439.970001 | H144: 441.299988 | I144: 435 | J144: 6.299988 | M144: 6.302401145 | P144: 437.4220131 | Q144: 443.7244142 | R144: 431.119612 | V144: 437.4220131 | W144: 2.547987905 | X144: 6.492242364 | Y144: 2.984912975 | Z144: 442.954914 | AA144: 436.985088 | BC144: 102325100
A145: 113 | B145: =IF(A145>$A$8,"",OFFSET(InputPriceData!B$15,$A145+$A$11,0,1,1)) -> 2023-08-24 | C145: =IF(A145>$A$8,"",OFFSET(InputPriceData!G$15,CalculationsAndCharts!$A145+$A$11,IF($C$5,8,0),1,1)) -> 88517300 | D145: =IF(A145>$A$8,"",OFFSET(InputPriceData!C$15,CalculationsAndCharts!$A145+$A$11,IF($C$5,8,0),1,1)) -> 444.690002 | E145: =IF(A145>$A$8,"",OFFSET(InputPriceData!D$15,CalculationsAndCharts!$A145+$A$11,IF($C$5,8,0),1,1)) -> 445.220001 | F145: =IF(A145>$A$8,"",OFFSET(InputPriceData!E$15,CalculationsAndCharts!$A145+$A$11,IF($C$5,8,0),1,1)) -> 436.859985 | G145: =IF(A145>$A$8,"",OFFSET(InputPriceData!F$15,CalculationsAndCharts!$A145+$A$11,IF($C$5,8,0),1,1)) -> 436.890015 | H145: 445.220001 | I145: 436.859985 | J145: 8.360016 | M145: 5.455477493 | P145: 437.4856821 | Q145: 442.9411596 | R145: 432.0302046 | V145: 437.4856821 | W145: -0.5956671078 | X145: 0.3548193034 | Y145: 2.935075938 | Z145: 439.8250909 | AA145: 433.9549391 | BD145: 88517300
A146: 114 | B146: =IF(A146>$A$8,"",OFFSET(InputPriceData!B$15,$A146+$A$11,0,1,1)) -> 2023-08-23 | C146: =IF(A146>$A$8,"",OFFSET(InputPriceData!G$15,CalculationsAndCharts!$A146+$A$11,IF($C$5,8,0),1,1)) -> 68441000 | D146: =IF(A146>$A$8,"",OFFSET(InputPriceData!C$15,CalculationsAndCharts!$A146+$A$11,IF($C$5,8,0),1,1)) -> 439.25 | E146: =IF(A146>$A$8,"",OFFSET(InputPriceData!D$15,CalculationsAndCharts!$A146+$A$11,IF($C$5,8,0),1,1)) -> 443.670013 | F146: =IF(A146>$A$8,"",OFFSET(InputPriceData!E$15,CalculationsAndCharts!$A146+$A$11,IF($C$5,8,0),1,1)) -> 439.100006 | G146: =IF(A146>$A$8,"",OFFSET(InputPriceData!F$15,CalculationsAndCharts!$A146+$A$11,IF($C$5,8,0),1,1)) -> 443.029999 | H146: 443.670013 | I146: 438.149994 | J146: 5.520019 | M146: 4.559928039 | P146: 436.9398692 | Q146: 441.4997972 | R146: 432.3799411 | V146: 436.9398692 | W146: 6.090129817 | X146: 37.08968119 | Y146: 3.051166636 | Z146: 446.0811656 | AA146: 439.9788324 | BC146: 68441000
A147: 115 | B147: =IF(A147>$A$8,"",OFFSET(InputPriceData!B$15,$A147+$A$11,0,1,1)) -> 2023-08-22 | C147: =IF(A147>$A$8,"",OFFSET(InputPriceData!G$15,CalculationsAndCharts!$A147+$A$11,IF($C$5,8,0),1,1)) -> 65062900 | D147: =IF(A147>$A$8,"",OFFSET(InputPriceData!C$15,CalculationsAndCharts!$A147+$A$11,IF($C$5,8,0),1,1)) -> 441.179993 | E147: =IF(A147>$A$8,"",OFFSET(InputPriceData!D$15,CalculationsAndCharts!$A147+$A$11,IF($C$5,8,0),1,1)) -> 441.179993 | F147: =IF(A147>$A$8,"",OFFSET(InputPriceData!E$15,CalculationsAndCharts!$A147+$A$11,IF($C$5,8,0),1,1)) -> 437.570007 | G147: =IF(A147>$A$8,"",OFFSET(InputPriceData!F$15,CalculationsAndCharts!$A147+$A$11,IF($C$5,8,0),1,1)) -> 438.149994 | H147: 441.179993 | I147: 437.570007 | J147: 3.609986 | M147: 4.638739803 | P147: 436.1473685 | Q147: 440.7861083 | R147: 431.5086287 | V147: 436.1473685 | W147: 2.002625467 | X147: 4.01050876 | Y147: 2.741316905 | Z147: 440.8913109 | AA147: 435.4086771 | BD147: 65062900
A148: 116 | B148: =IF(A148>$A$8,"",OFFSET(InputPriceData!B$15,$A148+$A$11,0,1,1)) -> 2023-08-21 | C148: =IF(A148>$A$8,"",OFFSET(InputPriceData!G$15,CalculationsAndCharts!$A148+$A$11,IF($C$5,8,0),1,1)) -> 68719000 | D148: =IF(A148>$A$8,"",OFFSET(InputPriceData!C$15,CalculationsAndCharts!$A148+$A$11,IF($C$5,8,0),1,1)) -> 437.549988 | E148: =IF(A148>$A$8,"",OFFSET(InputPriceData!D$15,CalculationsAndCharts!$A148+$A$11,IF($C$5,8,0),1,1)) -> 440.109985 | F148: =IF(A148>$A$8,"",OFFSET(InputPriceData!E$15,CalculationsAndCharts!$A148+$A$11,IF($C$5,8,0),1,1)) -> 435.320007 | G148: =IF(A148>$A$8,"",OFFSET(InputPriceData!F$15,CalculationsAndCharts!$A148+$A$11,IF($C$5,8,0),1,1)) -> 439.339996 | H148: 440.109985 | I148: 435.320007 | J148: 4.789978 | M148: 4.934204478 | P148: 436.3772065 | Q148: 441.3114109 | R148: 431.443002 | V148: 436.3772065 | W148: 2.962789542 | X148: 8.778121869 | Y148: 2.708203163 | Z148: 442.0481992 | AA148: 436.6317928 | BC148: 68719000
A149: 117 | B149: =IF(A149>$A$8,"",OFFSET(InputPriceData!B$15,$A149+$A$11,0,1,1)) -> 2023-08-18 | C149: =IF(A149>$A$8,"",OFFSET(InputPriceData!G$15,CalculationsAndCharts!$A149+$A$11,IF($C$5,8,0),1,1)) -> 98758400 | D149: =IF(A149>$A$8,"",OFFSET(InputPriceData!C$15,CalculationsAndCharts!$A149+$A$11,IF($C$5,8,0),1,1)) -> 433.369995 | E149: =IF(A149>$A$8,"",OFFSET(InputPriceData!D$15,CalculationsAndCharts!$A149+$A$11,IF($C$5,8,0),1,1)) -> 437.570007 | F149: =IF(A149>$A$8,"",OFFSET(InputPriceData!E$15,CalculationsAndCharts!$A149+$A$11,IF($C$5,8,0),1,1)) -> 433.01001 | G149: =IF(A149>$A$8,"",OFFSET(InputPriceData!F$15,CalculationsAndCharts!$A149+$A$11,IF($C$5,8,0),1,1)) -> 436.5 | H149: 437.570007 | I149: 433.01001 | J149: 4.559997 | M149: 5.068057562 | P149: 437.4378907 | Q149: 442.5059483 | R149: 432.3698332 | V149: 437.4378907 | W149: -0.9378907492 | X149: 0.8796390574 | Y149: 2.641984821 | Z149: 439.1419848 | AA149: 433.8580152 | BC149: 98758400
A150: 118 | B150: =IF(A150>$A$8,"",OFFSET(InputPriceData!B$15,$A150+$A$11,0,1,1)) -> 2023-08-17 | C150: =IF(A150>$A$8,"",OFFSET(InputPriceData!G$15,CalculationsAndCharts!$A150+$A$11,IF($C$5,8,0),1,1)) -> 95711300 | D150: =IF(A150>$A$8,"",OFFSET(InputPriceData!C$15,CalculationsAndCharts!$A150+$A$11,IF($C$5,8,0),1,1)) -> 441.160004 | E150: =IF(A150>$A$8,"",OFFSET(InputPriceData!D$15,CalculationsAndCharts!$A150+$A$11,IF($C$5,8,0),1,1)) -> 441.429993 | F150: =IF(A150>$A$8,"",OFFSET(InputPriceData!E$15,CalculationsAndCharts!$A150+$A$11,IF($C$5,8,0),1,1)) -> 435.75 | G150: =IF(A150>$A$8,"",OFFSET(InputPriceData!F$15,CalculationsAndCharts!$A150+$A$11,IF($C$5,8,0),1,1)) -> 436.290009 | H150: 441.429993 | I150: 435.75 | J150: 5.679993 | M150: 5.006875008 | P150: 439.9101337 | Q150: 444.9170087 | R150: 434.9032587 | V150: 439.9101337 | W150: -3.620124691 | X150: 13.10530278 | Y150: 2.726525434 | Z150: 439.0165344 | AA150: 433.5634836 | BD150: 95711300
A151: 119 | B151: =IF(A151>$A$8,"",OFFSET(InputPriceData!B$15,$A151+$A$11,0,1,1)) -> 2023-08-16 | C151: =IF(A151>$A$8,"",OFFSET(InputPriceData!G$15,CalculationsAndCharts!$A151+$A$11,IF($C$5,8,0),1,1)) -> 80107200 | D151: =IF(A151>$A$8,"",OFFSET(InputPriceData!C$15,CalculationsAndCharts!$A151+$A$11,IF($C$5,8,0),1,1)) -> 442.459991 | E151: =IF(A151>$A$8,"",OFFSET(InputPriceData!D$15,CalculationsAndCharts!$A151+$A$11,IF($C$5,8,0),1,1)) -> 444.179993 | F151: =IF(A151>$A$8,"",OFFSET(InputPriceData!E$15,CalculationsAndCharts!$A151+$A$11,IF($C$5,8,0),1,1)) -> 439.529999 | G151: =IF(A151>$A$8,"",OFFSET(InputPriceData!F$15,CalculationsAndCharts!$A151+$A$11,IF($C$5,8,0),1,1)) -> 439.640015 | H151: 444.179993 | I151: 439.529999 | J151: 4.649994 | M151: 4.903017197 | P151: 442.5506059 | Q151: 447.4536231 | R151: 437.6475887 | V151: 442.5506059 | W151: -2.910590855 | X151: 8.471539123 | Y151: 2.69634632 | Z151: 442.3363613 | AA151: 436.9436687 | BD151: 80107200
A152: 120 | B152: =IF(A152>$A$8,"",OFFSET(InputPriceData!B$15,$A152+$A$11,0,1,1)) -> 2023-08-15 | C152: =IF(A152>$A$8,"",OFFSET(InputPriceData!G$15,CalculationsAndCharts!$A152+$A$11,IF($C$5,8,0),1,1)) -> 75707500 | D152: =IF(A152>$A$8,"",OFFSET(InputPriceData!C$15,CalculationsAndCharts!$A152+$A$11,IF($C$5,8,0),1,1)) -> 446.269989 | E152: =IF(A152>$A$8,"",OFFSET(InputPriceData!D$15,CalculationsAndCharts!$A152+$A$11,IF($C$5,8,0),1,1)) -> 446.640015 | F152: =IF(A152>$A$8,"",OFFSET(InputPriceData!E$15,CalculationsAndCharts!$A152+$A$11,IF($C$5,8,0),1,1)) -> 442.299988 | G152: =IF(A152>$A$8,"",OFFSET(InputPriceData!F$15,CalculationsAndCharts!$A152+$A$11,IF($C$5,8,0),1,1)) -> 442.890015 | H152: 448.109985 | I152: 442.299988 | J152: 5.809997 | M152: 4.741001772 | P152: 444.460536 | Q152: 449.2015377 | R152: 439.7195342 | V152: 444.460536 | W152: -1.570520963 | X152: 2.466536097 | Y152: 2.627195746 | Z152: 445.5172107 | AA152: 440.2628193 | BD152: 75707500
A153: 121 | B153: =IF(A153>$A$8,"",OFFSET(InputPriceData!B$15,$A153+$A$11,0,1,1)) -> 2023-08-14 | C153: =IF(A153>$A$8,"",OFFSET(InputPriceData!G$15,CalculationsAndCharts!$A153+$A$11,IF($C$5,8,0),1,1)) -> 47867400 | D153: =IF(A153>$A$8,"",OFFSET(InputPriceData!C$15,CalculationsAndCharts!$A153+$A$11,IF($C$5,8,0),1,1)) -> 444.700012 | E153: =IF(A153>$A$8,"",OFFSET(InputPriceData!D$15,CalculationsAndCharts!$A153+$A$11,IF($C$5,8,0),1,1)) -> 448.109985 | F153: =IF(A153>$A$8,"",OFFSET(InputPriceData!E$15,CalculationsAndCharts!$A153+$A$11,IF($C$5,8,0),1,1)) -> 444.380005 | G153: =IF(A153>$A$8,"",OFFSET(InputPriceData!F$15,CalculationsAndCharts!$A153+$A$11,IF($C$5,8,0),1,1)) -> 448.109985 | H153: 448.109985 | I153: 444.380005 | J153: 3.72998 | M153: 4.777554714 | P153: 444.9373018 | Q153: 449.7148565 | R153: 440.159747 | V153: 444.9373018 | W153: 3.172683241 | X153: 10.06591895 | Y153: 2.659343217 | Z153: 450.7693282 | AA153: 445.4506418 | BC153: 47867400
A154: 122 | B154: =IF(A154>$A$8,"",OFFSET(InputPriceData!B$15,$A154+$A$11,0,1,1)) -> 2023-08-11 | C154: =IF(A154>$A$8,"",OFFSET(InputPriceData!G$15,CalculationsAndCharts!$A154+$A$11,IF($C$5,8,0),1,1)) -> 68664600 | D154: =IF(A154>$A$8,"",OFFSET(InputPriceData!C$15,CalculationsAndCharts!$A154+$A$11,IF($C$5,8,0),1,1)) -> 443.970001 | E154: =IF(A154>$A$8,"",OFFSET(InputPriceData!D$15,CalculationsAndCharts!$A154+$A$11,IF($C$5,8,0),1,1)) -> 446.700012 | F154: =IF(A154>$A$8,"",OFFSET(InputPriceData!E$15,CalculationsAndCharts!$A154+$A$11,IF($C$5,8,0),1,1)) -> 443.350006 | G154: =IF(A154>$A$8,"",OFFSET(InputPriceData!F$15,CalculationsAndCharts!$A154+$A$11,IF($C$5,8,0),1,1)) -> 445.649994 | H154: 446.700012 | I154: 443.350006 | J154: 3.350006 | M154: 5.44575253 | P154: 445.0632568 | Q154: 450.5090094 | R154: 439.6175043 | V154: 445.0632568 | W154: 0.5867371727 | X154: 0.3442605098 | Y154: 2.580308542 | Z154: 448.2303025 | AA154: 443.0696855 | BD154: 68664600
A155: 123 | B155: =IF(A155>$A$8,"",OFFSET(InputPriceData!B$15,$A155+$A$11,0,1,1)) -> 2023-08-10 | C155: =IF(A155>$A$8,"",OFFSET(InputPriceData!G$15,CalculationsAndCharts!$A155+$A$11,IF($C$5,8,0),1,1)) -> 93005500 | D155: =IF(A155>$A$8,"",OFFSET(InputPriceData!C$15,CalculationsAndCharts!$A155+$A$11,IF($C$5,8,0),1,1)) -> 448.190002 | E155: =IF(A155>$A$8,"",OFFSET(InputPriceData!D$15,CalculationsAndCharts!$A155+$A$11,IF($C$5,8,0),1,1)) -> 451.700012 | F155: =IF(A155>$A$8,"",OFFSET(InputPriceData!E$15,CalculationsAndCharts!$A155+$A$11,IF($C$5,8,0),1,1)) -> 444.700012 | G155: =IF(A155>$A$8,"",OFFSET(InputPriceData!F$15,CalculationsAndCharts!$A155+$A$11,IF($C$5,8,0),1,1)) -> 445.910004 | H155: 451.700012 | I155: 444.700012 | J155: 7 | M155: 5.439157004 | P155: 446.0309222 | Q155: 451.4700792 | R155: 440.5917652 | V155: 446.0309222 | W155: -0.1209181962 | X155: 0.01462121017 | Y155: 2.605265732 | Z155: 448.5152697 | AA155: 443.3047383 | BC155: 93005500
A156: 124 | B156: =IF(A156>$A$8,"",OFFSET(InputPriceData!B$15,$A156+$A$11,0,1,1)) -> 2023-08-09 | C156: =IF(A156>$A$8,"",OFFSET(InputPriceData!G$15,CalculationsAndCharts!$A156+$A$11,IF($C$5,8,0),1,1)) -> 78789600 | D156: =IF(A156>$A$8,"",OFFSET(InputPriceData!C$15,CalculationsAndCharts!$A156+$A$11,IF($C$5,8,0),1,1)) -> 449.029999 | E156: =IF(A156>$A$8,"",OFFSET(InputPriceData!D$15,CalculationsAndCharts!$A156+$A$11,IF($C$5,8,0),1,1)) -> 449.200012 | F156: =IF(A156>$A$8,"",OFFSET(InputPriceData!E$15,CalculationsAndCharts!$A156+$A$11,IF($C$5,8,0),1,1)) -> 444.959991 | G156: =IF(A156>$A$8,"",OFFSET(InputPriceData!F$15,CalculationsAndCharts!$A156+$A$11,IF($C$5,8,0),1,1)) -> 445.75 | H156: 449.200012 | I156: 444.959991 | J156: 4.240021 | M156: 5.174859729 | P156: 447.483978 | Q156: 452.6588378 | R156: 442.3091183 | V156: 447.483978 | W156: -1.733978034 | X156: 3.006679821 | Y156: 2.78370692 | Z156: 448.5337069 | AA156: 442.9662931 | BD156: 78789600
A157: 125 | B157: =IF(A157>$A$8,"",OFFSET(InputPriceData!B$15,$A157+$A$11,0,1,1)) -> 2023-08-08 | C157: =IF(A157>$A$8,"",OFFSET(InputPriceData!G$15,CalculationsAndCharts!$A157+$A$11,IF($C$5,8,0),1,1)) -> 71361300 | D157: =IF(A157>$A$8,"",OFFSET(InputPriceData!C$15,CalculationsAndCharts!$A157+$A$11,IF($C$5,8,0),1,1)) -> 448.079987 | E157: =IF(A157>$A$8,"",OFFSET(InputPriceData!D$15,CalculationsAndCharts!$A157+$A$11,IF($C$5,8,0),1,1)) -> 450.700012 | F157: =IF(A157>$A$8,"",OFFSET(InputPriceData!E$15,CalculationsAndCharts!$A157+$A$11,IF($C$5,8,0),1,1)) -> 445.269989 | G157: =IF(A157>$A$8,"",OFFSET(InputPriceData!F$15,CalculationsAndCharts!$A157+$A$11,IF($C$5,8,0),1,1)) -> 448.75 | H157: 450.709991 | I157: 445.269989 | J157: 5.440002 | M157: 5.205776397 | P157: 448.8392185 | Q157: 454.0449949 | R157: 443.6334421 | V157: 448.8392185 | W157: -0.08921848975 | X157: 0.007959938912 | Y157: 2.850560521 | Z157: 451.6005605 | AA157: 445.8994395 | BD157: 71361300
A158: 126 | B158: =IF(A158>$A$8,"",OFFSET(InputPriceData!B$15,$A158+$A$11,0,1,1)) -> 2023-08-07 | C158: =IF(A158>$A$8,"",OFFSET(InputPriceData!G$15,CalculationsAndCharts!$A158+$A$11,IF($C$5,8,0),1,1)) -> 58357500 | D158: =IF(A158>$A$8,"",OFFSET(InputPriceData!C$15,CalculationsAndCharts!$A158+$A$11,IF($C$5,8,0),1,1)) -> 448.709991 | E158: =IF(A158>$A$8,"",OFFSET(InputPriceData!D$15,CalculationsAndCharts!$A158+$A$11,IF($C$5,8,0),1,1)) -> 450.869995 | F158: =IF(A158>$A$8,"",OFFSET(InputPriceData!E$15,CalculationsAndCharts!$A158+$A$11,IF($C$5,8,0),1,1)) -> 447.98999 | G158: =IF(A158>$A$8,"",OFFSET(InputPriceData!F$15,CalculationsAndCharts!$A158+$A$11,IF($C$5,8,0),1,1)) -> 450.709991 | H158: 450.869995 | I158: 446.809998 | J158: 4.059997 | M158: 5.25371591 | P158: 449.5223857 | Q158: 454.7761016 | R158: 444.2686698 | V158: 449.5223857 | W158: 1.18760533 | X158: 1.410406419 | Y158: 2.860017856 | Z158: 453.5700089 | AA158: 447.8499731 | BC158: 58357500
A159: 127 | B159: =IF(A159>$A$8,"",OFFSET(InputPriceData!B$15,$A159+$A$11,0,1,1)) -> 2023-08-04 | C159: =IF(A159>$A$8,"",OFFSET(InputPriceData!G$15,CalculationsAndCharts!$A159+$A$11,IF($C$5,8,0),1,1)) -> 100052300 | D159: =IF(A159>$A$8,"",OFFSET(InputPriceData!C$15,CalculationsAndCharts!$A159+$A$11,IF($C$5,8,0),1,1)) -> 450.720001 | E159: =IF(A159>$A$8,"",OFFSET(InputPriceData!D$15,CalculationsAndCharts!$A159+$A$11,IF($C$5,8,0),1,1)) -> 452.899994 | F159: =IF(A159>$A$8,"",OFFSET(InputPriceData!E$15,CalculationsAndCharts!$A159+$A$11,IF($C$5,8,0),1,1)) -> 446.269989 | G159: =IF(A159>$A$8,"",OFFSET(InputPriceData!F$15,CalculationsAndCharts!$A159+$A$11,IF($C$5,8,0),1,1)) -> 446.809998 | H159: 452.899994 | I159: 446.269989 | J159: 6.630005 | M159: 4.970290409 | P159: 451.0959519 | Q159: 456.0662423 | R159: 446.1256615 | V159: 451.0959519 | W159: -4.285953872 | X159: 18.3694006 | Y159: 2.869276138 | Z159: 449.6792741 | AA159: 443.9407219 | BD159: 100052300
A160: 128 | B160: =IF(A160>$A$8,"",OFFSET(InputPriceData!B$15,$A160+$A$11,0,1,1)) -> 2023-08-03 | C160: =IF(A160>$A$8,"",OFFSET(InputPriceData!G$15,CalculationsAndCharts!$A160+$A$11,IF($C$5,8,0),1,1)) -> 64276100 | D160: =IF(A160>$A$8,"",OFFSET(InputPriceData!C$15,CalculationsAndCharts!$A160+$A$11,IF($C$5,8,0),1,1)) -> 448.040009 | E160: =IF(A160>$A$8,"",OFFSET(InputPriceData!D$15,CalculationsAndCharts!$A160+$A$11,IF($C$5,8,0),1,1)) -> 450.790009 | F160: =IF(A160>$A$8,"",OFFSET(InputPriceData!E$15,CalculationsAndCharts!$A160+$A$11,IF($C$5,8,0),1,1)) -> 447.369995 | G160: =IF(A160>$A$8,"",OFFSET(InputPriceData!F$15,CalculationsAndCharts!$A160+$A$11,IF($C$5,8,0),1,1)) -> 448.839996 | H160: 450.790009 | I160: 447.369995 | J160: 3.420014 | M160: 4.733769544 | P160: 453.7270914 | Q160: 458.4608609 | R160: 448.9933218 | V160: 453.7270914 | W160: -4.887095382 | X160: 23.88370127 | Y160: 2.806050916 | Z160: 451.6460469 | AA160: 446.0339451 | BD160: 64276100
A161: 129 | B161: =IF(A161>$A$8,"",OFFSET(InputPriceData!B$15,$A161+$A$11,0,1,1)) -> 2023-08-02 | C161: =IF(A161>$A$8,"",OFFSET(InputPriceData!G$15,CalculationsAndCharts!$A161+$A$11,IF($C$5,8,0),1,1)) -> 93933400 | D161: =IF(A161>$A$8,"",OFFSET(InputPriceData!C$15,CalculationsAndCharts!$A161+$A$11,IF($C$5,8,0),1,1)) -> 453.25 | E161: =IF(A161>$A$8,"",OFFSET(InputPriceData!D$15,CalculationsAndCharts!$A161+$A$11,IF($C$5,8,0),1,1)) -> 453.519989 | F161: =IF(A161>$A$8,"",OFFSET(InputPriceData!E$15,CalculationsAndCharts!$A161+$A$11,IF($C$5,8,0),1,1)) -> 449.350006 | G161: =IF(A161>$A$8,"",OFFSET(InputPriceData!F$15,CalculationsAndCharts!$A161+$A$11,IF($C$5,8,0),1,1)) -> 450.130005 | H161: 456.480011 | I161: 449.350006 | J161: 7.130005 | M161: 4.276433162 | P161: 456.2764497 | Q161: 460.5528828 | R161: 452.0000165 | V161: 456.2764497 | W161: -6.146444653 | X161: 37.77878187 | Y161: =IF($A161>$V$30,NA(),SQRT(SUM(OFFSET(X161,0,0,$A$22,1))/$A$22)) -> 2.666069057 | Z161: 452.7960741 | AA161: 447.4639359 | BD161: 93933400
A162: 130 | B162: =IF(A162>$A$8,"",OFFSET(InputPriceData!B$15,$A162+$A$11,0,1,1)) -> 2023-08-01 | C162: =IF(A162>$A$8,"",OFFSET(InputPriceData!G$15,CalculationsAndCharts!$A162+$A$11,IF($C$5,8,0),1,1)) -> 55291500 | D162: =IF(A162>$A$8,"",OFFSET(InputPriceData!C$15,CalculationsAndCharts!$A162+$A$11,IF($C$5,8,0),1,1)) -> 456.269989 | E162: =IF(A162>$A$8,"",OFFSET(InputPriceData!D$15,CalculationsAndCharts!$A162+$A$11,IF($C$5,8,0),1,1)) -> 457.25 | F162: =IF(A162>$A$8,"",OFFSET(InputPriceData!E$15,CalculationsAndCharts!$A162+$A$11,IF($C$5,8,0),1,1)) -> 455.48999 | G162: =IF(A162>$A$8,"",OFFSET(InputPriceData!F$15,CalculationsAndCharts!$A162+$A$11,IF($C$5,8,0),1,1)) -> 456.480011 | H162: =IF($A162>$H$30,NA(),IF(G163>E162,G163,E162)) -> 457.790009 | I162: =IF($A162>$H$30,NA(),IF(G163<F162,G163,F162)) -> 455.48999 | J162: =IF($A162>$H$30,NA(),H162-I162) -> 2.300019 | M162: =IF($A162>$H$30,NA(),IF($A162>$M$30,J162,(1-$L$35)*J162+(2*$L$35-$L$36)*J163-($L$35+$L$37)*J164+$L$36*M163+$L$37*M164)) -> 3.965045747 | P162: =IF($A162>$B$30,NA(),IF($A162>$P$30,G162,(1-$O$35)*G162+(2*$O$35-$O$36)*G163-($O$35+$O$37)*G164+$O$36*P163+$O$37*P164)) -> 457.5137417 | Q162: =IF($A162>$M$30,NA(),$P162+$M162*$A$19) -> 461.4787874 | R162: =IF($A162>$M$30,NA(),$P162-$M162*$A$19) -> 453.5486959 | V162: =IF($A162>$B$30,NA(),IF($A162>$P$30,G162,(1-$U$35)*G162+(2*$U$35-$U$36)*G163-($U$35+$U$37)*G164+$U$36*V163+$U$37*V164)) -> 457.5137417 | W162: =IF($A162>$V$30,NA(),(G162-V162)) -> -1.033730662 | X162: =IF($A162>$V$30,NA(),W162^2) -> 1.068599082 | Y162: 2.296203346 | Z162: =IF($A162>$V$30,NA(),$G162+$A$23*Y162) -> 458.7762143 | AA162: =IF($A162>$V$30,NA(),$G162-$A$23*Y162) -> 454.1838077 | BD162: 55291500
A163: 131 | B163: =IF(A163>$A$8,"",OFFSET(InputPriceData!B$15,$A163+$A$11,0,1,1)) -> 2023-07-31 | C163: =IF(A163>$A$8,"",OFFSET(InputPriceData!G$15,CalculationsAndCharts!$A163+$A$11,IF($C$5,8,0),1,1)) -> 62040400 | D163: =IF(A163>$A$8,"",OFFSET(InputPriceData!C$15,CalculationsAndCharts!$A163+$A$11,IF($C$5,8,0),1,1)) -> 457.410004 | E163: =IF(A163>$A$8,"",OFFSET(InputPriceData!D$15,CalculationsAndCharts!$A163+$A$11,IF($C$5,8,0),1,1)) -> 458.160004 | F163: =IF(A163>$A$8,"",OFFSET(InputPriceData!E$15,CalculationsAndCharts!$A163+$A$11,IF($C$5,8,0),1,1)) -> 456.049988 | G163: =IF(A163>$A$8,"",OFFSET(InputPriceData!F$15,CalculationsAndCharts!$A163+$A$11,IF($C$5,8,0),1,1)) -> 457.790009 | H163: 458.160004 | I163: 456.049988 | J163: 2.110016 | M163: 4.821060882 | P163: 457.0183944 | Q163: 461.8394552 | R163: 452.1973335 | V163: 457.0183944 | W163: 0.7716146466 | X163: 0.5953891628 | Y163: 2.420378818 | Z163: 460.2103878 | AA163: 455.3696302 | BC163: 62040400
A164: 132 | B164: =IF(A164>$A$8,"",OFFSET(InputPriceData!B$15,$A164+$A$11,0,1,1)) -> 2023-07-28 | C164: =IF(A164>$A$8,"",OFFSET(InputPriceData!G$15,CalculationsAndCharts!$A164+$A$11,IF($C$5,8,0),1,1)) -> 80011800 | D164: =IF(A164>$A$8,"",OFFSET(InputPriceData!C$15,CalculationsAndCharts!$A164+$A$11,IF($C$5,8,0),1,1)) -> 455.880005 | E164: =IF(A164>$A$8,"",OFFSET(InputPriceData!D$15,CalculationsAndCharts!$A164+$A$11,IF($C$5,8,0),1,1)) -> 457.779999 | F164: =IF(A164>$A$8,"",OFFSET(InputPriceData!E$15,CalculationsAndCharts!$A164+$A$11,IF($C$5,8,0),1,1)) -> 452.48999 | G164: =IF(A164>$A$8,"",OFFSET(InputPriceData!F$15,CalculationsAndCharts!$A164+$A$11,IF($C$5,8,0),1,1)) -> 456.920013 | H164: 457.779999 | I164: 452.48999 | J164: 5.290009 | M164: 5.089494312 | P164: 456.1508913 | Q164: 461.2403856 | R164: 451.061397 | V164: 456.1508913 | W164: 0.7691217128 | X164: 0.5915482091 | Y164: 2.723199609 | Z164: 459.6432126 | AA164: 454.1968134 | BC164: 80011800
A165: 133 | B165: =IF(A165>$A$8,"",OFFSET(InputPriceData!B$15,$A165+$A$11,0,1,1)) -> 2023-07-27 | C165: =IF(A165>$A$8,"",OFFSET(InputPriceData!G$15,CalculationsAndCharts!$A165+$A$11,IF($C$5,8,0),1,1)) -> 92194400 | D165: =IF(A165>$A$8,"",OFFSET(InputPriceData!C$15,CalculationsAndCharts!$A165+$A$11,IF($C$5,8,0),1,1)) -> 459.019989 | E165: =IF(A165>$A$8,"",OFFSET(InputPriceData!D$15,CalculationsAndCharts!$A165+$A$11,IF($C$5,8,0),1,1)) -> 459.440002 | F165: =IF(A165>$A$8,"",OFFSET(InputPriceData!E$15,CalculationsAndCharts!$A165+$A$11,IF($C$5,8,0),1,1)) -> 451.549988 | G165: =IF(A165>$A$8,"",OFFSET(InputPriceData!F$15,CalculationsAndCharts!$A165+$A$11,IF($C$5,8,0),1,1)) -> 452.48999 | H165: 459.440002 | I165: 451.549988 | J165: 7.890014 | M165: 3.898592366 | P165: 456.2654053 | Q165: 460.1639977 | R165: 452.366813 | V165: 456.2654053 | W165: -3.775415325 | X165: 14.25376088 | Y165: 2.767317797 | Z165: 455.2573078 | AA165: 449.7226722 | BD165: 92194400
A166: 134 | B166: =IF(A166>$A$8,"",OFFSET(InputPriceData!B$15,$A166+$A$11,0,1,1)) -> 2023-07-26 | C166: =IF(A166>$A$8,"",OFFSET(InputPriceData!G$15,CalculationsAndCharts!$A166+$A$11,IF($C$5,8,0),1,1)) -> 71052900 | D166: =IF(A166>$A$8,"",OFFSET(InputPriceData!C$15,CalculationsAndCharts!$A166+$A$11,IF($C$5,8,0),1,1)) -> 454.470001 | E166: =IF(A166>$A$8,"",OFFSET(InputPriceData!D$15,CalculationsAndCharts!$A166+$A$11,IF($C$5,8,0),1,1)) -> 456.98999 | F166: =IF(A166>$A$8,"",OFFSET(InputPriceData!E$15,CalculationsAndCharts!$A166+$A$11,IF($C$5,8,0),1,1)) -> 453.380005 | G166: =IF(A166>$A$8,"",OFFSET(InputPriceData!F$15,CalculationsAndCharts!$A166+$A$11,IF($C$5,8,0),1,1)) -> 455.51001 | H166: 456.98999 | I166: 453.380005 | J166: 3.609985 | M166: 2.79129864 | P166: 456.6025721 | Q166: 459.3938707 | R166: 453.8112734 | V166: 456.6025721 | W166: -1.092562083 | X166: 1.193691905 | Y166: 2.649091784 | Z166: 458.1591018 | AA166: 452.8609182 | BC166: 71052900
A167: 135 | B167: =IF(A167>$A$8,"",OFFSET(InputPriceData!B$15,$A167+$A$11,0,1,1)) -> 2023-07-25 | C167: =IF(A167>$A$8,"",OFFSET(InputPriceData!G$15,CalculationsAndCharts!$A167+$A$11,IF($C$5,8,0),1,1)) -> 55191200 | D167: =IF(A167>$A$8,"",OFFSET(InputPriceData!C$15,CalculationsAndCharts!$A167+$A$11,IF($C$5,8,0),1,1)) -> 453.920013 | E167: =IF(A167>$A$8,"",OFFSET(InputPriceData!D$15,CalculationsAndCharts!$A167+$A$11,IF($C$5,8,0),1,1)) -> 456.73999 | F167: =IF(A167>$A$8,"",OFFSET(InputPriceData!E$15,CalculationsAndCharts!$A167+$A$11,IF($C$5,8,0),1,1)) -> 453.869995 | G167: =IF(A167>$A$8,"",OFFSET(InputPriceData!F$15,CalculationsAndCharts!$A167+$A$11,IF($C$5,8,0),1,1)) -> 455.440002 | H167: 456.73999 | I167: 453.869995 | J167: 2.869995 | M167: 2.678414339 | P167: 456.073586 | Q167: 458.7520004 | R167: 453.3951717 | V167: 456.073586 | W167: -0.6335840326 | X167: 0.4014287264 | Y167: 2.650691649 | Z167: 458.0906936 | AA167: 452.7893104 | BC167: 55191200
A168: 136 | B168: =IF(A168>$A$8,"",OFFSET(InputPriceData!B$15,$A168+$A$11,0,1,1)) -> 2023-07-24 | C168: =IF(A168>$A$8,"",OFFSET(InputPriceData!G$15,CalculationsAndCharts!$A168+$A$11,IF($C$5,8,0),1,1)) -> 54023400 | D168: =IF(A168>$A$8,"",OFFSET(InputPriceData!C$15,CalculationsAndCharts!$A168+$A$11,IF($C$5,8,0),1,1)) -> 453.369995 | E168: =IF(A168>$A$8,"",OFFSET(InputPriceData!D$15,CalculationsAndCharts!$A168+$A$11,IF($C$5,8,0),1,1)) -> 455.040009 | F168: =IF(A168>$A$8,"",OFFSET(InputPriceData!E$15,CalculationsAndCharts!$A168+$A$11,IF($C$5,8,0),1,1)) -> 452.299988 | G168: =IF(A168>$A$8,"",OFFSET(InputPriceData!F$15,CalculationsAndCharts!$A168+$A$11,IF($C$5,8,0),1,1)) -> 454.200012 | H168: 455.040009 | I168: 452.179993 | J168: 2.860016 | M168: 2.758205453 | P168: 455.5009771 | Q168: 458.2591826 | R168: 452.7427717 | V168: 455.5009771 | W168: -1.300965133 | X168: 1.692510278 | Y168: 2.84489312 | Z168: 457.0449051 | AA168: 451.3551189 | BC168: 54023400
A169: 137 | B169: =IF(A169>$A$8,"",OFFSET(InputPriceData!B$15,$A169+$A$11,0,1,1)) -> 2023-07-21 | C169: =IF(A169>$A$8,"",OFFSET(InputPriceData!G$15,CalculationsAndCharts!$A169+$A$11,IF($C$5,8,0),1,1)) -> 71245400 | D169: =IF(A169>$A$8,"",OFFSET(InputPriceData!C$15,CalculationsAndCharts!$A169+$A$11,IF($C$5,8,0),1,1)) -> 453.959991 | E169: =IF(A169>$A$8,"",OFFSET(InputPriceData!D$15,CalculationsAndCharts!$A169+$A$11,IF($C$5,8,0),1,1)) -> 454.170013 | F169: =IF(A169>$A$8,"",OFFSET(InputPriceData!E$15,CalculationsAndCharts!$A169+$A$11,IF($C$5,8,0),1,1)) -> 452.170013 | G169: =IF(A169>$A$8,"",OFFSET(InputPriceData!F$15,CalculationsAndCharts!$A169+$A$11,IF($C$5,8,0),1,1)) -> 452.179993 | H169: 454.170013 | I169: 452.170013 | J169: 2 | M169: 3.112266091 | P169: 455.3354299 | Q169: 458.447696 | R169: 452.2231638 | V169: 455.3354299 | W169: -3.155436892 | X169: 9.95678198 | Y169: 3.048055539 | Z169: 455.2280485 | AA169: 449.1319375 | BC169: 71245400
A170: 138 | B170: =IF(A170>$A$8,"",OFFSET(InputPriceData!B$15,$A170+$A$11,0,1,1)) -> 2023-07-20 | C170: =IF(A170>$A$8,"",OFFSET(InputPriceData!G$15,CalculationsAndCharts!$A170+$A$11,IF($C$5,8,0),1,1)) -> 70591600 | D170: =IF(A170>$A$8,"",OFFSET(InputPriceData!C$15,CalculationsAndCharts!$A170+$A$11,IF($C$5,8,0),1,1)) -> 454.170013 | E170: =IF(A170>$A$8,"",OFFSET(InputPriceData!D$15,CalculationsAndCharts!$A170+$A$11,IF($C$5,8,0),1,1)) -> 455.100006 | F170: =IF(A170>$A$8,"",OFFSET(InputPriceData!E$15,CalculationsAndCharts!$A170+$A$11,IF($C$5,8,0),1,1)) -> 451.440002 | G170: =IF(A170>$A$8,"",OFFSET(InputPriceData!F$15,CalculationsAndCharts!$A170+$A$11,IF($C$5,8,0),1,1)) -> 452.179993 | H170: 455.200012 | I170: 451.440002 | J170: 3.76001 | M170: 3.356334737 | P170: 455.3156195 | Q170: 458.6719542 | R170: 451.9592848 | V170: 455.3156195 | W170: -3.135626495 | X170: 9.832153519 | Y170: 3.047899219 | Z170: 455.2278922 | AA170: 449.1320938 | BD170: 70591600
A171: 139 | B171: =IF(A171>$A$8,"",OFFSET(InputPriceData!B$15,$A171+$A$11,0,1,1)) -> 2023-07-19 | C171: =IF(A171>$A$8,"",OFFSET(InputPriceData!G$15,CalculationsAndCharts!$A171+$A$11,IF($C$5,8,0),1,1)) -> 65891700 | D171: =IF(A171>$A$8,"",OFFSET(InputPriceData!C$15,CalculationsAndCharts!$A171+$A$11,IF($C$5,8,0),1,1)) -> 455.01001 | E171: =IF(A171>$A$8,"",OFFSET(InputPriceData!D$15,CalculationsAndCharts!$A171+$A$11,IF($C$5,8,0),1,1)) -> 456.429993 | F171: =IF(A171>$A$8,"",OFFSET(InputPriceData!E$15,CalculationsAndCharts!$A171+$A$11,IF($C$5,8,0),1,1)) -> 454.109985 | G171: =IF(A171>$A$8,"",OFFSET(InputPriceData!F$15,CalculationsAndCharts!$A171+$A$11,IF($C$5,8,0),1,1)) -> 455.200012 | H171: 456.429993 | I171: 454.109985 | J171: 2.320008 | M171: 3.598588597 | P171: 454.1469121 | Q171: 457.7455007 | R171: 450.5483235 | V171: 454.1469121 | W171: 1.053099872 | X171: 1.10901934 | Y171: 3.243261877 | Z171: 458.4432739 | AA171: 451.9567501 | BC171: 65891700
A172: 140 | B172: =IF(A172>$A$8,"",OFFSET(InputPriceData!B$15,$A172+$A$11,0,1,1)) -> 2023-07-18 | C172: =IF(A172>$A$8,"",OFFSET(InputPriceData!G$15,CalculationsAndCharts!$A172+$A$11,IF($C$5,8,0),1,1)) -> 80744400 | D172: =IF(A172>$A$8,"",OFFSET(InputPriceData!C$15,CalculationsAndCharts!$A172+$A$11,IF($C$5,8,0),1,1)) -> 450.5 | E172: =IF(A172>$A$8,"",OFFSET(InputPriceData!D$15,CalculationsAndCharts!$A172+$A$11,IF($C$5,8,0),1,1)) -> 454.859985 | F172: =IF(A172>$A$8,"",OFFSET(InputPriceData!E$15,CalculationsAndCharts!$A172+$A$11,IF($C$5,8,0),1,1)) -> 450.049988 | G172: =IF(A172>$A$8,"",OFFSET(InputPriceData!F$15,CalculationsAndCharts!$A172+$A$11,IF($C$5,8,0),1,1)) -> 454.190002 | H172: 454.859985 | I172: 450.049988 | J172: 4.809997 | M172: 3.646234074 | P172: 451.7681198 | Q172: 455.4143539 | R172: 448.1218858 | V172: 451.7681198 | W172: 2.421882164 | X172: 5.865513218 | Y172: 3.395466262 | Z172: 457.5854683 | AA172: 450.7945357 | BC172: 80744400
A173: 141 | B173: =IF(A173>$A$8,"",OFFSET(InputPriceData!B$15,$A173+$A$11,0,1,1)) -> 2023-07-17 | C173: =IF(A173>$A$8,"",OFFSET(InputPriceData!G$15,CalculationsAndCharts!$A173+$A$11,IF($C$5,8,0),1,1)) -> 52680200 | D173: =IF(A173>$A$8,"",OFFSET(InputPriceData!C$15,CalculationsAndCharts!$A173+$A$11,IF($C$5,8,0),1,1)) -> 449.130005 | E173: =IF(A173>$A$8,"",OFFSET(InputPriceData!D$15,CalculationsAndCharts!$A173+$A$11,IF($C$5,8,0),1,1)) -> 451.929993 | F173: =IF(A173>$A$8,"",OFFSET(InputPriceData!E$15,CalculationsAndCharts!$A173+$A$11,IF($C$5,8,0),1,1)) -> 449.079987 | G173: =IF(A173>$A$8,"",OFFSET(InputPriceData!F$15,CalculationsAndCharts!$A173+$A$11,IF($C$5,8,0),1,1)) -> 450.839996 | H173: 451.929993 | I173: 449.079987 | J173: 2.850006 | M173: 3.578635732 | P173: 449.5044678 | Q173: 453.0831036 | R173: 445.9258321 | V173: 449.5044678 | W173: 1.335528156 | X173: 1.783635455 | Y173: 3.383215843 | Z173: 454.2232118 | AA173: 447.4567802 | BC173: =IF(G173>=G174,C173,NA()) -> 52680200 | BD173: =IF(G173<G174,C173,NA()) -> 
A174: 142 | B174: =IF(A174>$A$8,"",OFFSET(InputPriceData!B$15,$A174+$A$11,0,1,1)) -> 2023-07-14 | C174: =IF(A174>$A$8,"",OFFSET(InputPriceData!G$15,CalculationsAndCharts!$A174+$A$11,IF($C$5,8,0),1,1)) -> 69761800 | D174: =IF(A174>$A$8,"",OFFSET(InputPriceData!C$15,CalculationsAndCharts!$A174+$A$11,IF($C$5,8,0),1,1)) -> 450.480011 | E174: =IF(A174>$A$8,"",OFFSET(InputPriceData!D$15,CalculationsAndCharts!$A174+$A$11,IF($C$5,8,0),1,1)) -> 451.359985 | F174: =IF(A174>$A$8,"",OFFSET(InputPriceData!E$15,CalculationsAndCharts!$A174+$A$11,IF($C$5,8,0),1,1)) -> 448.48999 | G174: =IF(A174>$A$8,"",OFFSET(InputPriceData!F$15,CalculationsAndCharts!$A174+$A$11,IF($C$5,8,0),1,1)) -> 449.279999 | H174: 451.359985 | I174: 448.48999 | J174: 2.869995 | M174: 3.986943194 | P174: 447.5675132 | Q174: 451.5544563 | R174: 443.58057 | V174: 447.5675132 | W174: 1.712485845 | X174: 2.932607768 | Y174: 3.448809076 | Z174: 452.7288081 | AA174: 445.8311899 | BD174: 69761800
A175: 143 | B175: =IF(A175>$A$8,"",OFFSET(InputPriceData!B$15,$A175+$A$11,0,1,1)) -> 2023-07-13 | C175: =IF(A175>$A$8,"",OFFSET(InputPriceData!G$15,CalculationsAndCharts!$A175+$A$11,IF($C$5,8,0),1,1)) -> 72425200 | D175: =IF(A175>$A$8,"",OFFSET(InputPriceData!C$15,CalculationsAndCharts!$A175+$A$11,IF($C$5,8,0),1,1)) -> 447.899994 | E175: =IF(A175>$A$8,"",OFFSET(InputPriceData!D$15,CalculationsAndCharts!$A175+$A$11,IF($C$5,8,0),1,1)) -> 450.380005 | F175: =IF(A175>$A$8,"",OFFSET(InputPriceData!E$15,CalculationsAndCharts!$A175+$A$11,IF($C$5,8,0),1,1)) -> 447.450012 | G175: =IF(A175>$A$8,"",OFFSET(InputPriceData!F$15,CalculationsAndCharts!$A175+$A$11,IF($C$5,8,0),1,1)) -> 449.559998 | H175: 450.380005 | I175: 446.019989 | J175: 4.360016 | M175: 4.109015812 | P175: 445.1728674 | Q175: 449.2818832 | R175: 441.0638516 | V175: 445.1728674 | W175: 4.387130596 | X175: 19.24691486 | Y175: 3.429258037 | Z175: 452.989256 | AA175: 446.13074 | BC175: 72425200
A176: 144 | B176: =IF(A176>$A$8,"",OFFSET(InputPriceData!B$15,$A176+$A$11,0,1,1)) -> 2023-07-12 | C176: =IF(A176>$A$8,"",OFFSET(InputPriceData!G$15,CalculationsAndCharts!$A176+$A$11,IF($C$5,8,0),1,1)) -> 91924500 | D176: =IF(A176>$A$8,"",OFFSET(InputPriceData!C$15,CalculationsAndCharts!$A176+$A$11,IF($C$5,8,0),1,1)) -> 446.390015 | E176: =IF(A176>$A$8,"",OFFSET(InputPriceData!D$15,CalculationsAndCharts!$A176+$A$11,IF($C$5,8,0),1,1)) -> 447.480011 | F176: =IF(A176>$A$8,"",OFFSET(InputPriceData!E$15,CalculationsAndCharts!$A176+$A$11,IF($C$5,8,0),1,1)) -> 444.910004 | G176: =IF(A176>$A$8,"",OFFSET(InputPriceData!F$15,CalculationsAndCharts!$A176+$A$11,IF($C$5,8,0),1,1)) -> 446.019989 | H176: 447.480011 | I176: 442.459991 | J176: 5.02002 | M176: 3.703492158 | P176: 442.7734368 | Q176: 446.4769289 | R176: 439.0699446 | V176: 442.7734368 | W176: 3.246552208 | X176: 10.54010124 | Y176: 3.322867009 | Z176: 449.342856 | AA176: 442.697122 | BC176: 91924500
A177: 145 | B177: =IF(A177>$A$8,"",OFFSET(InputPriceData!B$15,$A177+$A$11,0,1,1)) -> 2023-07-11 | C177: =IF(A177>$A$8,"",OFFSET(InputPriceData!G$15,CalculationsAndCharts!$A177+$A$11,IF($C$5,8,0),1,1)) -> 64463800 | D177: =IF(A177>$A$8,"",OFFSET(InputPriceData!C$15,CalculationsAndCharts!$A177+$A$11,IF($C$5,8,0),1,1)) -> 440.450012 | E177: =IF(A177>$A$8,"",OFFSET(InputPriceData!D$15,CalculationsAndCharts!$A177+$A$11,IF($C$5,8,0),1,1)) -> 442.970001 | F177: =IF(A177>$A$8,"",OFFSET(InputPriceData!E$15,CalculationsAndCharts!$A177+$A$11,IF($C$5,8,0),1,1)) -> 439.440002 | G177: =IF(A177>$A$8,"",OFFSET(InputPriceData!F$15,CalculationsAndCharts!$A177+$A$11,IF($C$5,8,0),1,1)) -> 442.459991 | H177: 442.970001 | I177: 439.440002 | J177: 3.529999 | M177: 3.399253408 | P177: 441.4168721 | Q177: 444.8161256 | R177: 438.0176187 | V177: 441.4168721 | W177: 1.043118852 | X177: 1.088096939 | Y177: 3.26454509 | Z177: 445.7245361 | AA177: 439.1954459 | BC177: 64463800
A178: 146 | B178: =IF(A178>$A$8,"",OFFSET(InputPriceData!B$15,$A178+$A$11,0,1,1)) -> 2023-07-10 | C178: =IF(A178>$A$8,"",OFFSET(InputPriceData!G$15,CalculationsAndCharts!$A178+$A$11,IF($C$5,8,0),1,1)) -> 62443500 | D178: =IF(A178>$A$8,"",OFFSET(InputPriceData!C$15,CalculationsAndCharts!$A178+$A$11,IF($C$5,8,0),1,1)) -> 438.179993 | E178: =IF(A178>$A$8,"",OFFSET(InputPriceData!D$15,CalculationsAndCharts!$A178+$A$11,IF($C$5,8,0),1,1)) -> 439.839996 | F178: =IF(A178>$A$8,"",OFFSET(InputPriceData!E$15,CalculationsAndCharts!$A178+$A$11,IF($C$5,8,0),1,1)) -> 437.589996 | G178: =IF(A178>$A$8,"",OFFSET(InputPriceData!F$15,CalculationsAndCharts!$A178+$A$11,IF($C$5,8,0),1,1)) -> 439.660004 | H178: 439.839996 | I178: 437.589996 | J178: 2.25 | M178: 3.722040421 | P178: 441.2320329 | Q178: 444.9540733 | R178: 437.5099925 | V178: 441.2320329 | W178: -1.572028902 | X178: 2.471274868 | Y178: 3.259209805 | Z178: 442.9192138 | AA178: 436.4007942 | BC178: 62443500
A179: 147 | B179: =IF(A179>$A$8,"",OFFSET(InputPriceData!B$15,$A179+$A$11,0,1,1)) -> 2023-07-07 | C179: =IF(A179>$A$8,"",OFFSET(InputPriceData!G$15,CalculationsAndCharts!$A179+$A$11,IF($C$5,8,0),1,1)) -> 86076100 | D179: =IF(A179>$A$8,"",OFFSET(InputPriceData!C$15,CalculationsAndCharts!$A179+$A$11,IF($C$5,8,0),1,1)) -> 438.630005 | E179: =IF(A179>$A$8,"",OFFSET(InputPriceData!D$15,CalculationsAndCharts!$A179+$A$11,IF($C$5,8,0),1,1)) -> 442.640015 | F179: =IF(A179>$A$8,"",OFFSET(InputPriceData!E$15,CalculationsAndCharts!$A179+$A$11,IF($C$5,8,0),1,1)) -> 438.299988 | G179: =IF(A179>$A$8,"",OFFSET(InputPriceData!F$15,CalculationsAndCharts!$A179+$A$11,IF($C$5,8,0),1,1)) -> 438.549988 | H179: 442.640015 | I179: 438.299988 | J179: 4.340027 | M179: 3.92127749 | P179: 441.8955708 | Q179: 445.8168483 | R179: 437.9742933 | V179: 441.8955708 | W179: -3.345582806 | X179: 11.19292431 | Y179: 3.240686536 | Z179: 441.7906745 | AA179: 435.3093015 | BD179: 86076100
A180: 148 | B180: =IF(A180>$A$8,"",OFFSET(InputPriceData!B$15,$A180+$A$11,0,1,1)) -> 2023-07-06 | C180: =IF(A180>$A$8,"",OFFSET(InputPriceData!G$15,CalculationsAndCharts!$A180+$A$11,IF($C$5,8,0),1,1)) -> 80658300 | D180: =IF(A180>$A$8,"",OFFSET(InputPriceData!C$15,CalculationsAndCharts!$A180+$A$11,IF($C$5,8,0),1,1)) -> 439.420013 | E180: =IF(A180>$A$8,"",OFFSET(InputPriceData!D$15,CalculationsAndCharts!$A180+$A$11,IF($C$5,8,0),1,1)) -> 440.100006 | F180: =IF(A180>$A$8,"",OFFSET(InputPriceData!E$15,CalculationsAndCharts!$A180+$A$11,IF($C$5,8,0),1,1)) -> 437.059998 | G180: =IF(A180>$A$8,"",OFFSET(InputPriceData!F$15,CalculationsAndCharts!$A180+$A$11,IF($C$5,8,0),1,1)) -> 439.660004 | H180: 443.130005 | I180: 437.059998 | J180: 6.070007 | M180: 3.204228568 | P180: 442.5863927 | Q180: 445.7906213 | R180: 439.3821641 | V180: 442.5863927 | W180: -2.926388684 | X180: 8.563750732 | Y180: 3.181562812 | Z180: 442.8415668 | AA180: 436.4784412 | BD180: 80658300
A181: 149 | B181: =IF(A181>$A$8,"",OFFSET(InputPriceData!B$15,$A181+$A$11,0,1,1)) -> 2023-07-05 | C181: =IF(A181>$A$8,"",OFFSET(InputPriceData!G$15,CalculationsAndCharts!$A181+$A$11,IF($C$5,8,0),1,1)) -> 58418400 | D181: =IF(A181>$A$8,"",OFFSET(InputPriceData!C$15,CalculationsAndCharts!$A181+$A$11,IF($C$5,8,0),1,1)) -> 441.910004 | E181: =IF(A181>$A$8,"",OFFSET(InputPriceData!D$15,CalculationsAndCharts!$A181+$A$11,IF($C$5,8,0),1,1)) -> 443.890015 | F181: =IF(A181>$A$8,"",OFFSET(InputPriceData!E$15,CalculationsAndCharts!$A181+$A$11,IF($C$5,8,0),1,1)) -> 441.899994 | G181: =IF(A181>$A$8,"",OFFSET(InputPriceData!F$15,CalculationsAndCharts!$A181+$A$11,IF($C$5,8,0),1,1)) -> 443.130005 | H181: 443.890015 | I181: 441.899994 | J181: 1.990021 | M181: 2.917427482 | P181: 442.0949719 | Q181: 445.0123993 | R181: 439.1775444 | V181: 442.0949719 | W181: 1.035033142 | X181: 1.071293606 | Y181: 3.119220935 | Z181: 446.2492259 | AA181: 440.0107841 | BD181: 58418400
A182: 150 | B182: =IF(A182>$A$8,"",OFFSET(InputPriceData!B$15,$A182+$A$11,0,1,1)) -> 2023-07-03 | C182: =IF(A182>$A$8,"",OFFSET(InputPriceData!G$15,CalculationsAndCharts!$A182+$A$11,IF($C$5,8,0),1,1)) -> 32793400 | D182: =IF(A182>$A$8,"",OFFSET(InputPriceData!C$15,CalculationsAndCharts!$A182+$A$11,IF($C$5,8,0),1,1)) -> 442.920013 | E182: =IF(A182>$A$8,"",OFFSET(InputPriceData!D$15,CalculationsAndCharts!$A182+$A$11,IF($C$5,8,0),1,1)) -> 444.079987 | F182: =IF(A182>$A$8,"",OFFSET(InputPriceData!E$15,CalculationsAndCharts!$A182+$A$11,IF($C$5,8,0),1,1)) -> 442.630005 | G182: =IF(A182>$A$8,"",OFFSET(InputPriceData!F$15,CalculationsAndCharts!$A182+$A$11,IF($C$5,8,0),1,1)) -> 443.790009 | H182: 444.079987 | I182: 442.630005 | J182: 1.449982 | M182: 3.756931134 | P182: 440.2147782 | Q182: 443.9717093 | R182: 436.457847 | V182: 440.2147782 | W182: 3.575230825 | X182: 12.78227545 | Y182: 3.142531611 | Z182: 446.9325406 | AA182: 440.6474774 | BC182: 32793400
A183: 151 | B183: =IF(A183>$A$8,"",OFFSET(InputPriceData!B$15,$A183+$A$11,0,1,1)) -> 2023-06-30 | C183: =IF(A183>$A$8,"",OFFSET(InputPriceData!G$15,CalculationsAndCharts!$A183+$A$11,IF($C$5,8,0),1,1)) -> 104921500 | D183: =IF(A183>$A$8,"",OFFSET(InputPriceData!C$15,CalculationsAndCharts!$A183+$A$11,IF($C$5,8,0),1,1)) -> 441.440002 | E183: =IF(A183>$A$8,"",OFFSET(InputPriceData!D$15,CalculationsAndCharts!$A183+$A$11,IF($C$5,8,0),1,1)) -> 444.299988 | F183: =IF(A183>$A$8,"",OFFSET(InputPriceData!E$15,CalculationsAndCharts!$A183+$A$11,IF($C$5,8,0),1,1)) -> 441.109985 | G183: =IF(A183>$A$8,"",OFFSET(InputPriceData!F$15,CalculationsAndCharts!$A183+$A$11,IF($C$5,8,0),1,1)) -> 443.279999 | H183: 444.299988 | I183: 438.109985 | J183: 6.190003 | M183: 3.769879631 | P183: 437.6455479 | Q183: 441.4154276 | R183: 433.8756683 | V183: 437.6455479 | W183: 5.634451073 | X183: 31.7470389 | Y183: 3.299068338 | Z183: 446.5790673 | AA183: 439.9809307 | BC183: 104921500
A184: 152 | B184: =IF(A184>$A$8,"",OFFSET(InputPriceData!B$15,$A184+$A$11,0,1,1)) -> 2023-06-29 | C184: =IF(A184>$A$8,"",OFFSET(InputPriceData!G$15,CalculationsAndCharts!$A184+$A$11,IF($C$5,8,0),1,1)) -> 67882300 | D184: =IF(A184>$A$8,"",OFFSET(InputPriceData!C$15,CalculationsAndCharts!$A184+$A$11,IF($C$5,8,0),1,1)) -> 435.959991 | E184: =IF(A184>$A$8,"",OFFSET(InputPriceData!D$15,CalculationsAndCharts!$A184+$A$11,IF($C$5,8,0),1,1)) -> 438.279999 | F184: =IF(A184>$A$8,"",OFFSET(InputPriceData!E$15,CalculationsAndCharts!$A184+$A$11,IF($C$5,8,0),1,1)) -> 435.540009 | G184: =IF(A184>$A$8,"",OFFSET(InputPriceData!F$15,CalculationsAndCharts!$A184+$A$11,IF($C$5,8,0),1,1)) -> 438.109985 | H184: 438.279999 | I184: 435.540009 | J184: 2.73999 | M184: 3.475243879 | P184: 435.7784229 | Q184: 439.2536668 | R184: 432.303179 | V184: 435.7784229 | W184: 2.331562088 | X184: 5.436181769 | Y184: 3.089396673 | Z184: 441.1993817 | AA184: 435.0205883 | BC184: 67882300
A185: 153 | B185: =IF(A185>$A$8,"",OFFSET(InputPriceData!B$15,$A185+$A$11,0,1,1)) -> 2023-06-28 | C185: =IF(A185>$A$8,"",OFFSET(InputPriceData!G$15,CalculationsAndCharts!$A185+$A$11,IF($C$5,8,0),1,1)) -> 75636000 | D185: =IF(A185>$A$8,"",OFFSET(InputPriceData!C$15,CalculationsAndCharts!$A185+$A$11,IF($C$5,8,0),1,1)) -> 435.049988 | E185: =IF(A185>$A$8,"",OFFSET(InputPriceData!D$15,CalculationsAndCharts!$A185+$A$11,IF($C$5,8,0),1,1)) -> 437.440002 | F185: =IF(A185>$A$8,"",OFFSET(InputPriceData!E$15,CalculationsAndCharts!$A185+$A$11,IF($C$5,8,0),1,1)) -> 434.410004 | G185: =IF(A185>$A$8,"",OFFSET(InputPriceData!F$15,CalculationsAndCharts!$A185+$A$11,IF($C$5,8,0),1,1)) -> 436.390015 | H185: 437.440002 | I185: 434.410004 | J185: 3.029998 | M185: 3.924091928 | P185: 435.1872886 | Q185: 439.1113805 | R185: 431.2631967 | V185: 435.1872886 | W185: 1.202726381 | X185: 1.446550749 | Y185: 3.051245558 | Z185: 439.4412606 | AA185: 433.3387694 | BC185: 75636000
A186: 154 | B186: =IF(A186>$A$8,"",OFFSET(InputPriceData!B$15,$A186+$A$11,0,1,1)) -> 2023-06-27 | C186: =IF(A186>$A$8,"",OFFSET(InputPriceData!G$15,CalculationsAndCharts!$A186+$A$11,IF($C$5,8,0),1,1)) -> 72813700 | D186: =IF(A186>$A$8,"",OFFSET(InputPriceData!C$15,CalculationsAndCharts!$A186+$A$11,IF($C$5,8,0),1,1)) -> 432.350006 | E186: =IF(A186>$A$8,"",OFFSET(InputPriceData!D$15,CalculationsAndCharts!$A186+$A$11,IF($C$5,8,0),1,1)) -> 436.809998 | F186: =IF(A186>$A$8,"",OFFSET(InputPriceData!E$15,CalculationsAndCharts!$A186+$A$11,IF($C$5,8,0),1,1)) -> 431.880005 | G186: =IF(A186>$A$8,"",OFFSET(InputPriceData!F$15,CalculationsAndCharts!$A186+$A$11,IF($C$5,8,0),1,1)) -> 436.170013 | H186: 436.809998 | I186: 431.440002 | J186: 5.369996 | M186: 3.841506327 | P186: 435.0024212 | Q186: 438.8439275 | R186: 431.1609148 | V186: 435.0024212 | W186: 1.167591831 | X186: 1.363270684 | Y186: 3.082023192 | Z186: 439.2520362 | AA186: 433.0879898 | BC186: 72813700
A187: 155 | B187: =IF(A187>$A$8,"",OFFSET(InputPriceData!B$15,$A187+$A$11,0,1,1)) -> 2023-06-26 | C187: =IF(A187>$A$8,"",OFFSET(InputPriceData!G$15,CalculationsAndCharts!$A187+$A$11,IF($C$5,8,0),1,1)) -> 72823600 | D187: =IF(A187>$A$8,"",OFFSET(InputPriceData!C$15,CalculationsAndCharts!$A187+$A$11,IF($C$5,8,0),1,1)) -> 432.619995 | E187: =IF(A187>$A$8,"",OFFSET(InputPriceData!D$15,CalculationsAndCharts!$A187+$A$11,IF($C$5,8,0),1,1)) -> 434.609985 | F187: =IF(A187>$A$8,"",OFFSET(InputPriceData!E$15,CalculationsAndCharts!$A187+$A$11,IF($C$5,8,0),1,1)) -> 431.190002 | G187: =IF(A187>$A$8,"",OFFSET(InputPriceData!F$15,CalculationsAndCharts!$A187+$A$11,IF($C$5,8,0),1,1)) -> 431.440002 | H187: 434.609985 | I187: 431.190002 | J187: 3.419983 | M187: 3.659858698 | P187: 436.10331 | Q187: 439.7631687 | R187: 432.4434513 | V187: 436.10331 | W187: -4.663308008 | X187: 21.74644158 | Y187: 3.186821355 | Z187: 434.6268234 | AA187: 428.2531806 | BD187: 72823600
A188: 156 | B188: =IF(A188>$A$8,"",OFFSET(InputPriceData!B$15,$A188+$A$11,0,1,1)) -> 2023-06-23 | C188: =IF(A188>$A$8,"",OFFSET(InputPriceData!G$15,CalculationsAndCharts!$A188+$A$11,IF($C$5,8,0),1,1)) -> 92074500 | D188: =IF(A188>$A$8,"",OFFSET(InputPriceData!C$15,CalculationsAndCharts!$A188+$A$11,IF($C$5,8,0),1,1)) -> 432.929993 | E188: =IF(A188>$A$8,"",OFFSET(InputPriceData!D$15,CalculationsAndCharts!$A188+$A$11,IF($C$5,8,0),1,1)) -> 435.059998 | F188: =IF(A188>$A$8,"",OFFSET(InputPriceData!E$15,CalculationsAndCharts!$A188+$A$11,IF($C$5,8,0),1,1)) -> 432.470001 | G188: =IF(A188>$A$8,"",OFFSET(InputPriceData!F$15,CalculationsAndCharts!$A188+$A$11,IF($C$5,8,0),1,1)) -> 433.209991 | H188: 436.51001 | I188: 432.470001 | J188: 4.040009 | M188: 3.798141223 | P188: 438.2732927 | Q188: 442.071434 | R188: 434.4751515 | V188: 438.2732927 | W188: -5.06330173 | X188: 25.6370244 | Y188: 3.016606047 | Z188: 436.226597 | AA188: 430.193385 | BD188: 92074500
A189: 157 | B189: =IF(A189>$A$8,"",OFFSET(InputPriceData!B$15,$A189+$A$11,0,1,1)) -> 2023-06-22 | C189: =IF(A189>$A$8,"",OFFSET(InputPriceData!G$15,CalculationsAndCharts!$A189+$A$11,IF($C$5,8,0),1,1)) -> 70637200 | D189: =IF(A189>$A$8,"",OFFSET(InputPriceData!C$15,CalculationsAndCharts!$A189+$A$11,IF($C$5,8,0),1,1)) -> 433.950012 | E189: =IF(A189>$A$8,"",OFFSET(InputPriceData!D$15,CalculationsAndCharts!$A189+$A$11,IF($C$5,8,0),1,1)) -> 436.619995 | F189: =IF(A189>$A$8,"",OFFSET(InputPriceData!E$15,CalculationsAndCharts!$A189+$A$11,IF($C$5,8,0),1,1)) -> 433.600006 | G189: =IF(A189>$A$8,"",OFFSET(InputPriceData!F$15,CalculationsAndCharts!$A189+$A$11,IF($C$5,8,0),1,1)) -> 436.51001 | H189: 436.619995 | I189: 433.600006 | J189: 3.019989 | M189: 4.104898609 | P189: 439.6624255 | Q189: 443.7673241 | R189: 435.5575269 | V189: 439.6624255 | W189: -3.152415522 | X189: 9.937723624 | Y189: 3.064425611 | Z189: 439.5744356 | AA189: 433.4455844 | BC189: 70637200
A190: 158 | B190: =IF(A190>$A$8,"",OFFSET(InputPriceData!B$15,$A190+$A$11,0,1,1)) -> 2023-06-21 | C190: =IF(A190>$A$8,"",OFFSET(InputPriceData!G$15,CalculationsAndCharts!$A190+$A$11,IF($C$5,8,0),1,1)) -> 76982300 | D190: =IF(A190>$A$8,"",OFFSET(InputPriceData!C$15,CalculationsAndCharts!$A190+$A$11,IF($C$5,8,0),1,1)) -> 436.160004 | E190: =IF(A190>$A$8,"",OFFSET(InputPriceData!D$15,CalculationsAndCharts!$A190+$A$11,IF($C$5,8,0),1,1)) -> 436.98999 | F190: =IF(A190>$A$8,"",OFFSET(InputPriceData!E$15,CalculationsAndCharts!$A190+$A$11,IF($C$5,8,0),1,1)) -> 434.329987 | G190: =IF(A190>$A$8,"",OFFSET(InputPriceData!F$15,CalculationsAndCharts!$A190+$A$11,IF($C$5,8,0),1,1)) -> 434.940002 | H190: 437.179993 | I190: 434.329987 | J190: 2.850006 | M190: 4.808501886 | P190: 440.8062881 | Q190: 445.61479 | R190: 435.9977862 | V190: 440.8062881 | W190: -5.866286097 | X190: 34.41331257 | Y190: 3.128926842 | Z190: 438.0689288 | AA190: 431.8110752 | BD190: 76982300
A191: 159 | B191: =IF(A191>$A$8,"",OFFSET(InputPriceData!B$15,$A191+$A$11,0,1,1)) -> 2023-06-20 | C191: =IF(A191>$A$8,"",OFFSET(InputPriceData!G$15,CalculationsAndCharts!$A191+$A$11,IF($C$5,8,0),1,1)) -> 76160400 | D191: =IF(A191>$A$8,"",OFFSET(InputPriceData!C$15,CalculationsAndCharts!$A191+$A$11,IF($C$5,8,0),1,1)) -> 437.450012 | E191: =IF(A191>$A$8,"",OFFSET(InputPriceData!D$15,CalculationsAndCharts!$A191+$A$11,IF($C$5,8,0),1,1)) -> 438.369995 | F191: =IF(A191>$A$8,"",OFFSET(InputPriceData!E$15,CalculationsAndCharts!$A191+$A$11,IF($C$5,8,0),1,1)) -> 435.029999 | G191: =IF(A191>$A$8,"",OFFSET(InputPriceData!F$15,CalculationsAndCharts!$A191+$A$11,IF($C$5,8,0),1,1)) -> 437.179993 | H191: 439.459991 | I191: 435.029999 | J191: 4.429992 | M191: 5.323926138 | P191: 441.7971231 | Q191: 447.1210492 | R191: 436.4731969 | V191: 441.7971231 | W191: -4.61713006 | X191: 21.31788999 | Y191: 2.843383811 | Z191: 440.0233768 | AA191: 434.3366092 | BD191: 76160400
A192: 160 | B192: =IF(A192>$A$8,"",OFFSET(InputPriceData!B$15,$A192+$A$11,0,1,1)) -> 2023-06-16 | C192: =IF(A192>$A$8,"",OFFSET(InputPriceData!G$15,CalculationsAndCharts!$A192+$A$11,IF($C$5,8,0),1,1)) -> 114121300 | D192: =IF(A192>$A$8,"",OFFSET(InputPriceData!C$15,CalculationsAndCharts!$A192+$A$11,IF($C$5,8,0),1,1)) -> 443.019989 | E192: =IF(A192>$A$8,"",OFFSET(InputPriceData!D$15,CalculationsAndCharts!$A192+$A$11,IF($C$5,8,0),1,1)) -> 443.609985 | F192: =IF(A192>$A$8,"",OFFSET(InputPriceData!E$15,CalculationsAndCharts!$A192+$A$11,IF($C$5,8,0),1,1)) -> 438.970001 | G192: =IF(A192>$A$8,"",OFFSET(InputPriceData!F$15,CalculationsAndCharts!$A192+$A$11,IF($C$5,8,0),1,1)) -> 439.459991 | H192: 443.609985 | I192: 438.970001 | J192: 4.639984 | M192: 5.47473327 | P192: 441.5105225 | Q192: 446.9852557 | R192: 436.0357892 | V192: 441.5105225 | W192: -2.050531467 | X192: 4.204679295 | Y192: 2.682066419 | Z192: 442.1420574 | AA192: 436.7779246 | BD192: 114121300
A193: 161 | B193: =IF(A193>$A$8,"",OFFSET(InputPriceData!B$15,$A193+$A$11,0,1,1)) -> 2023-06-15 | C193: =IF(A193>$A$8,"",OFFSET(InputPriceData!G$15,CalculationsAndCharts!$A193+$A$11,IF($C$5,8,0),1,1)) -> 110303100 | D193: =IF(A193>$A$8,"",OFFSET(InputPriceData!C$15,CalculationsAndCharts!$A193+$A$11,IF($C$5,8,0),1,1)) -> 436.329987 | E193: =IF(A193>$A$8,"",OFFSET(InputPriceData!D$15,CalculationsAndCharts!$A193+$A$11,IF($C$5,8,0),1,1)) -> 443.899994 | F193: =IF(A193>$A$8,"",OFFSET(InputPriceData!E$15,CalculationsAndCharts!$A193+$A$11,IF($C$5,8,0),1,1)) -> 436.230011 | G193: =IF(A193>$A$8,"",OFFSET(InputPriceData!F$15,CalculationsAndCharts!$A193+$A$11,IF($C$5,8,0),1,1)) -> 442.600006 | H193: 443.899994 | I193: 436.230011 | J193: 7.669983 | M193: 4.78787471 | P193: 439.3218468 | Q193: 444.1097215 | R193: 434.5339721 | V193: 439.3218468 | W193: 3.278159168 | X193: 10.74632753 | Y193: 2.840825041 | Z193: 445.440831 | AA193: 439.759181 | BC193: 110303100
A194: 162 | B194: =IF(A194>$A$8,"",OFFSET(InputPriceData!B$15,$A194+$A$11,0,1,1)) -> 2023-06-14 | C194: =IF(A194>$A$8,"",OFFSET(InputPriceData!G$15,CalculationsAndCharts!$A194+$A$11,IF($C$5,8,0),1,1)) -> 100612100 | D194: =IF(A194>$A$8,"",OFFSET(InputPriceData!C$15,CalculationsAndCharts!$A194+$A$11,IF($C$5,8,0),1,1)) -> 437.01001 | E194: =IF(A194>$A$8,"",OFFSET(InputPriceData!D$15,CalculationsAndCharts!$A194+$A$11,IF($C$5,8,0),1,1)) -> 439.059998 | F194: =IF(A194>$A$8,"",OFFSET(InputPriceData!E$15,CalculationsAndCharts!$A194+$A$11,IF($C$5,8,0),1,1)) -> 433.589996 | G194: =IF(A194>$A$8,"",OFFSET(InputPriceData!F$15,CalculationsAndCharts!$A194+$A$11,IF($C$5,8,0),1,1)) -> 437.179993 | H194: 439.059998 | I194: 433.589996 | J194: 5.470002 | M194: 3.678771492 | P194: 436.6869002 | Q194: 440.3656717 | R194: 433.0081287 | V194: 436.6869002 | W194: 0.4930928211 | X194: 0.2431405302 | Y194: 2.809677593 | Z194: 439.9896706 | AA194: 434.3703154 | BC194: 100612100
A195: 163 | B195: =IF(A195>$A$8,"",OFFSET(InputPriceData!B$15,$A195+$A$11,0,1,1)) -> 2023-06-13 | C195: =IF(A195>$A$8,"",OFFSET(InputPriceData!G$15,CalculationsAndCharts!$A195+$A$11,IF($C$5,8,0),1,1)) -> 95899700 | D195: =IF(A195>$A$8,"",OFFSET(InputPriceData!C$15,CalculationsAndCharts!$A195+$A$11,IF($C$5,8,0),1,1)) -> 435.320007 | E195: =IF(A195>$A$8,"",OFFSET(InputPriceData!D$15,CalculationsAndCharts!$A195+$A$11,IF($C$5,8,0),1,1)) -> 437.329987 | F195: =IF(A195>$A$8,"",OFFSET(InputPriceData!E$15,CalculationsAndCharts!$A195+$A$11,IF($C$5,8,0),1,1)) -> 434.630005 | G195: =IF(A195>$A$8,"",OFFSET(InputPriceData!F$15,CalculationsAndCharts!$A195+$A$11,IF($C$5,8,0),1,1)) -> 436.660004 | H195: 437.329987 | I195: 433.799988 | J195: 3.529999 | M195: 3.335767509 | P195: 434.4510213 | Q195: 437.7867889 | R195: 431.1152538 | V195: 434.4510213 | W195: 2.208982652 | X195: 4.879604358 | Y195: 2.841024235 | Z195: 439.5010282 | AA195: 433.8189798 | BC195: 95899700
A196: 164 | B196: =IF(A196>$A$8,"",OFFSET(InputPriceData!B$15,$A196+$A$11,0,1,1)) -> 2023-06-12 | C196: =IF(A196>$A$8,"",OFFSET(InputPriceData!G$15,CalculationsAndCharts!$A196+$A$11,IF($C$5,8,0),1,1)) -> 76104300 | D196: =IF(A196>$A$8,"",OFFSET(InputPriceData!C$15,CalculationsAndCharts!$A196+$A$11,IF($C$5,8,0),1,1)) -> 430.920013 | E196: =IF(A196>$A$8,"",OFFSET(InputPriceData!D$15,CalculationsAndCharts!$A196+$A$11,IF($C$5,8,0),1,1)) -> 433.880005 | F196: =IF(A196>$A$8,"",OFFSET(InputPriceData!E$15,CalculationsAndCharts!$A196+$A$11,IF($C$5,8,0),1,1)) -> 430.170013 | G196: =IF(A196>$A$8,"",OFFSET(InputPriceData!F$15,CalculationsAndCharts!$A196+$A$11,IF($C$5,8,0),1,1)) -> 433.799988 | H196: 433.880005 | I196: 429.899994 | J196: 3.980011 | M196: 3.315133909 | P196: 432.1099315 | Q196: 435.4250654 | R196: 428.7947976 | V196: 432.1099315 | W196: 1.690056493 | X196: 2.856290949 | Y196: 2.80257299 | Z196: 436.602561 | AA196: 430.997415 | BC196: 76104300
A197: 165 | B197: =IF(A197>$A$8,"",OFFSET(InputPriceData!B$15,$A197+$A$11,0,1,1)) -> 2023-06-09 | C197: =IF(A197>$A$8,"",OFFSET(InputPriceData!G$15,CalculationsAndCharts!$A197+$A$11,IF($C$5,8,0),1,1)) -> 85742800 | D197: =IF(A197>$A$8,"",OFFSET(InputPriceData!C$15,CalculationsAndCharts!$A197+$A$11,IF($C$5,8,0),1,1)) -> 429.959991 | E197: =IF(A197>$A$8,"",OFFSET(InputPriceData!D$15,CalculationsAndCharts!$A197+$A$11,IF($C$5,8,0),1,1)) -> 431.98999 | F197: =IF(A197>$A$8,"",OFFSET(InputPriceData!E$15,CalculationsAndCharts!$A197+$A$11,IF($C$5,8,0),1,1)) -> 428.869995 | G197: =IF(A197>$A$8,"",OFFSET(InputPriceData!F$15,CalculationsAndCharts!$A197+$A$11,IF($C$5,8,0),1,1)) -> 429.899994 | H197: 431.98999 | I197: 428.869995 | J197: 3.119995 | M197: 3.439178981 | P197: 430.5260732 | Q197: 433.9652522 | R197: 427.0868942 | V197: 430.5260732 | W197: -0.626079172 | X197: 0.3919751296 | Y197: 2.778394813 | Z197: 432.6783888 | AA197: 427.1215992 | BC197: 85742800
A198: 166 | B198: =IF(A198>$A$8,"",OFFSET(InputPriceData!B$15,$A198+$A$11,0,1,1)) -> 2023-06-08 | C198: =IF(A198>$A$8,"",OFFSET(InputPriceData!G$15,CalculationsAndCharts!$A198+$A$11,IF($C$5,8,0),1,1)) -> 61952800 | D198: =IF(A198>$A$8,"",OFFSET(InputPriceData!C$15,CalculationsAndCharts!$A198+$A$11,IF($C$5,8,0),1,1)) -> 426.619995 | E198: =IF(A198>$A$8,"",OFFSET(InputPriceData!D$15,CalculationsAndCharts!$A198+$A$11,IF($C$5,8,0),1,1)) -> 429.600006 | F198: =IF(A198>$A$8,"",OFFSET(InputPriceData!E$15,CalculationsAndCharts!$A198+$A$11,IF($C$5,8,0),1,1)) -> 425.820007 | G198: =IF(A198>$A$8,"",OFFSET(InputPriceData!F$15,CalculationsAndCharts!$A198+$A$11,IF($C$5,8,0),1,1)) -> 429.130005 | H198: 429.600006 | I198: 425.820007 | J198: 3.779999 | M198: 3.696023692 | P198: 429.3815768 | Q198: 433.0776005 | R198: 425.6855531 | V198: 429.3815768 | W198: -0.2515718348 | X198: 0.06328838807 | Y198: 2.77587954 | Z198: 431.9058845 | AA198: 426.3541255 | BC198: 61952800
A199: 167 | B199: =IF(A199>$A$8,"",OFFSET(InputPriceData!B$15,$A199+$A$11,0,1,1)) -> 2023-06-07 | C199: =IF(A199>$A$8,"",OFFSET(InputPriceData!G$15,CalculationsAndCharts!$A199+$A$11,IF($C$5,8,0),1,1)) -> 85373300 | D199: =IF(A199>$A$8,"",OFFSET(InputPriceData!C$15,CalculationsAndCharts!$A199+$A$11,IF($C$5,8,0),1,1)) -> 428.440002 | E199: =IF(A199>$A$8,"",OFFSET(InputPriceData!D$15,CalculationsAndCharts!$A199+$A$11,IF($C$5,8,0),1,1)) -> 429.619995 | F199: =IF(A199>$A$8,"",OFFSET(InputPriceData!E$15,CalculationsAndCharts!$A199+$A$11,IF($C$5,8,0),1,1)) -> 426.109985 | G199: =IF(A199>$A$8,"",OFFSET(InputPriceData!F$15,CalculationsAndCharts!$A199+$A$11,IF($C$5,8,0),1,1)) -> 426.549988 | H199: 429.619995 | I199: 426.109985 | J199: 3.51001 | M199: 3.969153453 | P199: 428.4470326 | Q199: 432.4161861 | R199: 424.4778792 | V199: 428.4470326 | W199: -1.897044635 | X199: 3.598778348 | Y199: 2.800051331 | Z199: 429.3500393 | AA199: 423.7499367 | BD199: 85373300
A200: 168 | B200: =IF(A200>$A$8,"",OFFSET(InputPriceData!B$15,$A200+$A$11,0,1,1)) -> 2023-06-06 | C200: =IF(A200>$A$8,"",OFFSET(InputPriceData!G$15,CalculationsAndCharts!$A200+$A$11,IF($C$5,8,0),1,1)) -> 64022200 | D200: =IF(A200>$A$8,"",OFFSET(InputPriceData!C$15,CalculationsAndCharts!$A200+$A$11,IF($C$5,8,0),1,1)) -> 426.670013 | E200: =IF(A200>$A$8,"",OFFSET(InputPriceData!D$15,CalculationsAndCharts!$A200+$A$11,IF($C$5,8,0),1,1)) -> 428.579987 | F200: =IF(A200>$A$8,"",OFFSET(InputPriceData!E$15,CalculationsAndCharts!$A200+$A$11,IF($C$5,8,0),1,1)) -> 425.98999 | G200: =IF(A200>$A$8,"",OFFSET(InputPriceData!F$15,CalculationsAndCharts!$A200+$A$11,IF($C$5,8,0),1,1)) -> 428.029999 | H200: 428.579987 | I200: 425.98999 | J200: 2.589997 | M200: 4.651215801 | P200: 427.1887518 | Q200: 431.8399676 | R200: 422.537536 | V200: 427.1887518 | W200: 0.8412472376 | X200: 0.7076969147 | Y200: 2.768195588 | Z200: 430.7981946 | AA200: 425.2618034 | BC200: 64022200
A201: 169 | B201: =IF(A201>$A$8,"",OFFSET(InputPriceData!B$15,$A201+$A$11,0,1,1)) -> 2023-06-05 | C201: =IF(A201>$A$8,"",OFFSET(InputPriceData!G$15,CalculationsAndCharts!$A201+$A$11,IF($C$5,8,0),1,1)) -> 65460200 | D201: =IF(A201>$A$8,"",OFFSET(InputPriceData!C$15,CalculationsAndCharts!$A201+$A$11,IF($C$5,8,0),1,1)) -> 428.279999 | E201: =IF(A201>$A$8,"",OFFSET(InputPriceData!D$15,CalculationsAndCharts!$A201+$A$11,IF($C$5,8,0),1,1)) -> 429.619995 | F201: =IF(A201>$A$8,"",OFFSET(InputPriceData!E$15,CalculationsAndCharts!$A201+$A$11,IF($C$5,8,0),1,1)) -> 426.369995 | G201: =IF(A201>$A$8,"",OFFSET(InputPriceData!F$15,CalculationsAndCharts!$A201+$A$11,IF($C$5,8,0),1,1)) -> 427.100006 | H201: 429.619995 | I201: 426.369995 | J201: 3.25 | M201: 5.582158986 | P201: 425.1023555 | Q201: 430.6845145 | R201: 419.5201966 | V201: 425.1023555 | W201: 1.997650451 | X201: 3.990607323 | Y201: 2.823216003 | Z201: 429.923222 | AA201: 424.27679 | BD201: 65460200
A202: 170 | B202: =IF(A202>$A$8,"",OFFSET(InputPriceData!B$15,$A202+$A$11,0,1,1)) -> 2023-06-02 | C202: =IF(A202>$A$8,"",OFFSET(InputPriceData!G$15,CalculationsAndCharts!$A202+$A$11,IF($C$5,8,0),1,1)) -> 91366700 | D202: =IF(A202>$A$8,"",OFFSET(InputPriceData!C$15,CalculationsAndCharts!$A202+$A$11,IF($C$5,8,0),1,1)) -> 424.5 | E202: =IF(A202>$A$8,"",OFFSET(InputPriceData!D$15,CalculationsAndCharts!$A202+$A$11,IF($C$5,8,0),1,1)) -> 428.73999 | F202: =IF(A202>$A$8,"",OFFSET(InputPriceData!E$15,CalculationsAndCharts!$A202+$A$11,IF($C$5,8,0),1,1)) -> 423.950012 | G202: =IF(A202>$A$8,"",OFFSET(InputPriceData!F$15,CalculationsAndCharts!$A202+$A$11,IF($C$5,8,0),1,1)) -> 427.920013 | H202: 428.73999 | I202: 421.820007 | J202: 6.919983 | M202: 5.628304888 | P202: 422.1798723 | Q202: 427.8081772 | R202: 416.5515674 | V202: 422.1798723 | W202: 5.740140678 | X202: 32.949215 | Y202: 2.903438572 | Z202: 430.8234516 | AA202: 425.0165744 | BC202: 91366700
A203: 171 | B203: =IF(A203>$A$8,"",OFFSET(InputPriceData!B$15,$A203+$A$11,0,1,1)) -> 2023-06-01 | C203: =IF(A203>$A$8,"",OFFSET(InputPriceData!G$15,CalculationsAndCharts!$A203+$A$11,IF($C$5,8,0),1,1)) -> 88865000 | D203: =IF(A203>$A$8,"",OFFSET(InputPriceData!C$15,CalculationsAndCharts!$A203+$A$11,IF($C$5,8,0),1,1)) -> 418.089996 | E203: =IF(A203>$A$8,"",OFFSET(InputPriceData!D$15,CalculationsAndCharts!$A203+$A$11,IF($C$5,8,0),1,1)) -> 422.920013 | F203: =IF(A203>$A$8,"",OFFSET(InputPriceData!E$15,CalculationsAndCharts!$A203+$A$11,IF($C$5,8,0),1,1)) -> 416.790009 | G203: =IF(A203>$A$8,"",OFFSET(InputPriceData!F$15,CalculationsAndCharts!$A203+$A$11,IF($C$5,8,0),1,1)) -> 421.820007 | H203: 422.920013 | I203: 416.790009 | J203: 6.130004 | M203: 4.916671235 | P203: 419.5934768 | Q203: 424.510148 | R203: 414.6768055 | V203: 419.5934768 | W203: 2.226530249 | X203: 4.957436949 | Y203: 2.78950237 | Z203: 424.6095094 | AA203: 419.0305046 | BC203: 88865000
A204: 172 | B204: =IF(A204>$A$8,"",OFFSET(InputPriceData!B$15,$A204+$A$11,0,1,1)) -> 2023-05-31 | C204: =IF(A204>$A$8,"",OFFSET(InputPriceData!G$15,CalculationsAndCharts!$A204+$A$11,IF($C$5,8,0),1,1)) -> 110811800 | D204: =IF(A204>$A$8,"",OFFSET(InputPriceData!C$15,CalculationsAndCharts!$A204+$A$11,IF($C$5,8,0),1,1)) -> 418.279999 | E204: =IF(A204>$A$8,"",OFFSET(InputPriceData!D$15,CalculationsAndCharts!$A204+$A$11,IF($C$5,8,0),1,1)) -> 419.220001 | F204: =IF(A204>$A$8,"",OFFSET(InputPriceData!E$15,CalculationsAndCharts!$A204+$A$11,IF($C$5,8,0),1,1)) -> 416.220001 | G204: =IF(A204>$A$8,"",OFFSET(InputPriceData!F$15,CalculationsAndCharts!$A204+$A$11,IF($C$5,8,0),1,1)) -> 417.850006 | H204: 420.179993 | I204: 416.220001 | J204: 3.959992 | M204: 4.741745922 | P204: 418.7164555 | Q204: 423.4582015 | R204: 413.9747096 | V204: 418.7164555 | W204: -0.8664495379 | X204: 0.7507348017 | Y204: 2.858644653 | Z204: 420.7086507 | AA204: 414.9913613 | BD204: 110811800
... 1078 more rows

Sheet Follow
A1: Stocks and Indexes I wish to follow
A3: To ease following a stock, enter a Yahoo Finance acceptable symbol in column "A" anywhere below cell "A9".
A4: Thereafter you may doubleclick the cell containing a symbol of interest to initiate data retrieval and charting for that symbol.
A6: =COUNTA(A10:A108) -> 97
A7: Symbol
A8: To | B8: Description | C8: Last Trade as of most recent check
A9: Follow | C9: Date | D9: Time | E9: Open | F9: High | G9: Low | H9: Close | I9: Volume | J9: Change | K9: Retrieved @
A10: A | B10: Agilent Technologies, Inc. (A) -NYSE (Daily) | C10: 2022-10-07 | D10: 16:03:00 | E10: 130.449997 | F10: 130.929993 | G10: 126.959999 | H10: 127.440002 | I10: 1154700 | J10: -4.739991 | K10: 2022-10-08T20:06:52.050
A11: AA | B11: Alcoa Corporation (AA) -NYSE (Daily) | C11: 2023-06-16 | D11: 16:00:00 | E11: 35.970001 | F11: 36.040001 | G11: 34.790001 | H11: 35.619999 | I11: 5811700 | J11: -0.350002 | K11: 2023-06-17T11:43:27
A12: AAL | B12: American Airlines Group Inc. (AAL) -NasdaqGS (Daily) | C12: 2023-06-16 | D12: 16:00:00 | E12: 16.67 | F12: 16.719999 | G12: 16.43 | H12: 16.48 | I12: 22635600 | J12: -0.17 | K12: 2023-06-17T10:36:27.890
A13: AAPL | B13: Apple Inc. (AAPL) -NasdaqGS (Daily) | C13: 2022-10-07 | D13: 16:00:00 | E13: 142.539993 | F13: 143.100006 | G13: 139.449997 | H13: 140.089996 | I13: 85859100 | J13: -5.339997 | K13: 2022-10-08T20:07:45.780
A14: ADM | B14: Archer-Daniels-Midland Company (ADM) -NYSE (Daily) | C14: 2023-06-16 | D14: 16:00:00 | E14: 74.900002 | F14: 76 | G14: 74.470001 | H14: 75.480003 | I14: 5529600 | J14: 0.920005 | K14: 2023-06-17T11:43:58.380
A15: ADBE | B15: Adobe Inc. (ADBE) -NasdaqGS (Daily) | C15: 2023-06-16 | D15: 16:00:00 | E15: 518.22998 | F15: 518.73999 | G15: 494.619995 | H15: 495.179993 | I15: 13335800 | J15: 4.269989 | K15: 2023-06-17T11:42:39.820 | L15: [X]
A16: ALGN | B16: Align Technology, Inc. (ALGN) -NasdaqGS (Daily) | C16: 2023-06-16 | D16: 16:00:00 | E16: 334.950012 | F16: 335.869995 | G16: 326.519989 | H16: 330.290009 | I16: 1258300 | J16: -2.899993 | K16: 2023-06-17T10:47:06.620
A17: AMC | B17: AMC Entertainment Holdings, Inc. (AMC) -NYSE (Daily) | C17: 2023-06-16 | D17: 16:00:00 | E17: 4.82 | F17: 4.83 | G17: 4.67 | H17: 4.7 | I17: 18483600 | J17: -0.06 | K17: 2023-06-17T10:46:36.020
A18: AMD | B18: Advanced Micro Devices, Inc. (AMD) -NasdaqGS (Daily) | C18: 2023-06-16 | D18: 16:00:00 | E18: 125.82 | F18: 125.849998 | G18: 119.900002 | H18: 120.080002 | I18: 81846900 | J18: -4.159996 | K18: 2023-06-17T10:42:05.850
A19: AR | B19: Antero Resources Corporation (AR) -NYSE (Daily) | C19: 2024-02-23 | D19: 16:00:00 | E19: 25.23 | F19: 25.48 | G19: 24.629999 | H19: 25.209999 | I19: 5581800 | J19: -0.480002 | K19: 2024-02-25T08:28:54.590 | L19: [X]
A20: BA | B20: The Boeing Company (BA) -NYSE (Daily) | C20: 2023-06-16 | D20: 16:00:00 | E20: 220.720001 | F20: 223.869995 | G20: 218.979996 | H20: 219.990005 | I20: 7799500 | J20: 0.580001 | K20: 2023-06-17T10:43:22.080
A21: BSX | B21: Boston Scientific Corporation (BSX) -NYSE (Daily) | C21: 2023-06-16 | D21: 16:00:00 | E21: 54.509998 | F21: 54.689999 | G21: 54.049999 | H21: 54.32 | I21: 13022800 | J21: 0.34 | K21: 2023-06-17T10:45:23.450
A22: CASY | B22: Casey's General Stores, Inc. (CASY) -NasdaqGS (Daily) | C22: 2023-06-16 | D22: 16:00:00 | E22: 223.339996 | F22: 223.449997 | G22: 219.070007 | H22: 219.619995 | I22: 388500 | J22: -2.960007 | K22: 2023-06-17T10:46:01.080
A23: CAT | B23: Caterpillar Inc. (CAT) -NYSE (Daily) | C23: 2023-09-15 | D23: 11:10:00 | E23: 281.869995 | F23: 281.869995 | G23: 277.769989 | H23: 278.117493 | I23: 1524594 | J23: -4.442505 | K23: 2023-09-15T11:10:38.830
A24: COST | B24: Costco Wholesale Corporation (COST) -NasdaqGS (Daily) | C24: 2023-03-06 | D24: 16:00:00 | E24: 476.519989 | F24: 488.817413 | G24: 475.609985 | H24: 483.079987 | I24: 3005250 | J24: 7.819977 | K24: 2023-03-06T21:04:51.590
A25: CSCO | B25: Cisco Systems, Inc. (CSCO) -NasdaqGS (Daily) | C25: 2023-06-16 | D25: 16:00:00 | E25: 52.200001 | F25: 52.41 | G25: 51.93 | H25: 52.07 | I25: 37133300 | J25: 0.14 | K25: 2023-06-17T10:48:11.650
A26: CVS | B26: CVS Health Corporation (CVS) -NYSE (Daily) | C26: 2023-06-16 | D26: 16:00:00 | E26: 69.290001 | F26: 69.589996 | G26: 67.489998 | H26: 67.720001 | I26: 18202800 | J26: -1.779999 | K26: 2023-06-17T11:41:13.330
A27: DELL | B27: Dell Technologies Inc. (DELL) -NYSE (Daily) | C27: 2023-06-16 | D27: 16:00:00 | E27: 50.200001 | F27: 50.299999 | G27: 49.529999 | H27: 49.669998 | I27: 9352100 | J27: -0.530003 | K27: 2023-06-17T10:48:49.940
A28: DG | B28: Dollar General Corporation (DG) -NYSE (Daily) | C28: 2023-06-16 | D28: 16:03:00 | E28: 163.210007 | F28: 164.649994 | G28: 161.759995 | H28: 164.320007 | I28: 4781100 | J28: 0.640014 | K28: 2023-06-17T10:49:14.920
A29: DIS | B29: The Walt Disney Company (DIS) -NYSE (Daily) | C29: 2023-06-16 | D29: 16:03:00 | E29: 92.879997 | F29: 92.970001 | G29: 90.860001 | H29: 91.32 | I29: 22665000 | J29: -1.620002 | K29: 2023-06-17T10:49:55.860
A30: DLTR | B30: Dollar Tree, Inc. (DLTR) -NasdaqGS (Daily) | C30: 2023-06-16 | D30: 16:00:00 | E30: 139.070007 | F30: 139.070007 | G30: 136.089996 | H30: 136.220001 | I30: 2592600 | J30: -2.220001 | K30: 2023-06-17T10:50:23.460
A31: EPD | B31: Enterprise Products Partners L.P. (EPD) -NYSE (Daily) | C31: 2023-06-16 | D31: 16:00:00 | E31: 26.389999 | F31: 26.48 | G31: 26.23 | H31: 26.389999 | I31: 3749200 | J31: 0.069999 | K31: 2023-06-17T10:51:07.130
A32: F | B32: Ford Motor Company (F) -NYSE (Daily) | C32: 2023-06-16 | D32: 16:00:00 | E32: 14.52 | F32: 14.61 | G32: 14.32 | H32: 14.42 | I32: 75366700 | J32: -0.03 | K32: 2023-06-17T11:35:12.500 | L32: [X]
A33: FAS | B33: Direxion Daily Financial Bull 3X Shares (FAS) -NYSEArca (Daily) | C33: 2022-10-07 | D33: 16:00:00 | E33: 59.529999 | F33: 59.849998 | G33: 55.689999 | H33: 56.790001 | I33: 1488400 | J33: -4.290001 | K33: 2022-10-08T20:13:13.080
A34: GSK | B34: GSK plc (GSK) -NYSE (Daily) | C34: 2022-10-07 | D34: 16:00:00 | E34: 30.190001 | F34: 30.42 | G34: 30.040001 | H34: 30.110001 | I34: 5486300 | J34: 0.110001 | K34: 2022-10-08T20:13:33.450
A35: GDX | B35: VanEck Gold Miners ETF (GDX) -NYSEArca (Daily) | C35: 2023-06-16 | D35: 16:00:00 | E35: 31.200001 | F35: 31.74 | G35: 30.9 | H35: 31.389999 | I35: 19283100 | J35: 0.389999 | K35: 2023-06-17T10:52:54.260
A36: GILD | B36: Gilead Sciences, Inc. (GILD) -NasdaqGS (Daily) | C36: 2022-10-07 | D36: 16:00:00 | E36: 64.639999 | F36: 65.099998 | G36: 63.959999 | H36: 64.290001 | I36: 6722600 | J36: -0.659996 | K36: 2022-10-08T20:14:12.060
A37: GOOG | B37: Alphabet Inc. (GOOG) -NasdaqGS (Daily) | C37: 2023-06-05 | D37: 14:47:00 | E37: 124.610001 | F37: 127.987701 | G37: 124.389999 | H37: 126.32 | I37: 17012908 | J37: 1.089997 | K37: 2023-06-05T14:47:20.460
A38: HD | B38: The Home Depot, Inc. (HD) -NYSE (Daily) | C38: 2023-06-16 | D38: 16:00:00 | E38: 304.339996 | F38: 305.980011 | G38: 300.140015 | H38: 300.380005 | I38: 10808400 | J38: -1.639984 | K38: 2023-06-17T11:36:54.610
A39: HSY | B39: The Hershey Company (HSY) -NYSE (Daily) | C39: 2023-06-16 | D39: 16:00:00 | E39: 262 | F39: 263.290009 | G39: 260.269989 | H39: 260.720001 | I39: 1577100 | J39: -0.139984 | K39: 2023-06-17T10:54:48.190
A40: HTLD | B40: Heartland Express, Inc. (HTLD) -NasdaqGS (Daily) | C40: 2023-06-16 | D40: 16:00:00 | E40: 16.440001 | F40: 16.440001 | G40: 16.139999 | H40: 16.290001 | I40: 738100 | J40: -0.039999 | K40: 2023-06-17T11:04:51.680
A41: IBM | B41: International Business Machines Corporation (IBM) -NYSE (Daily) | C41: 2023-06-16 | D41: 16:00:00 | E41: 139.229996 | F41: 139.470001 | G41: 137.470001 | H41: 137.479996 | I41: 7473100 | J41: -0.919998 | K41: 2023-06-17T11:05:53.630 | L41: [X]
A42: ILMN | B42: Illumina, Inc. (ILMN) -NasdaqGS (Daily) | C42: 2023-06-16 | D42: 16:00:00 | E42: 212.100006 | F42: 212.490005 | G42: 205 | H42: 205.869995 | I42: 2443300 | J42: -4.070007 | K42: 2023-06-17T10:19:57.970
A43: INTC | B43: Intel Corporation (INTC) -NasdaqGS (Daily) | C43: 2023-06-16 | D43: 16:00:00 | E43: 36.360001 | F43: 36.799999 | G43: 35.599998 | H43: 36.369999 | I43: 110188500 | J43: 0.549999 | K43: 2023-06-17T11:35:58.390 | L43: [X]
A44: JNJ | B44: Johnson & Johnson (JNJ) -NYSE (Daily) | C44: 2022-10-07 | D44: 16:00:00 | E44: 161.770004 | F44: 162.220001 | G44: 159.169998 | H44: 160.199997 | I44: 6363000 | J44: -1.710007 | K44: 2022-10-08T20:16:52.840
A45: KO | B45: The Coca-Cola Company (KO) -NYSE (Daily) | C45: 2023-06-16 | D45: 16:00:00 | E45: 61.599998 | F45: 62.169998 | G45: 61.48 | H45: 61.669998 | I45: 26735800 | J45: 0.439998 | K45: 2023-06-17T11:20:04.690
A46: LOW | B46: Lowe's Companies, Inc. (LOW) -NYSE (Daily) | C46: 2023-06-16 | D46: 16:02:00 | E46: 219.339996 | F46: 219.490005 | G46: 216.850006 | H46: 217.080002 | I46: 6874300 | J46: -1.849991 | K46: 2023-06-17T11:20:37.350 | L46: [X]
A47: LMT | B47: Lockheed Martin Corporation (LMT) -NYSE (Daily) | C47: 2023-06-16 | D47: 16:01:00 | E47: 457.730011 | F47: 461.769989 | G47: 456.600006 | H47: 459.170013 | I47: 1642800 | J47: 3.220001 | K47: 2023-06-17T11:23:13.320
A48: M | B48: Macy's, Inc. (M) -NYSE (Daily) | C48: 2023-06-16 | D48: 16:00:00 | E48: 16.17 | F48: 16.34 | G48: 15.8 | H48: 15.85 | I48: 17840800 | J48: -0.14 | K48: 2023-06-17T11:24:02.180
A49: MCD | B49: McDonald's Corporation (MCD) -NYSE (Daily) | C49: 2023-06-16 | D49: 16:00:00 | E49: 294.51001 | F49: 296.570007 | G49: 293.140015 | H49: 293.700012 | I49: 4890400 | J49: 1.090027 | K49: 2023-06-17T10:18:27.960
A50: MDT | B50: Medtronic plc (MDT) -NYSE (Daily) | C50: 2023-06-16 | D50: 16:00:00 | E50: 88.279999 | F50: 89.720001 | G50: 88.279999 | H50: 89.150002 | I50: 9108400 | J50: 0.900002 | K50: 2023-06-17T11:37:39.300
A51: META | B51: Meta Platforms, Inc. (META) -NasdaqGS (Daily) | C51: 2022-10-07 | D51: 16:00:00 | E51: 136.759995 | F51: 138.289993 | G51: 132.440002 | H51: 133.449997 | I51: 33179700 | J51: -5.62001 | K51: 2022-10-08T20:19:13.140
A52: MGM | B52: MGM Resorts International (MGM) -NYSE (Daily) | C52: 2023-06-16 | D52: 16:00:00 | E52: 43.68 | F52: 43.75 | G52: 42.43 | H52: 42.639999 | I52: 7929700 | J52: -1.080002 | K52: 2023-06-17T11:24:42.990
A53: MO | B53: Altria Group, Inc. (MO) -NYSE (Daily) | C53: 2023-06-16 | D53: 16:03:00 | E53: 44.220001 | F53: 44.27 | G53: 43.919998 | H53: 44.07 | I53: 13661200 | J53: -0.080002 | K53: 2023-06-17T11:25:41.960
A54: MRNA | B54: Moderna, Inc. (MRNA) -NasdaqGS (Daily) | C54: 2022-10-07 | D54: 16:00:00 | E54: 121.5 | F54: 123.360001 | G54: 118.459999 | H54: 119.32 | I54: 3149000 | J54: -5.830002 | K54: 2022-10-08T20:20:13.090
A55: MSFT | B55: Microsoft Corporation (MSFT) -NasdaqGS (Daily) | C55: 2023-06-16 | D55: 16:00:00 | E55: 351.320007 | F55: 351.470001 | G55: 341.950012 | H55: 342.329987 | I55: 46533600 | J55: -5.770019 | K55: 2023-06-17T11:26:05.540 | L55: [X]
A56: MU | B56: Micron Technology, Inc. (MU) -NasdaqGS (Daily) | C56: 2023-06-16 | D56: 16:00:00 | E56: 70.150002 | F56: 70.5 | G56: 66.059998 | H56: 67.660004 | I56: 32252600 | J56: -1.159996 | K56: 2023-06-17T10:17:34.780
A57: NFLX | B57: Netflix, Inc. (NFLX) -NasdaqGS (Daily) | C57: 2022-10-07 | D57: 16:00:00 | E57: 235.770004 | F57: 237.330002 | G57: 224.279999 | H57: 224.75 | I57: 9784800 | J57: -15.270004 | K57: 2022-10-08T20:20:51.730
A58: NUGT | B58: Direxion Daily Gold Miners Index Bull 2X Shares (NUGT) -NYSEArca (Daily) | C58: 2023-04-18 | D58: 11:15:00 | E58: 47.110001 | F58: 49.1688 | G58: 47 | H58: 48.517601 | I58: 939091 | J58: 1.647602 | K58: 2023-04-18T11:16:03.120
A59: NVS | B59: Novartis AG (NVS) -NYSE (Daily) | C59: 2023-06-16 | D59: 16:00:00 | E59: 102.43 | F59: 102.730003 | G59: 101.540001 | H59: 101.830002 | I59: 2683400 | J59: 0.440003 | K59: 2023-06-17T11:40:12.900
A60: NVDA | B60: NVIDIA Corporation (NVDA) -NasdaqGS (Daily) | C60: 2024-02-02 | D60: 16:00:00 | E60: 639.73999 | F60: 666 | G60: 636.900024 | H60: 661.599976 | I60: 47578000 | J60: 31.329956 | K60: 2024-02-04T17:57:32.090
A61: NWL | B61: Newell Brands Inc. (NWL) -NasdaqGS (Daily) | C61: 2022-10-07 | D61: 16:00:00 | E61: 14.18 | F61: 14.25 | G61: 13.89 | H61: 13.96 | I61: 2832700 | J61: -0.42 | K61: 2022-10-08T20:22:10.460
A62: PEP | B62: PepsiCo, Inc. (PEP) -NasdaqGS (Daily) | C62: 2023-09-15 | D62: 11:05:00 | E62: 181.410004 | F62: 181.820007 | G62: 180.210007 | H62: 180.289993 | I62: 2715164 | J62: -0.940003 | K62: 2023-09-15T11:06:06.970
A63: PFE | B63: Pfizer Inc. (PFE) -NYSE (Daily) | C63: 2022-10-07 | D63: 16:03:00 | E63: 43.049999 | F63: 43.049999 | G63: 41.919998 | H63: 42.32 | I63: 20093100 | J63: -0.77 | K63: 2022-10-08T20:22:31.070
A64: PRU | B64: Prudential Financial, Inc. (PRU) -NYSE (Daily) | C64: 2023-06-16 | D64: 16:00:00 | E64: 86.809998 | F64: 87.470001 | G64: 86.309998 | H64: 87.029999 | I64: 3976700 | J64: 0.269997 | K64: 2023-06-17T11:27:17.570
A65: PSA | B65: Public Storage (PSA) -NYSE (Daily) | C65: 2023-03-08 | D65: 13:52:00 | E65: 301.850006 | F65: 305.119995 | G65: 300.910004 | H65: 302.279999 | I65: 329019 | J65: -0.070007 | K65: 2023-03-08T13:53:27.260
A66: PSEC | B66: Prospect Capital Corporation (PSEC) -NasdaqGS (Daily) | C66: 2023-06-16 | D66: 16:00:00 | E66: 6.28 | F66: 6.3 | G66: 6.22 | H66: 6.23 | I66: 1790300 | J66: -0.05 | K66: 2023-06-17T11:34:40.180
A67: RPM | B67: RPM International Inc. (RPM) -NYSE (Daily) | C67: 2023-05-19 | D67: 16:00:00 | E67: 81.349998 | F67: 81.449997 | G67: 79.650002 | H67: 80.080002 | I67: 569600 | J67: -0.720001 | K67: 2023-05-19T21:39:10.650
A68: RY | B68: Royal Bank of Canada (RY) -NYSE (Daily) | C68: 2023-09-15 | D68: 11:02:00 | E68: 91.07 | F68: 91.474098 | G68: 91.059998 | H68: 91.140999 | I68: 62690 | J68: -0.168999 | K68: 2023-09-15T11:03:52.640 | L68: [X]
A69: SCHW | B69: The Charles Schwab Corporation (SCHW) -NYSE (Daily) | C69: 2023-06-16 | D69: 16:00:00 | E69: 55.889999 | F69: 55.889999 | G69: 54.27 | H69: 54.400002 | I69: 19691000 | J69: -1.109996 | K69: 2023-06-17T11:34:11.580
A70: SPR | B70: Spirit AeroSystems Holdings, Inc. (SPR) -NYSE (Daily) | C70: 2022-10-07 | D70: 16:00:00 | E70: 24.26 | F70: 24.700001 | G70: 23.559999 | H70: 24.68 | I70: 1823200 | J70: -0.06 | K70: 2022-10-08T20:24:37.430
A71: SQ | B71: Block, Inc. (SQ) -NYSE (Daily) | C71: 2024-02-02 | D71: 16:00:00 | E71: 66.419998 | F71: 68.43 | G71: 65.290001 | H71: 67.879997 | I71: 9372100 | J71: 1.209999 | K71: 2024-02-04T17:44:52.090
A72: SWKS | B72: Skyworks Solutions, Inc. (SWKS) -NasdaqGS (Daily) | C72: 2022-10-07 | D72: 16:00:00 | E72: 90.18 | F72: 90.400002 | G72: 86.949997 | H72: 87.199997 | I72: 2592400 | J72: -5.410004 | K72: 2022-10-08T20:25:16.990
A73: TOL | B73: Toll Brothers, Inc. (TOL) -NYSE (Daily) | C73: 2023-06-08 | D73: 14:21:00 | E73: 73.739998 | F73: 74.809998 | G73: 73.379997 | H73: 74.334999 | I73: 1031567 | J73: 0.394997 | K73: 2023-06-08T14:22:29.470
A74: TSLA | B74: Tesla, Inc. (TSLA) -NasdaqGS (Daily) | C74: 2022-10-07 | D74: 16:00:00 | E74: 233.940002 | F74: 234.570007 | G74: 222.020004 | H74: 223.070007 | I74: 83592300 | J74: -15.059998 | K74: 2022-10-08T20:25:55.990
A75: TSN | B75: Tyson Foods, Inc. (TSN) -NYSE (Daily) | C75: 2023-06-16 | D75: 16:00:00 | E75: 50.360001 | F75: 50.490002 | G75: 49.959999 | H75: 50.389999 | I75: 4116300 | J75: 0.18 | K75: 2023-06-17T11:30:51.590
A76: TXN | B76: Texas Instruments Incorporated (TXN) -NasdaqGS (Daily) | C76: 2023-06-16 | D76: 16:00:00 | E76: 179.449997 | F76: 179.830002 | G76: 176.259995 | H76: 176.759995 | I76: 10374500 | J76: -1.330001 | K76: 2023-06-17T11:30:24.380
A77: UNP | B77: Union Pacific Corporation (UNP) -NYSE (Daily) | C77: 2023-06-16 | D77: 16:00:00 | E77: 206.369995 | F77: 206.899994 | G77: 204.479996 | H77: 204.669998 | I77: 4139800 | J77: -1.25 | K77: 2023-06-17T11:30:02.020
A78: VZ | B78: Verizon Communications Inc. (VZ) -NYSE (Daily) | C78: 2024-02-02 | D78: 16:00:00 | E78: 42.200001 | F78: 42.470001 | G78: 41.830002 | H78: 42.130001 | I78: 21546500 | J78: -0.360001 | K78: 2024-02-04T17:45:25.020
A79: WBA | B79: Walgreens Boots Alliance, Inc. (WBA) -NasdaqGS (Daily) | C79: 2023-06-16 | D79: 16:00:00 | E79: 31.83 | F79: 32.810001 | G79: 31.73 | H79: 32.669998 | I79: 16018300 | J79: 0.649998 | K79: 2023-06-17T11:29:06.980
A80: WMT | B80: Walmart Inc. (WMT) -NYSE (Daily) | C80: 2023-06-16 | D80: 16:00:00 | E80: 158.080002 | F80: 158.149994 | G80: 155.279999 | H80: 155.529999 | I80: 11556700 | J80: -2.199997 | K80: 2023-06-17T11:28:37.380
A82: ^AEX | B82: AEX-Index (^AEX) -Amsterdam (Daily) | C82: 2022-10-07 | D82: 18:05:00 | E82: 655.869995 | F82: 660.320007 | G82: 646.809998 | H82: 647.109985 | I82: 68900 | J82: -14.27002 | K82: 2022-10-08T20:27:56.300
A83: ^AORD | B83: ALL ORDINARIES (^AORD) -ASX (Daily) | C83: 2023-03-03 | D83: 16:46:00 | E83: 7460 | F83: 7493.299805 | G83: 7460 | H83: 7484 | I83: 915646200 | J83: 24 | K83: 2023-03-05T16:26:16.030
A84: ^AXJO | B84: S&P/ASX 200 (^AXJO) -ASX (Daily) | C84: 2023-03-15 | D84: 16:44:00 | E84: 7008.899902 | F84: 7068.899902 | G84: 7008.899902 | H84: 7068.899902 | I84: 0 | J84: 60 | K84: 2023-03-15T11:43:59.040
A85: DIA | B85: SPDR Dow Jones Industrial Average ETF Trust (DIA) -NYSEArca (Daily) | C85: 2022-10-07 | D85: 16:00:00 | E85: 296.730011 | F85: 296.890015 | G85: 291.440002 | H85: 292.970001 | I85: 3026900 | J85: -6.26001 | K85: 2022-10-08T20:28:35.330
A86: ^DJI | B86: Dow Jones Industrial Average (^DJI) -DJI (Daily) | C86: 2022-10-07 | D86: 17:28:00 | E86: 29685.26953 | F86: 29685.26953 | G86: 29142.66016 | H86: 29296.78906 | I86: 367950000 | J86: -630.15039 | K86: 2022-10-08T20:28:54.910
A87: ^FTSE | B87: FTSE 100 (^FTSE) -FTSE Index (Daily) | C87: 2022-10-07 | D87: 16:35:00 | E87: 6997.299805 | F87: 7022.399902 | G87: 6960.399902 | H87: 6991.100098 | I87: 807923600 | J87: -6.199707 | K87: 2022-10-08T20:29:14.340
A88: ^GSPC | B88: S&P 500 (^GSPC) -SNP (Daily) | C88: 2023-02-10 | D88: 17:04:00 | E88: 4068.919922 | F88: 4094.360107 | G88: 4060.790039 | H88: 4090.459961 | I88: 3891520000 | J88: 8.959961 | K88: 2023-02-12T10:01:40.360
A89: ^HSI | B89: HANG SENG INDEX (^HSI) -HKSE (Daily) | C89: 2023-04-18 | D89: 16:09:00 | E89: 20643.41016 | F89: 20742.39062 | G89: 20559.08008 | H89: 20650.50977 | I89: 0 | J89: -131.939453 | K89: 2023-04-18T11:21:48.850
A90: ^MID | B90: S&P MID CAP 400 INDEX (^MID) -NYSE (Daily) | C90: 2022-10-07 | D90: 16:04:00 | E90: 2325.449951 | F90: 2325.449951 | G90: 2255.810059 | H90: 2266.889893 | I90: 0 | J90: -58.560058 | K90: 2022-10-08T20:30:12.560
A91: ^NDX | B91: NASDAQ 100 (^NDX) -Nasdaq GIDS (Daily) | C91: 2023-09-15 | D91: 12:10:00 | E91: 15425.90039 | F91: 15435.45019 | G91: 15227.21777 | H91: 15258.62207 | I91: 507836217 | J91: -215.267578 | K91: 2023-09-15T12:11:00.300
A92: ^NYA | B92: NYSE COMPOSITE (DJ) (^NYA) -NYSE (Daily) | C92: 2022-10-07 | D92: 16:20:00 | E92: 14087.37988 | F92: 14087.37988 | G92: 13727.79004 | H92: 13798.25977 | I92: 4449660000 | J92: -289.120117 | K92: 2022-10-08T20:30:51.020
A93: ^OEX | B93: S&P 100 INDEX (^OEX) -Chicago Options (Daily) | C93: 2022-10-07 | D93: 17:28:00 | E93: 1674.359985 | F93: 1674.359985 | G93: 1634.599976 | H93: 1642.890015 | I93: 4449660000 | J93: -51.380005 | K93: 2022-10-08T20:31:10.140
A94: RSP | B94: Invesco S&P 500 Equal Weight ETF (RSP) -NYSEArca (Daily) | C94: 2022-10-07 | D94: 16:00:00 | E94: 132.009995 | F94: 132.199997 | G94: 129.389999 | H94: 130.149994 | I94: 3197700 | J94: -3.160004 | K94: 2022-10-08T20:31:31.900
A95: ^RUT | B95: Russell 2000 (^RUT) -Chicago Options (Daily) | C95: 2022-10-07 | D95: 16:30:00 | E95: 1734.650024 | F95: 1734.920044 | G95: 1694.959961 | H95: 1702.150024 | I95: 4449660000 | J95: -50.359986 | K95: 2022-10-08T20:31:50.530
A96: ^VIX | B96: CBOE Volatility Index (^VIX) -Chicago Options (Daily) | C96: 2022-10-07 | D96: 16:15:00 | E96: 30.370001 | F96: 32.02 | G96: 29.879999 | H96: 31.360001 | I96: 0 | J96: 0.840001 | K96: 2022-10-08T20:32:09.750
A97: IWM | B97: iShares Russell 2000 ETF (IWM) -NYSEArca (Daily) | C97: 2022-10-07 | D97: 16:00:00 | E97: 171.929993 | F97: 172.470001 | G97: 167.919998 | H97: 168.610001 | I97: 26504500 | J97: -5.11 | K97: 2022-10-08T20:32:29.720
A98: QQQ | B98: Invesco QQQ Trust (QQQ) -NasdaqGM (Daily) | C98: 2024-02-02 | D98: 16:00:00 | E98: 423.799988 | F98: 430.23999 | G98: 422.790009 | H98: 429.01001 | I98: 59582300 | J98: 7.130005 | K98: 2024-02-04T13:47:12.870
A99: XLE | B99: Energy Select Sector SPDR Fund (XLE) -NYSEArca (Daily) | C99: 2022-10-07 | D99: 16:00:00 | E99: 82.610001 | F99: 83.540001 | G99: 81.209999 | H99: 81.800003 | I99: 28449900 | J99: -0.639999 | K99: 2022-10-08T20:33:10.770
A100: SOXL | B100: Direxion Daily Semiconductor Bull 3X Shares (SOXL) -NYSEArca (Daily) | C100: 2022-10-07 | D100: 16:00:00 | E100: 10.18 | F100: 10.28 | G100: 9 | H100: 9.21 | I100: 134291600 | J100: -1.98 | K100: 2022-10-08T20:33:31.210
A101: SPY | B101: SPDR S&P 500 ETF Trust (SPY) -NYSEArca (Daily) | C101: 2024-03-15 | D101: 16:00:00 | E101: 510.209991 | F101: 511.690002 | G101: 508.122009 | H101: 509.829987 | I101: 107019507 | J101: -5.120025 | K101: 2024-03-15T20:42:27.680
A103: ACAD | B103: ACADIA Pharmaceuticals Inc. (ACAD) -NasdaqGS (Daily) | C103: 2022-10-07 | D103: 16:00:00 | E103: 18.219999 | F103: 18.27 | G103: 16.030001 | H103: 16.290001 | I103: 2891100 | J103: -2.339998 | K103: 2022-10-08T20:34:10.690
A104: CLDX | B104: Celldex Therapeutics, Inc. (CLDX) -NasdaqCM (Daily) | C104: 2022-10-07 | D104: 16:00:00 | E104: 28.530001 | F104: 29.16 | G104: 28.01 | H104: 28.07 | I104: 426400 | J104: -0.91 | K104: 2022-10-08T20:34:27.670
A105: ICPT | B105: Intercept Pharmaceuticals, Inc. (ICPT) -NasdaqGS (Daily) | C105: 2022-10-07 | D105: 16:00:00 | E105: 13.97 | F105: 14.06 | G105: 13.64 | H105: 13.66 | I105: 691500 | J105: -0.28 | K105: 2022-10-08T20:34:46.490
A106: INO | B106: Inovio Pharmaceuticals, Inc. (INO) -NasdaqGS (Daily) | C106: 2022-10-07 | D106: 16:00:00 | E106: 1.69 | F106: 1.7 | G106: 1.6 | H106: 1.61 | I106: 4513100 | J106: -0.13 | K106: 2022-10-08T20:35:05.980
A107: LCI | B107: Lannett Company, Inc. (LCI) -NYSE (Daily) | C107: 2022-10-07 | D107: 16:00:00 | E107: 0.48 | F107: 0.493 | G107: 0.471 | H107: 0.471 | I107: 105400 | J107: -0.011 | K107: 2022-10-08T20:35:25.780
A108: PBYI | B108: Puma Biotechnology, Inc. (PBYI) -NasdaqGS (Daily) | C108: 2022-10-07 | D108: 16:00:00 | E108: 2.47 | F108: 2.5 | G108: 2.32 | H108: 2.37 | I108: 123700 | J108: -0.15 | K108: 2022-10-08T20:35:44.300
